DepartmentFamily,Entity,Date,ExpenseType,ExpenseArea,Supplier,TransactionNumber,Amount,VAT Registration No
BEIS,The Insolvency Service,01/07/2018,Employee Related Costs,People & Capability,Stonewall Equality Ltd,300001553,3000.00,862906405
BEIS,The Insolvency Service,01/07/2018,Investigation & Enforcement Costs,Investigations & Enforcement Services,Howes Percival,300001549,5941.98,119523573
BEIS,The Insolvency Service,01/07/2018,Investigation & Enforcement Costs,Criminal Enforcement Team,Walnut House,300000713,495.00,898798511
BEIS,The Insolvency Service,01/07/2018,Computer and IT Systems,Information & Technology,Atos It Services Uk Ltd,300001148,72000.00,232327983
BEIS,The Insolvency Service,01/07/2018,Insolvency Case Related Costs,Finance & Commercial,Equifax Ltd,300001991,443.04,565629213
BEIS,The Insolvency Service,01/07/2018,Insolvency Case Related Costs,Official Receiver Services,Frank G. Bowen Ltd,300000723,102.00,238504366
BEIS,The Insolvency Service,01/07/2018,Investigation & Enforcement Costs,Investigations & Enforcement Services,Howes Percival,300001849,5280.00,119523573
BEIS,The Insolvency Service,01/07/2018,Investigation & Enforcement Costs,Investigations & Enforcement Services,Howes Percival,300001849,10682.35,119523573
BEIS,The Insolvency Service,01/07/2018,Employee Related Costs,Finance & Commercial,Specsavers Optical Group,300001013,706.00,520011330
BEIS,The Insolvency Service,01/07/2018,Computer and IT Systems,Information & Technology,Nine Telecom,300001555,732.60,886132113
BEIS,The Insolvency Service,01/07/2018,Insolvency Case Related Costs,Official Receiver Services,The Stationery Office Ltd,300001202,223.74,662774703
BEIS,The Insolvency Service,01/07/2018,Computer and IT Systems,Information & Technology,Maintel,300001622,42000.00,744336531
BEIS,The Insolvency Service,01/07/2018,Computer and IT Systems,Official Receiver Services,Restore Datashred (Data Solutions 2016 Ltd T/A Restore Data),300001073,115.20,240193143
BEIS,The Insolvency Service,01/07/2018,Computer and IT Systems,Official Receiver Services,Restore Datashred (Data Solutions 2016 Ltd T/A Restore Data),300001080,76.80,240193143
BEIS,The Insolvency Service,01/07/2018,Insolvency Case Related Costs,Official Receiver Services,The Stationery Office Ltd,300001199,149.16,662774703
BEIS,The Insolvency Service,01/07/2018,Insolvency Case Related Costs,Official Receiver Services,The Stationery Office Ltd,300001201,74.58,662774703
BEIS,The Insolvency Service,01/07/2018,Insolvency Case Related Costs,Official Receiver Services,The Stationery Office Ltd,300001194,149.16,662774703
BEIS,The Insolvency Service,01/07/2018,Training,Business Service Division,Maintel,300001623,960.00,744336531
BEIS,The Insolvency Service,01/07/2018,Accomodation,Finance & Commercial,Beis - Dept. For Business Innovation & Skills,300001404,72576.26,888825550
BEIS,The Insolvency Service,01/07/2018,Investigation & Enforcement Costs,Investigations & Enforcement Services,Clarke Willmott Solicitors,300001444,326.00,129913060
BEIS,The Insolvency Service,01/07/2018,Accomodation,Finance & Commercial,Land Registry,300002015,1469.12,
BEIS,The Insolvency Service,01/07/2018,Accomodation,Finance & Commercial,Beis - Dept. For Business Innovation & Skills,300001407,44826.10,888825550
BEIS,The Insolvency Service,01/07/2018,Computer and IT Systems,Information & Technology,Geoff Smith Associates Ltd,300001450,27455.10,813047166
BEIS,The Insolvency Service,01/07/2018,Investigation & Enforcement Costs,Investigations & Enforcement Services,K International Plc,300001442,161.20,600413800
BEIS,The Insolvency Service,01/07/2018,Legal Costs,Investigations & Enforcement Services,Mendip Media Group Ltd (Now Trading As Appen) - (Transcri),300001459,260.95,609546425
BEIS,The Insolvency Service,01/07/2018,Legal Costs,Investigations & Enforcement Services,Mendip Media Group Ltd (Now Trading As Appen) - (Transcri),300001460,338.33,609546425
BEIS,The Insolvency Service,01/07/2018,Training,Business Service Division,Kpmg Llp,300001554,178.80,791788859
BEIS,The Insolvency Service,01/07/2018,Insolvency Case Related Costs,Finance & Commercial,Equifax Ltd,300001876,11940.00,565629213
BEIS,The Insolvency Service,01/07/2018,Computer and IT Systems,Information & Technology,Kcom Group Plc,300002018,72.00,647235137
BEIS,The Insolvency Service,01/07/2018,Investigation & Enforcement Costs,Investigations & Enforcement Services,Shepherd & Wedderburn,300001756,7183.57,125425142
BEIS,The Insolvency Service,02/07/2018,Insolvency Case Related Costs,Official Receiver Services,The Stationery Office Ltd,300001665,149.16,662774703
BEIS,The Insolvency Service,02/07/2018,Accomodation,Finance & Commercial,Environment Agency,300001762,1290.00,662490134
BEIS,The Insolvency Service,02/07/2018,Investigation & Enforcement Costs,Investigations & Enforcement Services,Shepherd & Wedderburn,300002030,49.12,125425142
BEIS,The Insolvency Service,03/07/2018,Insolvency Case Related Costs,Official Receiver Services,The Stationery Office Ltd,300001664,298.32,662774703
BEIS,The Insolvency Service,03/07/2018,Investigation & Enforcement Costs,Criminal Enforcement Team,18 Red Lion Court Chambers,300001862,883.50,766793665
BEIS,The Insolvency Service,03/07/2018,Investigation & Enforcement Costs,Criminal Enforcement Team,187 Fleet Street Chambers (The Chambers Of Andrew Trollope ),300001863,380.04,678105715
BEIS,The Insolvency Service,04/07/2018,Insolvency Case Related Costs,Official Receiver Services,The Stationery Office Ltd,300001663,149.16,662774703
BEIS,The Insolvency Service,04/07/2018,Accomodation,Finance & Commercial,Colliers International Property Consultants Ltd,300001629,369.77,
BEIS,The Insolvency Service,04/07/2018,Investigation & Enforcement Costs,Criminal Enforcement Team,18 Red Lion Court Chambers,300001855,6402.96,766793665
BEIS,The Insolvency Service,04/07/2018,Travel & Subsistence,Business Service Division,Staff Payment,900001985,3.34,
BEIS,The Insolvency Service,04/07/2018,Travel & Subsistence,Business Service Division,Staff Payment,900001985,5.00,
BEIS,The Insolvency Service,04/07/2018,Travel & Subsistence,Business Service Division,Staff Payment,900001985,15.00,
BEIS,The Insolvency Service,04/07/2018,Travel & Subsistence,Business Service Division,Staff Payment,900001985,5.00,
BEIS,The Insolvency Service,04/07/2018,Travel & Subsistence,Business Service Division,Staff Payment,900001985,148.50,
BEIS,The Insolvency Service,04/07/2018,Travel & Subsistence,People & Capability,Staff Payment,900001921,159.00,
BEIS,The Insolvency Service,04/07/2018,Travel & Subsistence,Investigations & Enforcement Services,Staff Payment,900001870,12.00,
BEIS,The Insolvency Service,04/07/2018,Travel & Subsistence,Investigations & Enforcement Services,Staff Payment,900001870,4.64,
BEIS,The Insolvency Service,04/07/2018,Travel & Subsistence,Investigations & Enforcement Services,Staff Payment,900001870,5.00,
BEIS,The Insolvency Service,04/07/2018,Travel & Subsistence,Investigations & Enforcement Services,Staff Payment,900001870,4.80,
BEIS,The Insolvency Service,04/07/2018,Travel & Subsistence,Investigations & Enforcement Services,Staff Payment,900001922,8.00,
BEIS,The Insolvency Service,04/07/2018,Travel & Subsistence,Investigations & Enforcement Services,Staff Payment,900001922,11.00,
BEIS,The Insolvency Service,04/07/2018,Travel & Subsistence,Investigations & Enforcement Services,Staff Payment,900001922,8.05,
BEIS,The Insolvency Service,04/07/2018,Travel & Subsistence,Official Receiver Services,Staff Payment,900001948,10.60,
BEIS,The Insolvency Service,04/07/2018,Travel & Subsistence,Official Receiver Services,Staff Payment,900001948,9.60,
BEIS,The Insolvency Service,04/07/2018,Travel & Subsistence,Official Receiver Services,Staff Payment,900001948,9.80,
BEIS,The Insolvency Service,04/07/2018,Travel & Subsistence,Official Receiver Services,Staff Payment,900001927,8.75,
BEIS,The Insolvency Service,04/07/2018,Travel & Subsistence,Official Receiver Services,Staff Payment,900001928,10.00,
BEIS,The Insolvency Service,04/07/2018,Travel & Subsistence,Official Receiver Services,Staff Payment,900001929,9.20,
BEIS,The Insolvency Service,04/07/2018,Travel & Subsistence,Official Receiver Services,Staff Payment,900001930,9.97,
BEIS,The Insolvency Service,04/07/2018,Travel & Subsistence,Strategy & Change,Staff Payment,900001309,49.00,
BEIS,The Insolvency Service,04/07/2018,Travel & Subsistence,Official Receiver Services,Staff Payment,900001831,11.00,
BEIS,The Insolvency Service,04/07/2018,Travel & Subsistence,Official Receiver Services,Staff Payment,900001831,51.75,
BEIS,The Insolvency Service,04/07/2018,Travel & Subsistence,Official Receiver Services,Staff Payment,900001950,3.00,
BEIS,The Insolvency Service,04/07/2018,Travel & Subsistence,Official Receiver Services,Staff Payment,900001950,28.80,
BEIS,The Insolvency Service,04/07/2018,Travel & Subsistence,Business Service Division,Staff Payment,900001987,15.00,
BEIS,The Insolvency Service,04/07/2018,Travel & Subsistence,Business Service Division,Staff Payment,900001987,5.00,
BEIS,The Insolvency Service,04/07/2018,Travel & Subsistence,Official Receiver Services,Staff Payment,900001884,49.05,
BEIS,The Insolvency Service,04/07/2018,Travel & Subsistence,Official Receiver Services,Staff Payment,900001884,49.05,
BEIS,The Insolvency Service,04/07/2018,Travel & Subsistence,Official Receiver Services,Staff Payment,900001884,5.00,
BEIS,The Insolvency Service,04/07/2018,Travel & Subsistence,Official Receiver Services,Staff Payment,900001884,10.50,
BEIS,The Insolvency Service,04/07/2018,Travel & Subsistence,Official Receiver Services,Staff Payment,900001884,4.79,
BEIS,The Insolvency Service,04/07/2018,Travel & Subsistence,Official Receiver Services,Staff Payment,900001912,24.30,
BEIS,The Insolvency Service,04/07/2018,Travel & Subsistence,Official Receiver Services,Staff Payment,900001912,24.30,
BEIS,The Insolvency Service,04/07/2018,Travel & Subsistence,Official Receiver Services,Staff Payment,900001912,3.00,
BEIS,The Insolvency Service,04/07/2018,Travel & Subsistence,Official Receiver Services,Staff Payment,900001981,5.00,
BEIS,The Insolvency Service,04/07/2018,Travel & Subsistence,Official Receiver Services,Staff Payment,900001612,5.00,
BEIS,The Insolvency Service,04/07/2018,Travel & Subsistence,Official Receiver Services,Staff Payment,900001612,2.30,
BEIS,The Insolvency Service,04/07/2018,Travel & Subsistence,Investigations & Enforcement Services,Staff Payment,900001628,19.80,
BEIS,The Insolvency Service,04/07/2018,Travel & Subsistence,Investigations & Enforcement Services,Staff Payment,900001628,5.00,
BEIS,The Insolvency Service,04/07/2018,Travel & Subsistence,Investigations & Enforcement Services,Staff Payment,900001628,5.00,
BEIS,The Insolvency Service,04/07/2018,Travel & Subsistence,Investigations & Enforcement Services,Staff Payment,900001629,19.80,
BEIS,The Insolvency Service,04/07/2018,Travel & Subsistence,Investigations & Enforcement Services,Staff Payment,900001629,4.80,
BEIS,The Insolvency Service,04/07/2018,Travel & Subsistence,Investigations & Enforcement Services,Staff Payment,900001629,4.90,
BEIS,The Insolvency Service,04/07/2018,Travel & Subsistence,Investigations & Enforcement Services,Staff Payment,900001630,11.00,
BEIS,The Insolvency Service,04/07/2018,Travel & Subsistence,Official Receiver Services,Staff Payment,900001983,3.00,
BEIS,The Insolvency Service,04/07/2018,Travel & Subsistence,Official Receiver Services,Staff Payment,900001983,5.00,
BEIS,The Insolvency Service,04/07/2018,Travel & Subsistence,Official Receiver Services,Staff Payment,900001983,2.40,
BEIS,The Insolvency Service,04/07/2018,Travel & Subsistence,Official Receiver Services,Staff Payment,900001983,2.40,
BEIS,The Insolvency Service,04/07/2018,Travel & Subsistence,People & Capability,Staff Payment,900001931,13.00,
BEIS,The Insolvency Service,04/07/2018,Travel & Subsistence,Business Service Division,Staff Payment,900001926,1.70,
BEIS,The Insolvency Service,04/07/2018,Travel & Subsistence,Business Service Division,Staff Payment,900001926,3.75,
BEIS,The Insolvency Service,04/07/2018,Travel & Subsistence,Business Service Division,Staff Payment,900001926,3.40,
BEIS,The Insolvency Service,04/07/2018,Travel & Subsistence,People & Capability,Staff Payment,900001934,185.00,
BEIS,The Insolvency Service,04/07/2018,Travel & Subsistence,People & Capability,Staff Payment,900001936,7.98,
BEIS,The Insolvency Service,04/07/2018,Travel & Subsistence,Investigations & Enforcement Services,Staff Payment,900001878,74.00,
BEIS,The Insolvency Service,04/07/2018,Travel & Subsistence,Investigations & Enforcement Services,Staff Payment,900001878,13.70,
BEIS,The Insolvency Service,04/07/2018,Travel & Subsistence,Investigations & Enforcement Services,Staff Payment,900001878,20.70,
BEIS,The Insolvency Service,04/07/2018,Travel & Subsistence,Investigations & Enforcement Services,Staff Payment,900001878,37.00,
BEIS,The Insolvency Service,04/07/2018,Travel & Subsistence,Chief Executive Office,Staff Payment,900001966,25.20,
BEIS,The Insolvency Service,04/07/2018,Travel & Subsistence,Chief Executive Office,Staff Payment,900001966,25.20,
BEIS,The Insolvency Service,04/07/2018,Travel & Subsistence,Chief Executive Office,Staff Payment,900001967,15.00,
BEIS,The Insolvency Service,04/07/2018,Travel & Subsistence,Chief Executive Office,Staff Payment,900001967,9.00,
BEIS,The Insolvency Service,04/07/2018,Travel & Subsistence,Chief Executive Office,Staff Payment,900001967,5.00,
BEIS,The Insolvency Service,04/07/2018,Travel & Subsistence,Chief Executive Office,Staff Payment,900001967,30.00,
BEIS,The Insolvency Service,04/07/2018,Travel & Subsistence,Chief Executive Office,Staff Payment,900001967,5.00,
BEIS,The Insolvency Service,04/07/2018,Travel & Subsistence,Chief Executive Office,Staff Payment,900001967,5.00,
BEIS,The Insolvency Service,04/07/2018,Travel & Subsistence,Strategy & Change,Staff Payment,900001979,5.00,
BEIS,The Insolvency Service,04/07/2018,Travel & Subsistence,Strategy & Change,Staff Payment,900001979,5.00,
BEIS,The Insolvency Service,04/07/2018,Travel & Subsistence,Strategy & Change,Staff Payment,900001979,5.00,
BEIS,The Insolvency Service,04/07/2018,Travel & Subsistence,Strategy & Change,Staff Payment,900001979,15.00,
BEIS,The Insolvency Service,04/07/2018,Travel & Subsistence,Strategy & Change,Staff Payment,900001979,15.00,
BEIS,The Insolvency Service,04/07/2018,Travel & Subsistence,Strategy & Change,Staff Payment,900001979,5.00,
BEIS,The Insolvency Service,04/07/2018,Travel & Subsistence,Strategy & Change,Staff Payment,900001979,159.00,
BEIS,The Insolvency Service,04/07/2018,Travel & Subsistence,Finance & Commercial,Staff Payment,900001825,7.50,
BEIS,The Insolvency Service,04/07/2018,Travel & Subsistence,Finance & Commercial,Staff Payment,900001825,3.39,
BEIS,The Insolvency Service,04/07/2018,Travel & Subsistence,Finance & Commercial,Staff Payment,900001825,3.00,
BEIS,The Insolvency Service,04/07/2018,Travel & Subsistence,Chief Executive Office,Staff Payment,900001959,12.50,
BEIS,The Insolvency Service,04/07/2018,Travel & Subsistence,Chief Executive Office,Staff Payment,900001960,17.80,
BEIS,The Insolvency Service,04/07/2018,Travel & Subsistence,Chief Executive Office,Staff Payment,900001961,10.38,
BEIS,The Insolvency Service,04/07/2018,Travel & Subsistence,Chief Executive Office,Staff Payment,900001980,14.27,
BEIS,The Insolvency Service,04/07/2018,Travel & Subsistence,Investigations & Enforcement Services,Staff Payment,900001783,3.90,
BEIS,The Insolvency Service,04/07/2018,Travel & Subsistence,Investigations & Enforcement Services,Staff Payment,900001783,4.00,
BEIS,The Insolvency Service,04/07/2018,Travel & Subsistence,Investigations & Enforcement Services,Staff Payment,900001783,36.99,
BEIS,The Insolvency Service,04/07/2018,Travel & Subsistence,Finance & Commercial,Staff Payment,900001679,2.40,
BEIS,The Insolvency Service,04/07/2018,Travel & Subsistence,Finance & Commercial,Staff Payment,900001679,14.95,
BEIS,The Insolvency Service,04/07/2018,Travel & Subsistence,Finance & Commercial,Staff Payment,900001679,5.00,
BEIS,The Insolvency Service,04/07/2018,Travel & Subsistence,Official Receiver Services,Staff Payment,900001968,1.99,
BEIS,The Insolvency Service,04/07/2018,Travel & Subsistence,Official Receiver Services,Staff Payment,900001968,3.80,
BEIS,The Insolvency Service,04/07/2018,Travel & Subsistence,Official Receiver Services,Staff Payment,900001969,2.90,
BEIS,The Insolvency Service,04/07/2018,Travel & Subsistence,Official Receiver Services,Staff Payment,900001969,3.50,
BEIS,The Insolvency Service,04/07/2018,Travel & Subsistence,Investigations & Enforcement Services,Staff Payment,900001946,2.40,
BEIS,The Insolvency Service,04/07/2018,Travel & Subsistence,Investigations & Enforcement Services,Staff Payment,900001946,17.55,
BEIS,The Insolvency Service,04/07/2018,Travel & Subsistence,Investigations & Enforcement Services,Staff Payment,900001935,6.00,
BEIS,The Insolvency Service,04/07/2018,Travel & Subsistence,Investigations & Enforcement Services,Staff Payment,900001935,19.80,
BEIS,The Insolvency Service,04/07/2018,Travel & Subsistence,Investigations & Enforcement Services,Staff Payment,900001949,24.30,
BEIS,The Insolvency Service,04/07/2018,Travel & Subsistence,Investigations & Enforcement Services,Staff Payment,900001949,4.45,
BEIS,The Insolvency Service,04/07/2018,Travel & Subsistence,Investigations & Enforcement Services,Staff Payment,900001842,27.00,
BEIS,The Insolvency Service,04/07/2018,Travel & Subsistence,Investigations & Enforcement Services,Staff Payment,900001842,22.50,
BEIS,The Insolvency Service,04/07/2018,Travel & Subsistence,Investigations & Enforcement Services,Staff Payment,900001842,27.00,
BEIS,The Insolvency Service,04/07/2018,Travel & Subsistence,Investigations & Enforcement Services,Staff Payment,900001842,21.60,
BEIS,The Insolvency Service,04/07/2018,Travel & Subsistence,Investigations & Enforcement Services,Staff Payment,900001842,0.60,
BEIS,The Insolvency Service,04/07/2018,Travel & Subsistence,Investigations & Enforcement Services,Staff Payment,900001842,24.00,
BEIS,The Insolvency Service,04/07/2018,Travel & Subsistence,Investigations & Enforcement Services,Staff Payment,900001842,5.00,
BEIS,The Insolvency Service,04/07/2018,Travel & Subsistence,Investigations & Enforcement Services,Staff Payment,900001842,2.00,
BEIS,The Insolvency Service,04/07/2018,Travel & Subsistence,Investigations & Enforcement Services,Staff Payment,900001842,0.00,
BEIS,The Insolvency Service,04/07/2018,Travel & Subsistence,Investigations & Enforcement Services,Staff Payment,900001842,104.40,
BEIS,The Insolvency Service,04/07/2018,Travel & Subsistence,Investigations & Enforcement Services,Staff Payment,900001842,7.20,
BEIS,The Insolvency Service,04/07/2018,Travel & Subsistence,Investigations & Enforcement Services,Staff Payment,900001842,2.00,
BEIS,The Insolvency Service,04/07/2018,Travel & Subsistence,Investigations & Enforcement Services,Staff Payment,900001842,2.00,
BEIS,The Insolvency Service,04/07/2018,Travel & Subsistence,Investigations & Enforcement Services,Staff Payment,900001842,7.80,
BEIS,The Insolvency Service,04/07/2018,Travel & Subsistence,Investigations & Enforcement Services,Staff Payment,900001842,11.80,
BEIS,The Insolvency Service,04/07/2018,Travel & Subsistence,Investigations & Enforcement Services,Staff Payment,900001842,1.00,
BEIS,The Insolvency Service,04/07/2018,Travel & Subsistence,Investigations & Enforcement Services,Staff Payment,900001842,5.00,
BEIS,The Insolvency Service,04/07/2018,Travel & Subsistence,Investigations & Enforcement Services,Staff Payment,900001845,12.71,
BEIS,The Insolvency Service,04/07/2018,Travel & Subsistence,Investigations & Enforcement Services,Staff Payment,900001937,17.60,
BEIS,The Insolvency Service,04/07/2018,Travel & Subsistence,Investigations & Enforcement Services,Staff Payment,900001937,1.60,
BEIS,The Insolvency Service,04/07/2018,Travel & Subsistence,Investigations & Enforcement Services,Staff Payment,900001937,1.70,
BEIS,The Insolvency Service,04/07/2018,Travel & Subsistence,Investigations & Enforcement Services,Staff Payment,900001937,8.00,
BEIS,The Insolvency Service,04/07/2018,Travel & Subsistence,Investigations & Enforcement Services,Staff Payment,900001937,28.00,
BEIS,The Insolvency Service,04/07/2018,Travel & Subsistence,Investigations & Enforcement Services,Staff Payment,900001937,36.00,
BEIS,The Insolvency Service,04/07/2018,Travel & Subsistence,Investigations & Enforcement Services,Staff Payment,900001937,27.40,
BEIS,The Insolvency Service,04/07/2018,Travel & Subsistence,Investigations & Enforcement Services,Staff Payment,900001937,25.00,
BEIS,The Insolvency Service,04/07/2018,Travel & Subsistence,Investigations & Enforcement Services,Staff Payment,900001937,35.00,
BEIS,The Insolvency Service,04/07/2018,Travel & Subsistence,Investigations & Enforcement Services,Staff Payment,900001976,39.00,
BEIS,The Insolvency Service,04/07/2018,Travel & Subsistence,Investigations & Enforcement Services,Staff Payment,900001976,5.00,
BEIS,The Insolvency Service,04/07/2018,Travel & Subsistence,Investigations & Enforcement Services,Staff Payment,900001976,15.00,
BEIS,The Insolvency Service,04/07/2018,Travel & Subsistence,Investigations & Enforcement Services,Staff Payment,900001976,5.00,
BEIS,The Insolvency Service,04/07/2018,Travel & Subsistence,Investigations & Enforcement Services,Staff Payment,900001976,4.00,
BEIS,The Insolvency Service,04/07/2018,Travel & Subsistence,Investigations & Enforcement Services,Staff Payment,900001976,75.60,
BEIS,The Insolvency Service,04/07/2018,Travel & Subsistence,Investigations & Enforcement Services,Staff Payment,900001976,54.00,
BEIS,The Insolvency Service,04/07/2018,Travel & Subsistence,Investigations & Enforcement Services,Staff Payment,900001976,1.77,
BEIS,The Insolvency Service,04/07/2018,Travel & Subsistence,Investigations & Enforcement Services,Staff Payment,900001976,78.75,
BEIS,The Insolvency Service,04/07/2018,Travel & Subsistence,Investigations & Enforcement Services,Staff Payment,900001976,25.20,
BEIS,The Insolvency Service,04/07/2018,Travel & Subsistence,Investigations & Enforcement Services,Staff Payment,900001976,79.20,
BEIS,The Insolvency Service,04/07/2018,Travel & Subsistence,Investigations & Enforcement Services,Staff Payment,900001976,61.20,
BEIS,The Insolvency Service,04/07/2018,Travel & Subsistence,Investigations & Enforcement Services,Staff Payment,900001976,25.20,
BEIS,The Insolvency Service,04/07/2018,Travel & Subsistence,Investigations & Enforcement Services,Staff Payment,900001976,59.40,
BEIS,The Insolvency Service,04/07/2018,Travel & Subsistence,Investigations & Enforcement Services,Staff Payment,900001976,49.50,
BEIS,The Insolvency Service,04/07/2018,Travel & Subsistence,Investigations & Enforcement Services,Staff Payment,900001976,5.00,
BEIS,The Insolvency Service,04/07/2018,Travel & Subsistence,Investigations & Enforcement Services,Staff Payment,900001402,22.50,
BEIS,The Insolvency Service,04/07/2018,Travel & Subsistence,Investigations & Enforcement Services,Staff Payment,900001402,2.70,
BEIS,The Insolvency Service,04/07/2018,Travel & Subsistence,Investigations & Enforcement Services,Staff Payment,900001402,108.00,
BEIS,The Insolvency Service,04/07/2018,Travel & Subsistence,Investigations & Enforcement Services,Staff Payment,900001402,3.10,
BEIS,The Insolvency Service,04/07/2018,Travel & Subsistence,Investigations & Enforcement Services,Staff Payment,900001402,5.00,
BEIS,The Insolvency Service,04/07/2018,Travel & Subsistence,Investigations & Enforcement Services,Staff Payment,900001402,5.00,
BEIS,The Insolvency Service,04/07/2018,Travel & Subsistence,Investigations & Enforcement Services,Staff Payment,900001984,88.65,
BEIS,The Insolvency Service,04/07/2018,Travel & Subsistence,Investigations & Enforcement Services,Staff Payment,900001984,20.70,
BEIS,The Insolvency Service,04/07/2018,Travel & Subsistence,Investigations & Enforcement Services,Staff Payment,900001984,20.00,
BEIS,The Insolvency Service,04/07/2018,Travel & Subsistence,Investigations & Enforcement Services,Staff Payment,900001984,5.00,
BEIS,The Insolvency Service,04/07/2018,Travel & Subsistence,Investigations & Enforcement Services,Staff Payment,900001984,5.00,
BEIS,The Insolvency Service,04/07/2018,Travel & Subsistence,Investigations & Enforcement Services,Staff Payment,900001984,17.20,
BEIS,The Insolvency Service,04/07/2018,Travel & Subsistence,Investigations & Enforcement Services,Staff Payment,900001984,88.65,
BEIS,The Insolvency Service,04/07/2018,Travel & Subsistence,Investigations & Enforcement Services,Staff Payment,900001984,5.00,
BEIS,The Insolvency Service,04/07/2018,Travel & Subsistence,Investigations & Enforcement Services,Staff Payment,900001984,5.00,
BEIS,The Insolvency Service,04/07/2018,Travel & Subsistence,Investigations & Enforcement Services,Staff Payment,900001984,6.00,
BEIS,The Insolvency Service,04/07/2018,Travel & Subsistence,Investigations & Enforcement Services,Staff Payment,900001691,40.50,
BEIS,The Insolvency Service,04/07/2018,Travel & Subsistence,Investigations & Enforcement Services,Staff Payment,900001691,2.20,
BEIS,The Insolvency Service,04/07/2018,Travel & Subsistence,Investigations & Enforcement Services,Staff Payment,900001691,3.90,
BEIS,The Insolvency Service,04/07/2018,Travel & Subsistence,Investigations & Enforcement Services,Staff Payment,900001691,5.00,
BEIS,The Insolvency Service,04/07/2018,Travel & Subsistence,Investigations & Enforcement Services,Staff Payment,900001691,52.20,
BEIS,The Insolvency Service,04/07/2018,Travel & Subsistence,Investigations & Enforcement Services,Staff Payment,900001691,10.80,
BEIS,The Insolvency Service,04/07/2018,Travel & Subsistence,Investigations & Enforcement Services,Staff Payment,900001925,19.92,
BEIS,The Insolvency Service,04/07/2018,Travel & Subsistence,Investigations & Enforcement Services,Staff Payment,900001925,20.16,
BEIS,The Insolvency Service,04/07/2018,Travel & Subsistence,Investigations & Enforcement Services,Staff Payment,900001925,21.12,
BEIS,The Insolvency Service,04/07/2018,Travel & Subsistence,Investigations & Enforcement Services,Staff Payment,900001925,22.80,
BEIS,The Insolvency Service,04/07/2018,Travel & Subsistence,Investigations & Enforcement Services,Staff Payment,900001925,11.04,
BEIS,The Insolvency Service,04/07/2018,Travel & Subsistence,Investigations & Enforcement Services,Staff Payment,900001925,11.70,
BEIS,The Insolvency Service,04/07/2018,Travel & Subsistence,Business Service Division,Staff Payment,900001995,4.10,
BEIS,The Insolvency Service,04/07/2018,Travel & Subsistence,Business Service Division,Staff Payment,900001995,55.00,
BEIS,The Insolvency Service,04/07/2018,Travel & Subsistence,Business Service Division,Staff Payment,900001995,10.00,
BEIS,The Insolvency Service,04/07/2018,Travel & Subsistence,Business Service Division,Staff Payment,900001869,7.32,
BEIS,The Insolvency Service,04/07/2018,Travel & Subsistence,Business Service Division,Staff Payment,900001869,4.55,
BEIS,The Insolvency Service,04/07/2018,Travel & Subsistence,Business Service Division,Staff Payment,900001869,5.00,
BEIS,The Insolvency Service,04/07/2018,Travel & Subsistence,Official Receiver Services,Staff Payment,900001956,9.00,
BEIS,The Insolvency Service,04/07/2018,Travel & Subsistence,Chief Executive Office,Staff Payment,900001865,3.35,
BEIS,The Insolvency Service,04/07/2018,Travel & Subsistence,Chief Executive Office,Staff Payment,900001865,5.00,
BEIS,The Insolvency Service,04/07/2018,Travel & Subsistence,Chief Executive Office,Staff Payment,900001865,3.99,
BEIS,The Insolvency Service,04/07/2018,Travel & Subsistence,Chief Executive Office,Staff Payment,900001865,6.00,
BEIS,The Insolvency Service,04/07/2018,Travel & Subsistence,Chief Executive Office,Staff Payment,900001788,5.00,
BEIS,The Insolvency Service,04/07/2018,Travel & Subsistence,Chief Executive Office,Staff Payment,900001788,5.00,
BEIS,The Insolvency Service,04/07/2018,Travel & Subsistence,Chief Executive Office,Staff Payment,900001788,13.50,
BEIS,The Insolvency Service,04/07/2018,Travel & Subsistence,Chief Executive Office,Staff Payment,900001915,13.50,
BEIS,The Insolvency Service,04/07/2018,Travel & Subsistence,Chief Executive Office,Staff Payment,900001915,4.65,
BEIS,The Insolvency Service,04/07/2018,Travel & Subsistence,Chief Executive Office,Staff Payment,900001915,4.00,
BEIS,The Insolvency Service,04/07/2018,Travel & Subsistence,Chief Executive Office,Staff Payment,900001916,10.00,
BEIS,The Insolvency Service,04/07/2018,Travel & Subsistence,Chief Executive Office,Staff Payment,900001916,5.00,
BEIS,The Insolvency Service,04/07/2018,Travel & Subsistence,Chief Executive Office,Staff Payment,900001916,12.90,
BEIS,The Insolvency Service,04/07/2018,Travel & Subsistence,Chief Executive Office,Staff Payment,900001916,10.00,
BEIS,The Insolvency Service,04/07/2018,Travel & Subsistence,Chief Executive Office,Staff Payment,900001916,27.00,
BEIS,The Insolvency Service,04/07/2018,Travel & Subsistence,Chief Executive Office,Staff Payment,900001916,2.40,
BEIS,The Insolvency Service,04/07/2018,Travel & Subsistence,Chief Executive Office,Staff Payment,900001916,2.40,
BEIS,The Insolvency Service,04/07/2018,Travel & Subsistence,Chief Executive Office,Staff Payment,900001916,5.00,
BEIS,The Insolvency Service,04/07/2018,Travel & Subsistence,Chief Executive Office,Staff Payment,900001916,5.00,
BEIS,The Insolvency Service,05/07/2018,Training,People & Capability,Skills For Justice (Enterprises) Ltd,300001166,252.00,167140810
BEIS,The Insolvency Service,05/07/2018,Agency Costs,Finance & Commercial,Capita Resourcing Ltd,300000580,1938.98,618184140
BEIS,The Insolvency Service,05/07/2018,Agency Costs,Finance & Commercial,Capita Resourcing Ltd,300000559,1292.65,618184140
BEIS,The Insolvency Service,05/07/2018,Employee Related Costs,People & Capability,Xperthr,300001393,4842.00,
BEIS,The Insolvency Service,05/07/2018,Investigation & Enforcement Costs,Investigations & Enforcement Services,Mendip Media Group Ltd (Now Trading As Appen) - (Transcri),300001302,297.37,609546425
BEIS,The Insolvency Service,05/07/2018,Investigation & Enforcement Costs,Investigations & Enforcement Services,Tnt Uk Ltd,300001059,10.61,354715057
BEIS,The Insolvency Service,05/07/2018,Investigation & Enforcement Costs,Investigations & Enforcement Services,Dwf,300001391,7764.50,
BEIS,The Insolvency Service,05/07/2018,Investigation & Enforcement Costs,Investigations & Enforcement Services,Dwf,300001390,4279.89,
BEIS,The Insolvency Service,05/07/2018,Insolvency Case Related Costs,Official Receiver Services,The Surveillance Group Ltd,300001110,2574.90,918530324
BEIS,The Insolvency Service,05/07/2018,Training,Investigations & Enforcement Services,Kpmg Llp,300000960,1607.00,791788859
BEIS,The Insolvency Service,05/07/2018,Investigation & Enforcement Costs,Official Receiver Services,Womble Bond Dickinson,300001384,55600.07,123392627
BEIS,The Insolvency Service,05/07/2018,Investigation & Enforcement Costs,Criminal Enforcement Team,G.I.S. Group Incorporating Global Investigation Services,300001417,240.00,
BEIS,The Insolvency Service,05/07/2018,Investigation & Enforcement Costs,Investigations & Enforcement Services,Mendip Media Group Ltd (Now Trading As Appen) - (Transcri),300001293,123.44,609546425
BEIS,The Insolvency Service,05/07/2018,Investigation & Enforcement Costs,Investigations & Enforcement Services,Mendip Media Group Ltd (Now Trading As Appen) - (Transcri),300001294,102.11,609546425
BEIS,The Insolvency Service,05/07/2018,Investigation & Enforcement Costs,Criminal Enforcement Team,Fairweather Whillis & Tog,300001446,60.00,800238084
BEIS,The Insolvency Service,05/07/2018,Investigation & Enforcement Costs,Investigations & Enforcement Services,Mendip Media Group Ltd (Now Trading As Appen) - (Transcri),300001295,298.42,609546425
BEIS,The Insolvency Service,05/07/2018,Computer and IT Systems,Business Service Division,Tnt Uk Ltd,300001456,17.69,354715057
BEIS,The Insolvency Service,05/07/2018,Accomodation,Official Receiver Services,Posturite (Uk) Ltd.,300001408,683.10,583565114
BEIS,The Insolvency Service,05/07/2018,Computer and IT Systems,Business Service Division,Tnt Uk Ltd,300001449,17.69,354715057
BEIS,The Insolvency Service,05/07/2018,Investigation & Enforcement Costs,Investigations & Enforcement Services,Womble Bond Dickinson,300002055,10920.60,123392627
BEIS,The Insolvency Service,05/07/2018,Investigation & Enforcement Costs,Investigations & Enforcement Services,Womble Bond Dickinson,300002057,705.78,123392627
BEIS,The Insolvency Service,05/07/2018,Investigation & Enforcement Costs,Investigations & Enforcement Services,Womble Bond Dickinson,300002060,96621.39,123392627
BEIS,The Insolvency Service,05/07/2018,Investigation & Enforcement Costs,Criminal Enforcement Team,Chamber Business Training,300001775,739.20,
BEIS,The Insolvency Service,05/07/2018,Investigation & Enforcement Costs,Criminal Enforcement Team,4 King's Bench Walk,300001850,1624.56,
BEIS,The Insolvency Service,05/07/2018,Investigation & Enforcement Costs,Criminal Enforcement Team,4 King's Bench Walk,300001856,351.12,
BEIS,The Insolvency Service,05/07/2018,Agency Costs,Finance & Commercial,Capita Business Services Ltd,300001772,5153.33,618184140
BEIS,The Insolvency Service,06/07/2018,Computer and IT Systems,Information & Technology,Hippo Software,300001441,1250.00,775090317
BEIS,The Insolvency Service,06/07/2018,Investigation & Enforcement Costs,Criminal Enforcement Team,St Philips Barristers,300000714,240.00,614053968
BEIS,The Insolvency Service,06/07/2018,Investigation & Enforcement Costs,Criminal Enforcement Team,Elvin Moore & Partners Solicitors,300000716,2787.78,354528348
BEIS,The Insolvency Service,06/07/2018,Investigation & Enforcement Costs,Criminal Enforcement Team,Invictus Chambers,300000715,488.16,
BEIS,The Insolvency Service,06/07/2018,Training,Strategy & Change,Korn Ferry Hay Group - Csl,300001448,7370.00,
BEIS,The Insolvency Service,06/07/2018,Computer and IT Systems,Information & Technology,Maintel,300001445,66720.00,744336531
BEIS,The Insolvency Service,06/07/2018,Computer and IT Systems,Information & Technology,Geoff Smith Associates Ltd,300001452,424.80,813047166
BEIS,The Insolvency Service,06/07/2018,Investigation & Enforcement Costs,Criminal Enforcement Team,Government Legal Department,300001851,570.24,766793665
BEIS,The Insolvency Service,06/07/2018,Investigation & Enforcement Costs,Criminal Enforcement Team,Government Legal Department,300001852,2598.00,766793665
BEIS,The Insolvency Service,06/07/2018,Travel & Subsistence,People & Capability,Staff Payment,900001766,159.00,
BEIS,The Insolvency Service,06/07/2018,Travel & Subsistence,Investigations & Enforcement Services,Staff Payment,900001939,4.80,
BEIS,The Insolvency Service,06/07/2018,Travel & Subsistence,Investigations & Enforcement Services,Staff Payment,900001939,12.00,
BEIS,The Insolvency Service,06/07/2018,Travel & Subsistence,Investigations & Enforcement Services,Staff Payment,900001940,12.00,
BEIS,The Insolvency Service,06/07/2018,Travel & Subsistence,Investigations & Enforcement Services,Staff Payment,900001942,12.00,
BEIS,The Insolvency Service,06/07/2018,Travel & Subsistence,Investigations & Enforcement Services,Staff Payment,900001942,4.80,
BEIS,The Insolvency Service,06/07/2018,Travel & Subsistence,Investigations & Enforcement Services,Staff Payment,900001943,3.44,
BEIS,The Insolvency Service,06/07/2018,Travel & Subsistence,Investigations & Enforcement Services,Staff Payment,900001944,4.80,
BEIS,The Insolvency Service,06/07/2018,Travel & Subsistence,Investigations & Enforcement Services,Staff Payment,900001945,4.80,
BEIS,The Insolvency Service,06/07/2018,Travel & Subsistence,Investigations & Enforcement Services,Staff Payment,900001945,12.00,
BEIS,The Insolvency Service,06/07/2018,Travel & Subsistence,People & Capability,Staff Payment,900001906,159.00,
BEIS,The Insolvency Service,06/07/2018,Travel & Subsistence,People & Capability,Staff Payment,900001991,5.00,
BEIS,The Insolvency Service,06/07/2018,Travel & Subsistence,People & Capability,Staff Payment,900001991,26.00,
BEIS,The Insolvency Service,06/07/2018,Travel & Subsistence,People & Capability,Staff Payment,900001991,15.00,
BEIS,The Insolvency Service,06/07/2018,Travel & Subsistence,Investigations & Enforcement Services,Staff Payment,900001977,4.80,
BEIS,The Insolvency Service,06/07/2018,Travel & Subsistence,Investigations & Enforcement Services,Staff Payment,900001977,3.75,
BEIS,The Insolvency Service,06/07/2018,Travel & Subsistence,People & Capability,Staff Payment,900001781,5.00,
BEIS,The Insolvency Service,06/07/2018,Travel & Subsistence,People & Capability,Staff Payment,900001781,5.00,
BEIS,The Insolvency Service,06/07/2018,Travel & Subsistence,People & Capability,Staff Payment,900001903,159.00,
BEIS,The Insolvency Service,06/07/2018,Travel & Subsistence,Official Receiver Services,Staff Payment,900001973,5.00,
BEIS,The Insolvency Service,06/07/2018,Travel & Subsistence,Official Receiver Services,Staff Payment,900001973,5.50,
BEIS,The Insolvency Service,06/07/2018,Travel & Subsistence,Official Receiver Services,Staff Payment,900001974,9.57,
BEIS,The Insolvency Service,06/07/2018,Travel & Subsistence,Official Receiver Services,Staff Payment,900001974,2.70,
BEIS,The Insolvency Service,06/07/2018,Travel & Subsistence,Official Receiver Services,Staff Payment,900001974,4.96,
BEIS,The Insolvency Service,06/07/2018,Travel & Subsistence,Official Receiver Services,Staff Payment,900001974,5.50,
BEIS,The Insolvency Service,06/07/2018,Travel & Subsistence,Official Receiver Services,Staff Payment,900001975,4.96,
BEIS,The Insolvency Service,06/07/2018,Travel & Subsistence,People & Capability,Staff Payment,900001804,4.48,
BEIS,The Insolvency Service,06/07/2018,Travel & Subsistence,Investigations & Enforcement Services,Staff Payment,900001917,19.80,
BEIS,The Insolvency Service,06/07/2018,Travel & Subsistence,Investigations & Enforcement Services,Staff Payment,900001986,3.39,
BEIS,The Insolvency Service,06/07/2018,Travel & Subsistence,Investigations & Enforcement Services,Staff Payment,900001986,15.60,
BEIS,The Insolvency Service,06/07/2018,Travel & Subsistence,Investigations & Enforcement Services,Staff Payment,900001986,4.50,
BEIS,The Insolvency Service,06/07/2018,Travel & Subsistence,Investigations & Enforcement Services,Staff Payment,900002013,4.50,
BEIS,The Insolvency Service,06/07/2018,Travel & Subsistence,Investigations & Enforcement Services,Staff Payment,900002013,15.60,
BEIS,The Insolvency Service,06/07/2018,Travel & Subsistence,People & Capability,Staff Payment,900001904,11.90,
BEIS,The Insolvency Service,06/07/2018,Travel & Subsistence,People & Capability,Staff Payment,900001905,3.49,
BEIS,The Insolvency Service,06/07/2018,Travel & Subsistence,People & Capability,Staff Payment,900001905,9.99,
BEIS,The Insolvency Service,06/07/2018,Travel & Subsistence,People & Capability,Staff Payment,900001632,5.00,
BEIS,The Insolvency Service,06/07/2018,Travel & Subsistence,People & Capability,Staff Payment,900001632,15.00,
BEIS,The Insolvency Service,06/07/2018,Travel & Subsistence,People & Capability,Staff Payment,900001632,5.00,
BEIS,The Insolvency Service,06/07/2018,Travel & Subsistence,Official Receiver Services,Staff Payment,900001911,5.00,
BEIS,The Insolvency Service,06/07/2018,Travel & Subsistence,Official Receiver Services,Staff Payment,900001911,3.60,
BEIS,The Insolvency Service,06/07/2018,Travel & Subsistence,Official Receiver Services,Staff Payment,900001911,27.00,
BEIS,The Insolvency Service,06/07/2018,Travel & Subsistence,Official Receiver Services,Staff Payment,900001911,27.00,
BEIS,The Insolvency Service,06/07/2018,Travel & Subsistence,Official Receiver Services,Staff Payment,900001911,2.20,
BEIS,The Insolvency Service,06/07/2018,Travel & Subsistence,Official Receiver Services,Staff Payment,900001911,10.40,
BEIS,The Insolvency Service,06/07/2018,Travel & Subsistence,Official Receiver Services,Staff Payment,900001911,8.69,
BEIS,The Insolvency Service,06/07/2018,Travel & Subsistence,Official Receiver Services,Staff Payment,900001998,24.30,
BEIS,The Insolvency Service,06/07/2018,Travel & Subsistence,Official Receiver Services,Staff Payment,900001998,24.30,
BEIS,The Insolvency Service,06/07/2018,Travel & Subsistence,Official Receiver Services,Staff Payment,900001879,6.00,
BEIS,The Insolvency Service,06/07/2018,Travel & Subsistence,Official Receiver Services,Staff Payment,900001879,5.00,
BEIS,The Insolvency Service,06/07/2018,Travel & Subsistence,People & Capability,Staff Payment,900001728,5.00,
BEIS,The Insolvency Service,06/07/2018,Travel & Subsistence,Official Receiver Services,Staff Payment,900001989,58.05,
BEIS,The Insolvency Service,06/07/2018,Travel & Subsistence,Official Receiver Services,Staff Payment,900001989,5.00,
BEIS,The Insolvency Service,06/07/2018,Travel & Subsistence,Official Receiver Services,Staff Payment,900001989,3.00,
BEIS,The Insolvency Service,06/07/2018,Travel & Subsistence,People & Capability,Staff Payment,900001731,15.00,
BEIS,The Insolvency Service,06/07/2018,Travel & Subsistence,People & Capability,Staff Payment,900001731,5.00,
BEIS,The Insolvency Service,06/07/2018,Travel & Subsistence,People & Capability,Staff Payment,900001731,5.00,
BEIS,The Insolvency Service,06/07/2018,Travel & Subsistence,Official Receiver Services,Staff Payment,900002009,27.90,
BEIS,The Insolvency Service,06/07/2018,Travel & Subsistence,Investigations & Enforcement Services,Staff Payment,900001401,0.00,
BEIS,The Insolvency Service,06/07/2018,Travel & Subsistence,Investigations & Enforcement Services,Staff Payment,900001401,81.00,
BEIS,The Insolvency Service,06/07/2018,Travel & Subsistence,People & Capability,Staff Payment,900001578,10.00,
BEIS,The Insolvency Service,06/07/2018,Travel & Subsistence,People & Capability,Staff Payment,900001578,30.00,
BEIS,The Insolvency Service,06/07/2018,Travel & Subsistence,People & Capability,Staff Payment,900001578,9.19,
BEIS,The Insolvency Service,06/07/2018,Travel & Subsistence,Investigations & Enforcement Services,Staff Payment,900001801,48.60,
BEIS,The Insolvency Service,06/07/2018,Travel & Subsistence,Investigations & Enforcement Services,Staff Payment,900001801,3.34,
BEIS,The Insolvency Service,06/07/2018,Travel & Subsistence,Investigations & Enforcement Services,Staff Payment,900002007,5.00,
BEIS,The Insolvency Service,06/07/2018,Travel & Subsistence,Investigations & Enforcement Services,Staff Payment,900002007,4.30,
BEIS,The Insolvency Service,06/07/2018,Travel & Subsistence,Investigations & Enforcement Services,Staff Payment,900002007,4.70,
BEIS,The Insolvency Service,06/07/2018,Travel & Subsistence,Investigations & Enforcement Services,Staff Payment,900002008,4.30,
BEIS,The Insolvency Service,06/07/2018,Travel & Subsistence,Investigations & Enforcement Services,Staff Payment,900002008,5.00,
BEIS,The Insolvency Service,06/07/2018,Travel & Subsistence,People & Capability,Staff Payment,900001160,2.40,
BEIS,The Insolvency Service,06/07/2018,Travel & Subsistence,People & Capability,Staff Payment,900001160,17.84,
BEIS,The Insolvency Service,06/07/2018,Travel & Subsistence,People & Capability,Staff Payment,900001160,9.60,
BEIS,The Insolvency Service,06/07/2018,Travel & Subsistence,People & Capability,Staff Payment,900001160,12.00,
BEIS,The Insolvency Service,06/07/2018,Travel & Subsistence,Investigations & Enforcement Services,Staff Payment,900002004,10.00,
BEIS,The Insolvency Service,06/07/2018,Travel & Subsistence,Investigations & Enforcement Services,Staff Payment,900002004,5.00,
BEIS,The Insolvency Service,06/07/2018,Travel & Subsistence,Investigations & Enforcement Services,Staff Payment,900002004,1.50,
BEIS,The Insolvency Service,06/07/2018,Travel & Subsistence,Investigations & Enforcement Services,Staff Payment,900002004,6.30,
BEIS,The Insolvency Service,06/07/2018,Travel & Subsistence,Investigations & Enforcement Services,Staff Payment,900002004,57.60,
BEIS,The Insolvency Service,06/07/2018,Travel & Subsistence,Investigations & Enforcement Services,Staff Payment,900002004,58.95,
BEIS,The Insolvency Service,06/07/2018,Travel & Subsistence,Investigations & Enforcement Services,Staff Payment,900002004,1.67,
BEIS,The Insolvency Service,06/07/2018,Travel & Subsistence,Investigations & Enforcement Services,Staff Payment,900002004,1.67,
BEIS,The Insolvency Service,06/07/2018,Travel & Subsistence,Investigations & Enforcement Services,Staff Payment,900002004,1.57,
BEIS,The Insolvency Service,06/07/2018,Travel & Subsistence,Investigations & Enforcement Services,Staff Payment,900002004,11.80,
BEIS,The Insolvency Service,06/07/2018,Travel & Subsistence,Investigations & Enforcement Services,Staff Payment,900002004,7.10,
BEIS,The Insolvency Service,06/07/2018,Travel & Subsistence,Investigations & Enforcement Services,Staff Payment,900002004,0.96,
BEIS,The Insolvency Service,06/07/2018,Travel & Subsistence,Investigations & Enforcement Services,Staff Payment,900002004,4.84,
BEIS,The Insolvency Service,06/07/2018,Travel & Subsistence,Investigations & Enforcement Services,Staff Payment,900002004,5.00,
BEIS,The Insolvency Service,06/07/2018,Travel & Subsistence,Investigations & Enforcement Services,Staff Payment,900001962,4.58,
BEIS,The Insolvency Service,06/07/2018,Travel & Subsistence,Investigations & Enforcement Services,Staff Payment,900001962,4.00,
BEIS,The Insolvency Service,06/07/2018,Travel & Subsistence,Investigations & Enforcement Services,Staff Payment,900001962,5.50,
BEIS,The Insolvency Service,06/07/2018,Travel & Subsistence,Investigations & Enforcement Services,Staff Payment,900001962,1.80,
BEIS,The Insolvency Service,06/07/2018,Travel & Subsistence,Investigations & Enforcement Services,Staff Payment,900001962,55.35,
BEIS,The Insolvency Service,06/07/2018,Travel & Subsistence,Investigations & Enforcement Services,Staff Payment,900001962,1.80,
BEIS,The Insolvency Service,06/07/2018,Travel & Subsistence,Investigations & Enforcement Services,Staff Payment,900001962,1.80,
BEIS,The Insolvency Service,06/07/2018,Travel & Subsistence,Investigations & Enforcement Services,Staff Payment,900001962,5.00,
BEIS,The Insolvency Service,06/07/2018,Travel & Subsistence,Investigations & Enforcement Services,Staff Payment,900001962,5.00,
BEIS,The Insolvency Service,06/07/2018,Travel & Subsistence,Investigations & Enforcement Services,Staff Payment,900001962,5.10,
BEIS,The Insolvency Service,06/07/2018,Travel & Subsistence,Investigations & Enforcement Services,Staff Payment,900001962,46.00,
BEIS,The Insolvency Service,06/07/2018,Travel & Subsistence,Investigations & Enforcement Services,Staff Payment,900001962,5.50,
BEIS,The Insolvency Service,06/07/2018,Travel & Subsistence,Investigations & Enforcement Services,Staff Payment,900001913,5.00,
BEIS,The Insolvency Service,06/07/2018,Travel & Subsistence,Investigations & Enforcement Services,Staff Payment,900001913,18.65,
BEIS,The Insolvency Service,06/07/2018,Travel & Subsistence,Investigations & Enforcement Services,Staff Payment,900001913,5.00,
BEIS,The Insolvency Service,06/07/2018,Travel & Subsistence,Investigations & Enforcement Services,Staff Payment,900001913,135.88,
BEIS,The Insolvency Service,06/07/2018,Travel & Subsistence,Investigations & Enforcement Services,Staff Payment,900001913,3.10,
BEIS,The Insolvency Service,06/07/2018,Travel & Subsistence,Investigations & Enforcement Services,Staff Payment,900001913,20.70,
BEIS,The Insolvency Service,06/07/2018,Travel & Subsistence,Investigations & Enforcement Services,Staff Payment,900001913,12.41,
BEIS,The Insolvency Service,06/07/2018,Travel & Subsistence,Investigations & Enforcement Services,Staff Payment,900001913,16.80,
BEIS,The Insolvency Service,06/07/2018,Travel & Subsistence,Investigations & Enforcement Services,Staff Payment,900001913,22.50,
BEIS,The Insolvency Service,06/07/2018,Travel & Subsistence,Investigations & Enforcement Services,Staff Payment,900001913,108.00,
BEIS,The Insolvency Service,06/07/2018,Travel & Subsistence,Investigations & Enforcement Services,Staff Payment,900001913,2.70,
BEIS,The Insolvency Service,06/07/2018,Travel & Subsistence,Investigations & Enforcement Services,Staff Payment,900001913,2.70,
BEIS,The Insolvency Service,06/07/2018,Travel & Subsistence,Investigations & Enforcement Services,Staff Payment,900001971,28.80,
BEIS,The Insolvency Service,06/07/2018,Travel & Subsistence,Investigations & Enforcement Services,Staff Payment,900001971,92.70,
BEIS,The Insolvency Service,06/07/2018,Travel & Subsistence,Investigations & Enforcement Services,Staff Payment,900001971,45.90,
BEIS,The Insolvency Service,06/07/2018,Travel & Subsistence,Investigations & Enforcement Services,Staff Payment,900001971,27.90,
BEIS,The Insolvency Service,06/07/2018,Travel & Subsistence,Investigations & Enforcement Services,Staff Payment,900001993,126.90,
BEIS,The Insolvency Service,06/07/2018,Travel & Subsistence,Investigations & Enforcement Services,Staff Payment,900001993,5.00,
BEIS,The Insolvency Service,06/07/2018,Travel & Subsistence,Investigations & Enforcement Services,Staff Payment,900001993,4.75,
BEIS,The Insolvency Service,06/07/2018,Travel & Subsistence,Investigations & Enforcement Services,Staff Payment,900001993,2.20,
BEIS,The Insolvency Service,06/07/2018,Travel & Subsistence,Investigations & Enforcement Services,Staff Payment,900001993,5.00,
BEIS,The Insolvency Service,06/07/2018,Travel & Subsistence,Investigations & Enforcement Services,Staff Payment,900002029,35.00,
BEIS,The Insolvency Service,06/07/2018,Travel & Subsistence,Investigations & Enforcement Services,Staff Payment,900002029,5.00,
BEIS,The Insolvency Service,06/07/2018,Travel & Subsistence,Investigations & Enforcement Services,Staff Payment,900002029,91.80,
BEIS,The Insolvency Service,06/07/2018,Travel & Subsistence,Investigations & Enforcement Services,Staff Payment,900002029,4.40,
BEIS,The Insolvency Service,06/07/2018,Travel & Subsistence,Investigations & Enforcement Services,Staff Payment,900002029,5.00,
BEIS,The Insolvency Service,06/07/2018,Travel & Subsistence,Investigations & Enforcement Services,Staff Payment,900002029,25.00,
BEIS,The Insolvency Service,06/07/2018,Travel & Subsistence,Investigations & Enforcement Services,Staff Payment,900002029,75.00,
BEIS,The Insolvency Service,06/07/2018,Travel & Subsistence,Investigations & Enforcement Services,Staff Payment,900002029,94.50,
BEIS,The Insolvency Service,06/07/2018,Travel & Subsistence,Investigations & Enforcement Services,Staff Payment,900002029,29.50,
BEIS,The Insolvency Service,06/07/2018,Travel & Subsistence,Investigations & Enforcement Services,Staff Payment,900002029,28.80,
BEIS,The Insolvency Service,06/07/2018,Travel & Subsistence,Investigations & Enforcement Services,Staff Payment,900002029,10.30,
BEIS,The Insolvency Service,06/07/2018,Travel & Subsistence,Investigations & Enforcement Services,Staff Payment,900002031,101.00,
BEIS,The Insolvency Service,06/07/2018,Travel & Subsistence,Investigations & Enforcement Services,Staff Payment,900002031,30.00,
BEIS,The Insolvency Service,06/07/2018,Travel & Subsistence,Investigations & Enforcement Services,Staff Payment,900002031,5.00,
BEIS,The Insolvency Service,06/07/2018,Travel & Subsistence,Investigations & Enforcement Services,Staff Payment,900002031,74.70,
BEIS,The Insolvency Service,06/07/2018,Travel & Subsistence,Investigations & Enforcement Services,Staff Payment,900002032,70.65,
BEIS,The Insolvency Service,06/07/2018,Travel & Subsistence,Investigations & Enforcement Services,Staff Payment,900002032,98.80,
BEIS,The Insolvency Service,06/07/2018,Travel & Subsistence,Investigations & Enforcement Services,Staff Payment,900002032,30.00,
BEIS,The Insolvency Service,06/07/2018,Travel & Subsistence,Investigations & Enforcement Services,Staff Payment,900002032,4.00,
BEIS,The Insolvency Service,06/07/2018,Travel & Subsistence,Investigations & Enforcement Services,Staff Payment,900002032,13.00,
BEIS,The Insolvency Service,06/07/2018,Travel & Subsistence,People & Capability,Staff Payment,900001571,2.60,
BEIS,The Insolvency Service,06/07/2018,Travel & Subsistence,People & Capability,Staff Payment,900001571,1.60,
BEIS,The Insolvency Service,06/07/2018,Travel & Subsistence,People & Capability,Staff Payment,900001571,4.40,
BEIS,The Insolvency Service,06/07/2018,Travel & Subsistence,Official Receiver Services,Staff Payment,900001571,7.50,
BEIS,The Insolvency Service,06/07/2018,Travel & Subsistence,People & Capability,Staff Payment,900001571,7.50,
BEIS,The Insolvency Service,06/07/2018,Travel & Subsistence,People & Capability,Staff Payment,900001571,18.90,
BEIS,The Insolvency Service,06/07/2018,Travel & Subsistence,People & Capability,Staff Payment,900001571,18.90,
BEIS,The Insolvency Service,06/07/2018,Travel & Subsistence,People & Capability,Staff Payment,900001571,1.60,
BEIS,The Insolvency Service,06/07/2018,Travel & Subsistence,People & Capability,Staff Payment,900001571,4.00,
BEIS,The Insolvency Service,06/07/2018,Travel & Subsistence,People & Capability,Staff Payment,900001571,3.10,
BEIS,The Insolvency Service,06/07/2018,Travel & Subsistence,People & Capability,Staff Payment,900001571,4.00,
BEIS,The Insolvency Service,06/07/2018,Travel & Subsistence,People & Capability,Staff Payment,900001571,4.00,
BEIS,The Insolvency Service,06/07/2018,Travel & Subsistence,People & Capability,Staff Payment,900001571,1.50,
BEIS,The Insolvency Service,06/07/2018,Travel & Subsistence,Investigations & Enforcement Services,Staff Payment,900001970,27.90,
BEIS,The Insolvency Service,06/07/2018,Travel & Subsistence,Investigations & Enforcement Services,Staff Payment,900001970,6.50,
BEIS,The Insolvency Service,06/07/2018,Travel & Subsistence,Investigations & Enforcement Services,Staff Payment,900001970,63.00,
BEIS,The Insolvency Service,06/07/2018,Travel & Subsistence,Investigations & Enforcement Services,Staff Payment,900001970,7.00,
BEIS,The Insolvency Service,06/07/2018,Travel & Subsistence,Investigations & Enforcement Services,Staff Payment,900001970,2.20,
BEIS,The Insolvency Service,06/07/2018,Travel & Subsistence,Investigations & Enforcement Services,Staff Payment,900001970,4.09,
BEIS,The Insolvency Service,06/07/2018,Travel & Subsistence,Investigations & Enforcement Services,Staff Payment,900001953,3.05,
BEIS,The Insolvency Service,06/07/2018,Travel & Subsistence,Investigations & Enforcement Services,Staff Payment,900001954,56.70,
BEIS,The Insolvency Service,06/07/2018,Travel & Subsistence,Investigations & Enforcement Services,Staff Payment,900001954,4.81,
BEIS,The Insolvency Service,06/07/2018,Travel & Subsistence,Official Receiver Services,Staff Payment,900001468,5.00,
BEIS,The Insolvency Service,06/07/2018,Travel & Subsistence,Official Receiver Services,Staff Payment,900001468,15.00,
BEIS,The Insolvency Service,06/07/2018,Travel & Subsistence,Official Receiver Services,Staff Payment,900001468,3.30,
BEIS,The Insolvency Service,06/07/2018,Travel & Subsistence,Investigations & Enforcement Services,Staff Payment,900001992,9.85,
BEIS,The Insolvency Service,09/07/2018,Investigation & Enforcement Costs,Criminal Enforcement Team,18 Red Lion Court Chambers,300001865,120.00,766793665
BEIS,The Insolvency Service,09/07/2018,Travel & Subsistence,Investigations & Enforcement Services,Staff Payment,900001972,5.00,
BEIS,The Insolvency Service,09/07/2018,Travel & Subsistence,Investigations & Enforcement Services,Staff Payment,900001972,9.80,
BEIS,The Insolvency Service,09/07/2018,Travel & Subsistence,Investigations & Enforcement Services,Staff Payment,900001972,7.30,
BEIS,The Insolvency Service,09/07/2018,Travel & Subsistence,Investigations & Enforcement Services,Staff Payment,900001476,27.95,
BEIS,The Insolvency Service,09/07/2018,Travel & Subsistence,Investigations & Enforcement Services,Staff Payment,900001476,8.75,
BEIS,The Insolvency Service,09/07/2018,Travel & Subsistence,Investigations & Enforcement Services,Staff Payment,900002016,5.00,
BEIS,The Insolvency Service,09/07/2018,Travel & Subsistence,Investigations & Enforcement Services,Staff Payment,900002016,13.50,
BEIS,The Insolvency Service,09/07/2018,Travel & Subsistence,Investigations & Enforcement Services,Staff Payment,900002016,12.40,
BEIS,The Insolvency Service,09/07/2018,Travel & Subsistence,Investigations & Enforcement Services,Staff Payment,900002016,5.00,
BEIS,The Insolvency Service,09/07/2018,Travel & Subsistence,Investigations & Enforcement Services,Staff Payment,900002016,4.20,
BEIS,The Insolvency Service,09/07/2018,Travel & Subsistence,Investigations & Enforcement Services,Staff Payment,900002035,34.00,
BEIS,The Insolvency Service,09/07/2018,Travel & Subsistence,Strategy & Change,Staff Payment,900001861,4.50,
BEIS,The Insolvency Service,09/07/2018,Travel & Subsistence,Strategy & Change,Staff Payment,900001861,3.50,
BEIS,The Insolvency Service,09/07/2018,Travel & Subsistence,Strategy & Change,Staff Payment,900001861,5.00,
BEIS,The Insolvency Service,09/07/2018,Travel & Subsistence,Strategy & Change,Staff Payment,900001861,15.00,
BEIS,The Insolvency Service,09/07/2018,Travel & Subsistence,Strategy & Change,Staff Payment,900001861,5.00,
BEIS,The Insolvency Service,09/07/2018,Travel & Subsistence,Strategy & Change,Staff Payment,900001861,15.00,
BEIS,The Insolvency Service,09/07/2018,Travel & Subsistence,Strategy & Change,Staff Payment,900001862,5.00,
BEIS,The Insolvency Service,09/07/2018,Travel & Subsistence,Strategy & Change,Staff Payment,900001862,5.00,
BEIS,The Insolvency Service,09/07/2018,Travel & Subsistence,Strategy & Change,Staff Payment,900001822,10.00,
BEIS,The Insolvency Service,09/07/2018,Travel & Subsistence,Investigations & Enforcement Services,Staff Payment,900002025,2.80,
BEIS,The Insolvency Service,09/07/2018,Travel & Subsistence,Investigations & Enforcement Services,Staff Payment,900002025,7.50,
BEIS,The Insolvency Service,09/07/2018,Travel & Subsistence,Investigations & Enforcement Services,Staff Payment,900002025,171.00,
BEIS,The Insolvency Service,09/07/2018,Travel & Subsistence,Investigations & Enforcement Services,Staff Payment,900002026,32.40,
BEIS,The Insolvency Service,09/07/2018,Travel & Subsistence,Investigations & Enforcement Services,Staff Payment,900002026,5.00,
BEIS,The Insolvency Service,09/07/2018,Travel & Subsistence,Investigations & Enforcement Services,Staff Payment,900002027,63.90,
BEIS,The Insolvency Service,09/07/2018,Travel & Subsistence,Investigations & Enforcement Services,Staff Payment,900002021,64.35,
BEIS,The Insolvency Service,09/07/2018,Travel & Subsistence,Investigations & Enforcement Services,Staff Payment,900002021,64.35,
BEIS,The Insolvency Service,10/07/2018,Insolvency Case Related Costs,Official Receiver Services,REGISTRAR OF COMPANIES,300001643,300.00,
BEIS,The Insolvency Service,10/07/2018,Investigation & Enforcement Costs,Official Receiver Services,Hmcts,300001640,110.00,
BEIS,The Insolvency Service,10/07/2018,Investigation & Enforcement Costs,Official Receiver Services,Hmcts,300001642,308.00,
BEIS,The Insolvency Service,10/07/2018,Investigation & Enforcement Costs,Official Receiver Services,Hmcts,300001639,308.00,
BEIS,The Insolvency Service,10/07/2018,Investigation & Enforcement Costs,Official Receiver Services,Hmcts,300001638,528.00,
BEIS,The Insolvency Service,10/07/2018,Investigation & Enforcement Costs,Official Receiver Services,HMCTS,300001646,280.00,
BEIS,The Insolvency Service,10/07/2018,Investigation & Enforcement Costs,Official Receiver Services,HMCTS,300001644,308.00,
BEIS,The Insolvency Service,10/07/2018,Investigation & Enforcement Costs,Official Receiver Services,HMCTS,300001647,528.00,
BEIS,The Insolvency Service,10/07/2018,Investigation & Enforcement Costs,Investigations & Enforcement Services,Clarke Willmott Solicitors,300001867,266.27,129913060
BEIS,The Insolvency Service,11/07/2018,Insolvency Case Related Costs,Official Receiver Services,The Stationery Office Ltd,300001948,74.58,662774703
BEIS,The Insolvency Service,11/07/2018,Employee Related Costs,Information & Technology,Posturite (Uk) Ltd.,300001934,37.92,583565114
BEIS,The Insolvency Service,11/07/2018,Employee Related Costs,Criminal Enforcement Team,Tmp (Uk) Ltd,300001853,8237.50,872904502
BEIS,The Insolvency Service,11/07/2018,Investigation & Enforcement Costs,Criminal Enforcement Team,18 Red Lion Court Chambers,300001857,2024.76,766793665
BEIS,The Insolvency Service,11/07/2018,Investigation & Enforcement Costs,Criminal Enforcement Team,18 Red Lion Court Chambers,300001860,1296.00,766793665
BEIS,The Insolvency Service,12/07/2018,Computer and IT Systems,Strategy & Change,Nettitude Ltd,300001533,3750.00,184517196
BEIS,The Insolvency Service,12/07/2018,Computer and IT Systems,Strategy & Change,Nettitude Ltd,300001533,750.00,184517196
BEIS,The Insolvency Service,12/07/2018,Investigation & Enforcement Costs,Official Receiver Services,Womble Bond Dickinson,300001547,21453.58,123392627
BEIS,The Insolvency Service,12/07/2018,Computer and IT Systems,Information & Technology,Bt Telephone Payment Centre,300001420,8887.24,245719348
BEIS,The Insolvency Service,12/07/2018,Insolvency Case Related Costs,Official Receiver Services,The Stationery Office Ltd,300001946,149.16,662774703
BEIS,The Insolvency Service,12/07/2018,Investigation & Enforcement Costs,Criminal Enforcement Team,4 King's Bench Walk,300001998,470.69,
BEIS,The Insolvency Service,12/07/2018,Investigation & Enforcement Costs,Criminal Enforcement Team,4 King's Bench Walk,300001999,640.39,
BEIS,The Insolvency Service,12/07/2018,Investigation & Enforcement Costs,Criminal Enforcement Team,4 King's Bench Walk,300002000,739.20,
BEIS,The Insolvency Service,13/07/2018,Insolvency Case Related Costs,Official Receiver Services,Companies House,300001356,6.00,GD255
BEIS,The Insolvency Service,13/07/2018,Investigation & Enforcement Costs,Investigations & Enforcement Services,Howes Percival,300001399,4075.04,119523573
BEIS,The Insolvency Service,13/07/2018,Investigation & Enforcement Costs,Investigations & Enforcement Services,Howes Percival,300001399,196.00,119523573
BEIS,The Insolvency Service,13/07/2018,Investigation & Enforcement Costs,Investigations & Enforcement Services,Howes Percival,300001401,528.00,119523573
BEIS,The Insolvency Service,13/07/2018,Investigation & Enforcement Costs,Investigations & Enforcement Services,Howes Percival,300001401,6092.84,119523573
BEIS,The Insolvency Service,13/07/2018,Investigation & Enforcement Costs,Investigations & Enforcement Services,Howes Percival,300001406,4759.40,119523573
BEIS,The Insolvency Service,13/07/2018,Investigation & Enforcement Costs,Investigations & Enforcement Services,Howes Percival,300001406,55.00,119523573
BEIS,The Insolvency Service,13/07/2018,Investigation & Enforcement Costs,Investigations & Enforcement Services,Dwf,300001385,8213.99,
BEIS,The Insolvency Service,13/07/2018,Computer and IT Systems,Investigations & Enforcement Services,Royal Mail,300001057,72.28,243170002
BEIS,The Insolvency Service,13/07/2018,Insolvency Case Related Costs,Official Receiver Services,The Stationery Office Ltd,300001436,223.74,662774703
BEIS,The Insolvency Service,13/07/2018,Insolvency Case Related Costs,Official Receiver Services,The Stationery Office Ltd,300001944,149.16,662774703
BEIS,The Insolvency Service,13/07/2018,Computer and IT Systems,Investigations & Enforcement Services,Tnt Uk Ltd,300001962,28.37,354715057
BEIS,The Insolvency Service,13/07/2018,Investigation & Enforcement Costs,Criminal Enforcement Team,Police And Crime Commissioner For Hampshire,300001859,624.00,
BEIS,The Insolvency Service,13/07/2018,Investigation & Enforcement Costs,Criminal Enforcement Team,Citadel Chambers,300001858,684.00,241217250
BEIS,The Insolvency Service,13/07/2018,Other Costs,Criminal Enforcement Team,"Department For Business, Energy And Industrial Strategy (Be)",300001854,335.00,
BEIS,The Insolvency Service,13/07/2018,Travel & Subsistence,Investigations & Enforcement Services,Staff Payment,900001828,20.25,
BEIS,The Insolvency Service,13/07/2018,Travel & Subsistence,Investigations & Enforcement Services,Staff Payment,900001828,22.05,
BEIS,The Insolvency Service,13/07/2018,Travel & Subsistence,Investigations & Enforcement Services,Staff Payment,900001828,20.25,
BEIS,The Insolvency Service,13/07/2018,Travel & Subsistence,Investigations & Enforcement Services,Staff Payment,900001828,5.00,
BEIS,The Insolvency Service,13/07/2018,Travel & Subsistence,Investigations & Enforcement Services,Staff Payment,900001828,22.05,
BEIS,The Insolvency Service,13/07/2018,Travel & Subsistence,Investigations & Enforcement Services,Staff Payment,900001830,20.25,
BEIS,The Insolvency Service,13/07/2018,Travel & Subsistence,Investigations & Enforcement Services,Staff Payment,900001830,20.25,
BEIS,The Insolvency Service,13/07/2018,Travel & Subsistence,Investigations & Enforcement Services,Staff Payment,900001830,5.00,
BEIS,The Insolvency Service,13/07/2018,Travel & Subsistence,Official Receiver Services,Staff Payment,900001561,7.20,
BEIS,The Insolvency Service,13/07/2018,Travel & Subsistence,Official Receiver Services,Staff Payment,900001561,7.20,
BEIS,The Insolvency Service,13/07/2018,Travel & Subsistence,Official Receiver Services,Staff Payment,900001561,5.00,
BEIS,The Insolvency Service,13/07/2018,Travel & Subsistence,Official Receiver Services,Staff Payment,900002050,1.08,
BEIS,The Insolvency Service,13/07/2018,Travel & Subsistence,Official Receiver Services,Staff Payment,900002050,7.20,
BEIS,The Insolvency Service,13/07/2018,Travel & Subsistence,Official Receiver Services,Staff Payment,900002050,12.79,
BEIS,The Insolvency Service,13/07/2018,Travel & Subsistence,Official Receiver Services,Staff Payment,900002050,10.00,
BEIS,The Insolvency Service,13/07/2018,Travel & Subsistence,Business Service Division,Staff Payment,900001770,5.65,
BEIS,The Insolvency Service,13/07/2018,Travel & Subsistence,Business Service Division,Staff Payment,900001770,3.34,
BEIS,The Insolvency Service,13/07/2018,Travel & Subsistence,Business Service Division,Staff Payment,900001770,34.20,
BEIS,The Insolvency Service,13/07/2018,Travel & Subsistence,Business Service Division,Staff Payment,900001770,34.20,
BEIS,The Insolvency Service,13/07/2018,Travel & Subsistence,Business Service Division,Staff Payment,900001770,5.00,
BEIS,The Insolvency Service,13/07/2018,Travel & Subsistence,Business Service Division,Staff Payment,900001770,7.78,
BEIS,The Insolvency Service,13/07/2018,Travel & Subsistence,Business Service Division,Staff Payment,900001891,5.00,
BEIS,The Insolvency Service,13/07/2018,Travel & Subsistence,Business Service Division,Staff Payment,900001891,9.50,
BEIS,The Insolvency Service,13/07/2018,Travel & Subsistence,Business Service Division,Staff Payment,900001891,15.00,
BEIS,The Insolvency Service,13/07/2018,Travel & Subsistence,Business Service Division,Staff Payment,900001891,53.55,
BEIS,The Insolvency Service,13/07/2018,Travel & Subsistence,Business Service Division,Staff Payment,900001891,53.55,
BEIS,The Insolvency Service,13/07/2018,Travel & Subsistence,Business Service Division,Staff Payment,900001891,3.34,
BEIS,The Insolvency Service,13/07/2018,Travel & Subsistence,Investigations & Enforcement Services,Staff Payment,900001790,11.25,
BEIS,The Insolvency Service,13/07/2018,Travel & Subsistence,Investigations & Enforcement Services,Staff Payment,900001790,12.00,
BEIS,The Insolvency Service,13/07/2018,Travel & Subsistence,Investigations & Enforcement Services,Staff Payment,900001796,10.80,
BEIS,The Insolvency Service,13/07/2018,Travel & Subsistence,Investigations & Enforcement Services,Staff Payment,900001796,12.00,
BEIS,The Insolvency Service,13/07/2018,Travel & Subsistence,Investigations & Enforcement Services,Staff Payment,900001796,15.00,
BEIS,The Insolvency Service,13/07/2018,Travel & Subsistence,Investigations & Enforcement Services,Staff Payment,900001796,5.00,
BEIS,The Insolvency Service,13/07/2018,Travel & Subsistence,Investigations & Enforcement Services,Staff Payment,900001796,15.00,
BEIS,The Insolvency Service,13/07/2018,Travel & Subsistence,Investigations & Enforcement Services,Staff Payment,900001796,5.00,
BEIS,The Insolvency Service,13/07/2018,Travel & Subsistence,Investigations & Enforcement Services,Staff Payment,900001796,5.00,
BEIS,The Insolvency Service,13/07/2018,Travel & Subsistence,Investigations & Enforcement Services,Staff Payment,900001796,9.00,
BEIS,The Insolvency Service,13/07/2018,Travel & Subsistence,Investigations & Enforcement Services,Staff Payment,900001796,5.00,
BEIS,The Insolvency Service,13/07/2018,Travel & Subsistence,Investigations & Enforcement Services,Staff Payment,900001796,5.00,
BEIS,The Insolvency Service,13/07/2018,Travel & Subsistence,Investigations & Enforcement Services,Staff Payment,900002114,5.00,
BEIS,The Insolvency Service,13/07/2018,Travel & Subsistence,Investigations & Enforcement Services,Staff Payment,900001397,74.25,
BEIS,The Insolvency Service,13/07/2018,Travel & Subsistence,Investigations & Enforcement Services,Staff Payment,900001397,74.25,
BEIS,The Insolvency Service,13/07/2018,Travel & Subsistence,Investigations & Enforcement Services,Staff Payment,900001397,5.00,
BEIS,The Insolvency Service,13/07/2018,Travel & Subsistence,Investigations & Enforcement Services,Staff Payment,900001399,18.00,
BEIS,The Insolvency Service,13/07/2018,Travel & Subsistence,Investigations & Enforcement Services,Staff Payment,900001399,6.00,
BEIS,The Insolvency Service,13/07/2018,Travel & Subsistence,Investigations & Enforcement Services,Staff Payment,900001399,18.00,
BEIS,The Insolvency Service,13/07/2018,Travel & Subsistence,Official Receiver Services,Staff Payment,900001515,5.00,
BEIS,The Insolvency Service,13/07/2018,Travel & Subsistence,Official Receiver Services,Staff Payment,900001515,3.40,
BEIS,The Insolvency Service,13/07/2018,Travel & Subsistence,Official Receiver Services,Staff Payment,900001551,7.00,
BEIS,The Insolvency Service,13/07/2018,Travel & Subsistence,Chief Executive Office,Staff Payment,900001874,18.00,
BEIS,The Insolvency Service,13/07/2018,Travel & Subsistence,Official Receiver Services,Staff Payment,900002124,12.60,
BEIS,The Insolvency Service,13/07/2018,Travel & Subsistence,Official Receiver Services,Staff Payment,900002124,3.10,
BEIS,The Insolvency Service,13/07/2018,Travel & Subsistence,Investigations & Enforcement Services,Staff Payment,900002101,4.85,
BEIS,The Insolvency Service,13/07/2018,Travel & Subsistence,Investigations & Enforcement Services,Staff Payment,900002101,99.90,
BEIS,The Insolvency Service,13/07/2018,Travel & Subsistence,Investigations & Enforcement Services,Staff Payment,900002145,62.00,
BEIS,The Insolvency Service,13/07/2018,Travel & Subsistence,Investigations & Enforcement Services,Staff Payment,900002145,5.00,
BEIS,The Insolvency Service,13/07/2018,Travel & Subsistence,Investigations & Enforcement Services,Staff Payment,900002145,2.45,
BEIS,The Insolvency Service,13/07/2018,Travel & Subsistence,Investigations & Enforcement Services,Staff Payment,900002145,5.00,
BEIS,The Insolvency Service,13/07/2018,Travel & Subsistence,Investigations & Enforcement Services,Staff Payment,900002145,5.00,
BEIS,The Insolvency Service,13/07/2018,Travel & Subsistence,Investigations & Enforcement Services,Staff Payment,900002145,4.30,
BEIS,The Insolvency Service,13/07/2018,Travel & Subsistence,Investigations & Enforcement Services,Staff Payment,900002145,5.00,
BEIS,The Insolvency Service,13/07/2018,Travel & Subsistence,Investigations & Enforcement Services,Staff Payment,900002145,5.00,
BEIS,The Insolvency Service,13/07/2018,Travel & Subsistence,Investigations & Enforcement Services,Staff Payment,900002145,2.96,
BEIS,The Insolvency Service,13/07/2018,Travel & Subsistence,Investigations & Enforcement Services,Staff Payment,900002145,5.00,
BEIS,The Insolvency Service,13/07/2018,Travel & Subsistence,Investigations & Enforcement Services,Staff Payment,900001932,5.00,
BEIS,The Insolvency Service,13/07/2018,Travel & Subsistence,Official Receiver Services,Staff Payment,900002011,5.00,
BEIS,The Insolvency Service,13/07/2018,Travel & Subsistence,Official Receiver Services,Staff Payment,900001806,1200.00,
BEIS,The Insolvency Service,13/07/2018,Travel & Subsistence,Official Receiver Services,Staff Payment,900001716,5.00,
BEIS,The Insolvency Service,13/07/2018,Travel & Subsistence,Official Receiver Services,Staff Payment,900001716,15.00,
BEIS,The Insolvency Service,13/07/2018,Travel & Subsistence,Official Receiver Services,Staff Payment,900001716,3.39,
BEIS,The Insolvency Service,13/07/2018,Travel & Subsistence,Official Receiver Services,Staff Payment,900001957,5.00,
BEIS,The Insolvency Service,13/07/2018,Travel & Subsistence,Official Receiver Services,Staff Payment,900001957,130.50,
BEIS,The Insolvency Service,13/07/2018,Travel & Subsistence,Official Receiver Services,Staff Payment,900001957,6.50,
BEIS,The Insolvency Service,13/07/2018,Travel & Subsistence,Strategy & Change,Staff Payment,900002165,5.00,
BEIS,The Insolvency Service,13/07/2018,Travel & Subsistence,Business Service Division,Staff Payment,900001823,24.70,
BEIS,The Insolvency Service,13/07/2018,Travel & Subsistence,Business Service Division,Staff Payment,900001823,5.00,
BEIS,The Insolvency Service,13/07/2018,Travel & Subsistence,Business Service Division,Staff Payment,900001826,5.00,
BEIS,The Insolvency Service,13/07/2018,Travel & Subsistence,Business Service Division,Staff Payment,900001826,13.00,
BEIS,The Insolvency Service,13/07/2018,Travel & Subsistence,Business Service Division,Staff Payment,900001826,28.35,
BEIS,The Insolvency Service,13/07/2018,Travel & Subsistence,Business Service Division,Staff Payment,900001826,15.00,
BEIS,The Insolvency Service,13/07/2018,Travel & Subsistence,Business Service Division,Staff Payment,900001826,5.00,
BEIS,The Insolvency Service,13/07/2018,Travel & Subsistence,Business Service Division,Staff Payment,900001826,67.50,
BEIS,The Insolvency Service,13/07/2018,Travel & Subsistence,Business Service Division,Staff Payment,900001826,5.00,
BEIS,The Insolvency Service,13/07/2018,Travel & Subsistence,Official Receiver Services,Staff Payment,900001996,5.00,
BEIS,The Insolvency Service,13/07/2018,Travel & Subsistence,Official Receiver Services,Staff Payment,900001996,4.65,
BEIS,The Insolvency Service,13/07/2018,Travel & Subsistence,Official Receiver Services,Staff Payment,900001996,24.00,
BEIS,The Insolvency Service,13/07/2018,Travel & Subsistence,Official Receiver Services,Staff Payment,900001996,10.49,
BEIS,The Insolvency Service,13/07/2018,Travel & Subsistence,Official Receiver Services,Staff Payment,900001996,5.00,
BEIS,The Insolvency Service,13/07/2018,Travel & Subsistence,Official Receiver Services,Staff Payment,900001997,4.70,
BEIS,The Insolvency Service,13/07/2018,Travel & Subsistence,Official Receiver Services,Staff Payment,900001997,12.00,
BEIS,The Insolvency Service,13/07/2018,Travel & Subsistence,Official Receiver Services,Staff Payment,900002144,5.00,
BEIS,The Insolvency Service,13/07/2018,Travel & Subsistence,Official Receiver Services,Staff Payment,900002144,4.65,
BEIS,The Insolvency Service,13/07/2018,Travel & Subsistence,Official Receiver Services,Staff Payment,900002144,4.95,
BEIS,The Insolvency Service,13/07/2018,Travel & Subsistence,Official Receiver Services,Staff Payment,900001988,81.90,
BEIS,The Insolvency Service,13/07/2018,Travel & Subsistence,Official Receiver Services,Staff Payment,900001988,3.60,
BEIS,The Insolvency Service,13/07/2018,Travel & Subsistence,Official Receiver Services,Staff Payment,900001988,4.00,
BEIS,The Insolvency Service,13/07/2018,Travel & Subsistence,Investigations & Enforcement Services,Staff Payment,900001021,37.80,
BEIS,The Insolvency Service,13/07/2018,Travel & Subsistence,Investigations & Enforcement Services,Staff Payment,900001021,30.80,
BEIS,The Insolvency Service,13/07/2018,Travel & Subsistence,Investigations & Enforcement Services,Staff Payment,900001021,9.55,
BEIS,The Insolvency Service,13/07/2018,Travel & Subsistence,Investigations & Enforcement Services,Staff Payment,900001021,6.70,
BEIS,The Insolvency Service,13/07/2018,Travel & Subsistence,Investigations & Enforcement Services,Staff Payment,900001021,37.80,
BEIS,The Insolvency Service,13/07/2018,Travel & Subsistence,Investigations & Enforcement Services,Staff Payment,900001021,37.80,
BEIS,The Insolvency Service,13/07/2018,Travel & Subsistence,Investigations & Enforcement Services,Staff Payment,900001947,75.60,
BEIS,The Insolvency Service,13/07/2018,Travel & Subsistence,Investigations & Enforcement Services,Staff Payment,900001947,4.50,
BEIS,The Insolvency Service,13/07/2018,Travel & Subsistence,Investigations & Enforcement Services,Staff Payment,900001947,2.35,
BEIS,The Insolvency Service,13/07/2018,Travel & Subsistence,Investigations & Enforcement Services,Staff Payment,900001947,8.75,
BEIS,The Insolvency Service,13/07/2018,Travel & Subsistence,Investigations & Enforcement Services,Staff Payment,900001947,16.10,
BEIS,The Insolvency Service,13/07/2018,Travel & Subsistence,Strategy & Change,Staff Payment,900001443,26.40,
BEIS,The Insolvency Service,13/07/2018,Travel & Subsistence,Strategy & Change,Staff Payment,900001443,6.20,
BEIS,The Insolvency Service,13/07/2018,Travel & Subsistence,Strategy & Change,Staff Payment,900001443,1.90,
BEIS,The Insolvency Service,13/07/2018,Travel & Subsistence,Strategy & Change,Staff Payment,900001443,3.40,
BEIS,The Insolvency Service,13/07/2018,Travel & Subsistence,Strategy & Change,Staff Payment,900001443,5.00,
BEIS,The Insolvency Service,13/07/2018,Travel & Subsistence,Official Receiver Services,Staff Payment,900001955,5.00,
BEIS,The Insolvency Service,13/07/2018,Travel & Subsistence,Official Receiver Services,Staff Payment,900002078,5.00,
BEIS,The Insolvency Service,13/07/2018,Travel & Subsistence,Official Receiver Services,Staff Payment,900002078,4.00,
BEIS,The Insolvency Service,13/07/2018,Travel & Subsistence,Official Receiver Services,Staff Payment,900002078,20.16,
BEIS,The Insolvency Service,13/07/2018,Travel & Subsistence,Official Receiver Services,Staff Payment,900002078,5.60,
BEIS,The Insolvency Service,13/07/2018,Travel & Subsistence,Official Receiver Services,Staff Payment,900002078,20.16,
BEIS,The Insolvency Service,13/07/2018,Travel & Subsistence,Official Receiver Services,Staff Payment,900002103,9.70,
BEIS,The Insolvency Service,13/07/2018,Travel & Subsistence,Official Receiver Services,Staff Payment,900002103,5.00,
BEIS,The Insolvency Service,13/07/2018,Travel & Subsistence,Official Receiver Services,Staff Payment,900002103,15.00,
BEIS,The Insolvency Service,13/07/2018,Travel & Subsistence,Official Receiver Services,Staff Payment,900002103,5.00,
BEIS,The Insolvency Service,13/07/2018,Travel & Subsistence,Official Receiver Services,Staff Payment,900002116,3.72,
BEIS,The Insolvency Service,13/07/2018,Travel & Subsistence,Official Receiver Services,Staff Payment,900001849,5.00,
BEIS,The Insolvency Service,13/07/2018,Travel & Subsistence,Official Receiver Services,Staff Payment,900001850,15.00,
BEIS,The Insolvency Service,13/07/2018,Travel & Subsistence,Official Receiver Services,Staff Payment,900001994,10.25,
BEIS,The Insolvency Service,13/07/2018,Travel & Subsistence,Official Receiver Services,Staff Payment,900001994,5.00,
BEIS,The Insolvency Service,13/07/2018,Travel & Subsistence,Official Receiver Services,Staff Payment,900001994,5.00,
BEIS,The Insolvency Service,13/07/2018,Travel & Subsistence,Business Service Division,Staff Payment,900000893,3.95,
BEIS,The Insolvency Service,13/07/2018,Travel & Subsistence,Business Service Division,Staff Payment,900000893,76.50,
BEIS,The Insolvency Service,13/07/2018,Travel & Subsistence,Business Service Division,Staff Payment,900000893,3.34,
BEIS,The Insolvency Service,13/07/2018,Travel & Subsistence,Business Service Division,Staff Payment,900001072,3.34,
BEIS,The Insolvency Service,13/07/2018,Travel & Subsistence,Business Service Division,Staff Payment,900001072,33.75,
BEIS,The Insolvency Service,13/07/2018,Travel & Subsistence,Business Service Division,Staff Payment,900001072,5.00,
BEIS,The Insolvency Service,13/07/2018,Travel & Subsistence,Business Service Division,Staff Payment,900001072,10.00,
BEIS,The Insolvency Service,13/07/2018,Travel & Subsistence,Business Service Division,Staff Payment,900001072,15.00,
BEIS,The Insolvency Service,13/07/2018,Travel & Subsistence,Business Service Division,Staff Payment,900001072,60.75,
BEIS,The Insolvency Service,13/07/2018,Travel & Subsistence,Business Service Division,Staff Payment,900001072,38.25,
BEIS,The Insolvency Service,13/07/2018,Travel & Subsistence,Investigations & Enforcement Services,Staff Payment,900002092,33.75,
BEIS,The Insolvency Service,13/07/2018,Travel & Subsistence,Investigations & Enforcement Services,Staff Payment,900002092,20.00,
BEIS,The Insolvency Service,13/07/2018,Travel & Subsistence,Investigations & Enforcement Services,Staff Payment,900002092,33.75,
BEIS,The Insolvency Service,13/07/2018,Travel & Subsistence,Strategy & Change,Staff Payment,900001486,47.95,
BEIS,The Insolvency Service,13/07/2018,Travel & Subsistence,Strategy & Change,Staff Payment,900001486,3.20,
BEIS,The Insolvency Service,13/07/2018,Travel & Subsistence,Strategy & Change,Staff Payment,900001486,4.80,
BEIS,The Insolvency Service,13/07/2018,Travel & Subsistence,Strategy & Change,Staff Payment,900001486,5.30,
BEIS,The Insolvency Service,13/07/2018,Travel & Subsistence,Strategy & Change,Staff Payment,900001486,21.00,
BEIS,The Insolvency Service,13/07/2018,Travel & Subsistence,Strategy & Change,Staff Payment,900001486,11.60,
BEIS,The Insolvency Service,13/07/2018,Travel & Subsistence,Strategy & Change,Staff Payment,900001486,56.33,
BEIS,The Insolvency Service,13/07/2018,Travel & Subsistence,Strategy & Change,Staff Payment,900001486,45.00,
BEIS,The Insolvency Service,13/07/2018,Travel & Subsistence,Strategy & Change,Staff Payment,900001486,15.00,
BEIS,The Insolvency Service,13/07/2018,Travel & Subsistence,Strategy & Change,Staff Payment,900001486,5.30,
BEIS,The Insolvency Service,13/07/2018,Travel & Subsistence,Strategy & Change,Staff Payment,900001486,28.00,
BEIS,The Insolvency Service,13/07/2018,Travel & Subsistence,Strategy & Change,Staff Payment,900001486,6.80,
BEIS,The Insolvency Service,13/07/2018,Travel & Subsistence,Strategy & Change,Staff Payment,900001486,5.30,
BEIS,The Insolvency Service,13/07/2018,Travel & Subsistence,Strategy & Change,Staff Payment,900001486,14.50,
BEIS,The Insolvency Service,13/07/2018,Travel & Subsistence,Business Service Division,Staff Payment,900000996,5.00,
BEIS,The Insolvency Service,13/07/2018,Travel & Subsistence,Business Service Division,Staff Payment,900000996,12.00,
BEIS,The Insolvency Service,13/07/2018,Travel & Subsistence,Business Service Division,Staff Payment,900000996,5.00,
BEIS,The Insolvency Service,13/07/2018,Travel & Subsistence,Business Service Division,Staff Payment,900000996,15.00,
BEIS,The Insolvency Service,13/07/2018,Travel & Subsistence,Business Service Division,Staff Payment,900000996,3.80,
BEIS,The Insolvency Service,13/07/2018,Travel & Subsistence,Business Service Division,Staff Payment,900000996,1.70,
BEIS,The Insolvency Service,13/07/2018,Travel & Subsistence,Business Service Division,Staff Payment,900000996,1.70,
BEIS,The Insolvency Service,13/07/2018,Travel & Subsistence,Business Service Division,Staff Payment,900000996,13.00,
BEIS,The Insolvency Service,13/07/2018,Travel & Subsistence,Business Service Division,Staff Payment,900000996,5.00,
BEIS,The Insolvency Service,13/07/2018,Travel & Subsistence,Business Service Division,Staff Payment,900000996,5.00,
BEIS,The Insolvency Service,13/07/2018,Travel & Subsistence,Business Service Division,Staff Payment,900000996,3.80,
BEIS,The Insolvency Service,13/07/2018,Travel & Subsistence,Business Service Division,Staff Payment,900000996,4.50,
BEIS,The Insolvency Service,13/07/2018,Travel & Subsistence,Business Service Division,Staff Payment,900000996,4.00,
BEIS,The Insolvency Service,13/07/2018,Travel & Subsistence,Business Service Division,Staff Payment,900001507,4.50,
BEIS,The Insolvency Service,13/07/2018,Travel & Subsistence,Business Service Division,Staff Payment,900001507,7.50,
BEIS,The Insolvency Service,13/07/2018,Travel & Subsistence,Business Service Division,Staff Payment,900001507,3.91,
BEIS,The Insolvency Service,13/07/2018,Travel & Subsistence,Business Service Division,Staff Payment,900001507,3.68,
BEIS,The Insolvency Service,13/07/2018,Travel & Subsistence,Business Service Division,Staff Payment,900001507,5.00,
BEIS,The Insolvency Service,13/07/2018,Travel & Subsistence,Business Service Division,Staff Payment,900001507,15.00,
BEIS,The Insolvency Service,13/07/2018,Travel & Subsistence,Business Service Division,Staff Payment,900001507,10.00,
BEIS,The Insolvency Service,13/07/2018,Travel & Subsistence,Business Service Division,Staff Payment,900001507,10.00,
BEIS,The Insolvency Service,13/07/2018,Travel & Subsistence,Business Service Division,Staff Payment,900001507,1.85,
BEIS,The Insolvency Service,13/07/2018,Travel & Subsistence,Business Service Division,Staff Payment,900001510,5.00,
BEIS,The Insolvency Service,13/07/2018,Travel & Subsistence,Business Service Division,Staff Payment,900001510,14.02,
BEIS,The Insolvency Service,13/07/2018,Travel & Subsistence,Business Service Division,Staff Payment,900001510,5.00,
BEIS,The Insolvency Service,13/07/2018,Travel & Subsistence,Business Service Division,Staff Payment,900001510,9.95,
BEIS,The Insolvency Service,13/07/2018,Travel & Subsistence,Business Service Division,Staff Payment,900001510,5.00,
BEIS,The Insolvency Service,13/07/2018,Travel & Subsistence,Business Service Division,Staff Payment,900001510,3.80,
BEIS,The Insolvency Service,13/07/2018,Travel & Subsistence,Business Service Division,Staff Payment,900001510,4.50,
BEIS,The Insolvency Service,13/07/2018,Travel & Subsistence,Business Service Division,Staff Payment,900001510,6.00,
BEIS,The Insolvency Service,13/07/2018,Travel & Subsistence,Business Service Division,Staff Payment,900001510,9.07,
BEIS,The Insolvency Service,13/07/2018,Travel & Subsistence,Business Service Division,Staff Payment,900001510,5.00,
BEIS,The Insolvency Service,13/07/2018,Travel & Subsistence,Business Service Division,Staff Payment,900001510,2.25,
BEIS,The Insolvency Service,13/07/2018,Travel & Subsistence,Business Service Division,Staff Payment,900001510,3.80,
BEIS,The Insolvency Service,13/07/2018,Travel & Subsistence,Business Service Division,Staff Payment,900001510,3.68,
BEIS,The Insolvency Service,13/07/2018,Travel & Subsistence,Business Service Division,Staff Payment,900001510,7.00,
BEIS,The Insolvency Service,13/07/2018,Travel & Subsistence,Business Service Division,Staff Payment,900001510,17.00,
BEIS,The Insolvency Service,13/07/2018,Travel & Subsistence,Business Service Division,Staff Payment,900001510,5.00,
BEIS,The Insolvency Service,13/07/2018,Travel & Subsistence,People & Capability,Staff Payment,900001582,21.00,
BEIS,The Insolvency Service,13/07/2018,Travel & Subsistence,People & Capability,Staff Payment,900001582,9.55,
BEIS,The Insolvency Service,13/07/2018,Travel & Subsistence,People & Capability,Staff Payment,900001582,5.00,
BEIS,The Insolvency Service,13/07/2018,Travel & Subsistence,People & Capability,Staff Payment,900001582,5.00,
BEIS,The Insolvency Service,13/07/2018,Travel & Subsistence,Official Receiver Services,Staff Payment,900002023,15.30,
BEIS,The Insolvency Service,13/07/2018,Travel & Subsistence,Official Receiver Services,Staff Payment,900002023,2.00,
BEIS,The Insolvency Service,13/07/2018,Travel & Subsistence,Official Receiver Services,Staff Payment,900002107,1.50,
BEIS,The Insolvency Service,13/07/2018,Travel & Subsistence,Official Receiver Services,Staff Payment,900002107,13.95,
BEIS,The Insolvency Service,13/07/2018,Travel & Subsistence,People & Capability,Staff Payment,900002106,18.00,
BEIS,The Insolvency Service,13/07/2018,Travel & Subsistence,People & Capability,Staff Payment,900002106,5.00,
BEIS,The Insolvency Service,13/07/2018,Travel & Subsistence,People & Capability,Staff Payment,900002106,18.00,
BEIS,The Insolvency Service,13/07/2018,Travel & Subsistence,People & Capability,Staff Payment,900002106,15.00,
BEIS,The Insolvency Service,13/07/2018,Travel & Subsistence,People & Capability,Staff Payment,900002106,3.65,
BEIS,The Insolvency Service,13/07/2018,Travel & Subsistence,Business Service Division,Staff Payment,900002043,31.50,
BEIS,The Insolvency Service,13/07/2018,Travel & Subsistence,Investigations & Enforcement Services,Staff Payment,900002127,39.00,
BEIS,The Insolvency Service,13/07/2018,Travel & Subsistence,Investigations & Enforcement Services,Staff Payment,900002127,7.50,
BEIS,The Insolvency Service,13/07/2018,Travel & Subsistence,Investigations & Enforcement Services,Staff Payment,900002127,4.50,
BEIS,The Insolvency Service,13/07/2018,Travel & Subsistence,Investigations & Enforcement Services,Staff Payment,900002129,12.00,
BEIS,The Insolvency Service,13/07/2018,Travel & Subsistence,Investigations & Enforcement Services,Staff Payment,900002129,3.80,
BEIS,The Insolvency Service,13/07/2018,Travel & Subsistence,Investigations & Enforcement Services,Staff Payment,900002130,4.20,
BEIS,The Insolvency Service,13/07/2018,Travel & Subsistence,Investigations & Enforcement Services,Staff Payment,900002130,12.00,
BEIS,The Insolvency Service,13/07/2018,Travel & Subsistence,Investigations & Enforcement Services,Staff Payment,900002131,3.00,
BEIS,The Insolvency Service,13/07/2018,Travel & Subsistence,Investigations & Enforcement Services,Staff Payment,900002173,12.00,
BEIS,The Insolvency Service,13/07/2018,Travel & Subsistence,Investigations & Enforcement Services,Staff Payment,900002173,4.50,
BEIS,The Insolvency Service,13/07/2018,Travel & Subsistence,Official Receiver Services,Staff Payment,900002055,22.68,
BEIS,The Insolvency Service,13/07/2018,Travel & Subsistence,Official Receiver Services,Staff Payment,900002055,5.00,
BEIS,The Insolvency Service,13/07/2018,Travel & Subsistence,Official Receiver Services,Staff Payment,900002055,22.68,
BEIS,The Insolvency Service,13/07/2018,Travel & Subsistence,Official Receiver Services,Staff Payment,900002083,5.00,
BEIS,The Insolvency Service,13/07/2018,Travel & Subsistence,Official Receiver Services,Staff Payment,900002083,19.89,
BEIS,The Insolvency Service,13/07/2018,Travel & Subsistence,Official Receiver Services,Staff Payment,900002083,18.86,
BEIS,The Insolvency Service,13/07/2018,Travel & Subsistence,Official Receiver Services,Staff Payment,900002090,3.60,
BEIS,The Insolvency Service,13/07/2018,Travel & Subsistence,Official Receiver Services,Staff Payment,900002090,18.86,
BEIS,The Insolvency Service,13/07/2018,Travel & Subsistence,Official Receiver Services,Staff Payment,900002090,19.89,
BEIS,The Insolvency Service,13/07/2018,Travel & Subsistence,Official Receiver Services,Staff Payment,900002005,13.95,
BEIS,The Insolvency Service,13/07/2018,Travel & Subsistence,Official Receiver Services,Staff Payment,900002005,13.95,
BEIS,The Insolvency Service,13/07/2018,Travel & Subsistence,Official Receiver Services,Staff Payment,900002006,4.95,
BEIS,The Insolvency Service,13/07/2018,Travel & Subsistence,Official Receiver Services,Staff Payment,900002006,4.95,
BEIS,The Insolvency Service,13/07/2018,Travel & Subsistence,Investigations & Enforcement Services,Staff Payment,900001877,5.00,
BEIS,The Insolvency Service,13/07/2018,Travel & Subsistence,Investigations & Enforcement Services,Staff Payment,900001880,5.00,
BEIS,The Insolvency Service,13/07/2018,Travel & Subsistence,Investigations & Enforcement Services,Staff Payment,900001882,5.00,
BEIS,The Insolvency Service,13/07/2018,Travel & Subsistence,Investigations & Enforcement Services,Staff Payment,900001882,29.00,
BEIS,The Insolvency Service,13/07/2018,Travel & Subsistence,Official Receiver Services,Staff Payment,900002053,191.25,
BEIS,The Insolvency Service,13/07/2018,Travel & Subsistence,Official Receiver Services,Staff Payment,900002056,5.00,
BEIS,The Insolvency Service,13/07/2018,Travel & Subsistence,Official Receiver Services,Staff Payment,900002056,16.00,
BEIS,The Insolvency Service,13/07/2018,Travel & Subsistence,Official Receiver Services,Staff Payment,900002056,9.00,
BEIS,The Insolvency Service,13/07/2018,Travel & Subsistence,Official Receiver Services,Staff Payment,900002056,4.20,
BEIS,The Insolvency Service,13/07/2018,Travel & Subsistence,Official Receiver Services,Staff Payment,900002056,5.00,
BEIS,The Insolvency Service,13/07/2018,Travel & Subsistence,Official Receiver Services,Staff Payment,900002056,5.00,
BEIS,The Insolvency Service,13/07/2018,Travel & Subsistence,Official Receiver Services,Staff Payment,900001841,5.00,
BEIS,The Insolvency Service,13/07/2018,Travel & Subsistence,Official Receiver Services,Staff Payment,900001829,5.00,
BEIS,The Insolvency Service,13/07/2018,Travel & Subsistence,Official Receiver Services,Staff Payment,900001829,5.00,
BEIS,The Insolvency Service,13/07/2018,Travel & Subsistence,Investigations & Enforcement Services,Staff Payment,900001860,5.60,
BEIS,The Insolvency Service,13/07/2018,Travel & Subsistence,Official Receiver Services,Staff Payment,900001982,3.00,
BEIS,The Insolvency Service,13/07/2018,Travel & Subsistence,People & Capability,Staff Payment,900002064,77.54,
BEIS,The Insolvency Service,13/07/2018,Travel & Subsistence,People & Capability,Staff Payment,900002064,95.00,
BEIS,The Insolvency Service,13/07/2018,Travel & Subsistence,Investigations & Enforcement Services,Staff Payment,900001542,113.40,
BEIS,The Insolvency Service,13/07/2018,Travel & Subsistence,Business Service Division,Staff Payment,900002067,100.50,
BEIS,The Insolvency Service,13/07/2018,Travel & Subsistence,Business Service Division,Staff Payment,900002071,5.00,
BEIS,The Insolvency Service,13/07/2018,Travel & Subsistence,Business Service Division,Staff Payment,900002071,3.30,
BEIS,The Insolvency Service,13/07/2018,Travel & Subsistence,Official Receiver Services,Staff Payment,900000708,6.30,
BEIS,The Insolvency Service,13/07/2018,Travel & Subsistence,Strategy & Change,Staff Payment,900002039,5.00,
BEIS,The Insolvency Service,13/07/2018,Travel & Subsistence,Strategy & Change,Staff Payment,900002039,5.00,
BEIS,The Insolvency Service,13/07/2018,Travel & Subsistence,Strategy & Change,Staff Payment,900002039,9.85,
BEIS,The Insolvency Service,13/07/2018,Travel & Subsistence,Strategy & Change,Staff Payment,900002039,5.00,
BEIS,The Insolvency Service,13/07/2018,Travel & Subsistence,Official Receiver Services,Staff Payment,900002085,5.00,
BEIS,The Insolvency Service,13/07/2018,Travel & Subsistence,Official Receiver Services,Staff Payment,900002085,5.00,
BEIS,The Insolvency Service,13/07/2018,Travel & Subsistence,Official Receiver Services,Staff Payment,900002086,41.85,
BEIS,The Insolvency Service,13/07/2018,Travel & Subsistence,Official Receiver Services,Staff Payment,900002086,25.65,
BEIS,The Insolvency Service,13/07/2018,Travel & Subsistence,Official Receiver Services,Staff Payment,900002089,5.00,
BEIS,The Insolvency Service,13/07/2018,Travel & Subsistence,Official Receiver Services,Staff Payment,900002089,5.00,
BEIS,The Insolvency Service,13/07/2018,Travel & Subsistence,Investigations & Enforcement Services,Staff Payment,900002118,9.00,
BEIS,The Insolvency Service,13/07/2018,Travel & Subsistence,Investigations & Enforcement Services,Staff Payment,900002118,5.00,
BEIS,The Insolvency Service,13/07/2018,Travel & Subsistence,Investigations & Enforcement Services,Staff Payment,900002118,5.00,
BEIS,The Insolvency Service,13/07/2018,Travel & Subsistence,Investigations & Enforcement Services,Staff Payment,900002118,3.25,
BEIS,The Insolvency Service,13/07/2018,Travel & Subsistence,Investigations & Enforcement Services,Staff Payment,900002118,3.25,
BEIS,The Insolvency Service,13/07/2018,Travel & Subsistence,Official Receiver Services,Staff Payment,900001655,5.00,
BEIS,The Insolvency Service,13/07/2018,Travel & Subsistence,Business Service Division,Staff Payment,900002010,35.55,
BEIS,The Insolvency Service,13/07/2018,Travel & Subsistence,Business Service Division,Staff Payment,900002010,7.50,
BEIS,The Insolvency Service,13/07/2018,Travel & Subsistence,Business Service Division,Staff Payment,900002010,35.55,
BEIS,The Insolvency Service,13/07/2018,Travel & Subsistence,Investigations & Enforcement Services,Staff Payment,900001958,11.20,
BEIS,The Insolvency Service,13/07/2018,Travel & Subsistence,Investigations & Enforcement Services,Staff Payment,900001958,3.20,
BEIS,The Insolvency Service,13/07/2018,Travel & Subsistence,Investigations & Enforcement Services,Staff Payment,900002169,9.90,
BEIS,The Insolvency Service,13/07/2018,Travel & Subsistence,Investigations & Enforcement Services,Staff Payment,900002169,9.90,
BEIS,The Insolvency Service,13/07/2018,Travel & Subsistence,People & Capability,Staff Payment,900001485,5.00,
BEIS,The Insolvency Service,13/07/2018,Travel & Subsistence,People & Capability,Staff Payment,900001485,1.70,
BEIS,The Insolvency Service,13/07/2018,Travel & Subsistence,People & Capability,Staff Payment,900001485,2.65,
BEIS,The Insolvency Service,13/07/2018,Travel & Subsistence,People & Capability,Staff Payment,900001485,2.35,
BEIS,The Insolvency Service,13/07/2018,Travel & Subsistence,Business Service Division,Staff Payment,900002109,14.70,
BEIS,The Insolvency Service,13/07/2018,Travel & Subsistence,Business Service Division,Staff Payment,900002109,4.80,
BEIS,The Insolvency Service,13/07/2018,Travel & Subsistence,Business Service Division,Staff Payment,900002109,1.70,
BEIS,The Insolvency Service,13/07/2018,Travel & Subsistence,Business Service Division,Staff Payment,900002110,1.70,
BEIS,The Insolvency Service,13/07/2018,Travel & Subsistence,Business Service Division,Staff Payment,900002110,24.44,
BEIS,The Insolvency Service,13/07/2018,Travel & Subsistence,Business Service Division,Staff Payment,900002110,14.65,
BEIS,The Insolvency Service,13/07/2018,Travel & Subsistence,Business Service Division,Staff Payment,900002110,7.50,
BEIS,The Insolvency Service,13/07/2018,Travel & Subsistence,Business Service Division,Staff Payment,900002110,4.00,
BEIS,The Insolvency Service,13/07/2018,Travel & Subsistence,Business Service Division,Staff Payment,900002112,5.00,
BEIS,The Insolvency Service,13/07/2018,Travel & Subsistence,Business Service Division,Staff Payment,900002113,3.19,
BEIS,The Insolvency Service,13/07/2018,Travel & Subsistence,Business Service Division,Staff Payment,900002175,31.50,
BEIS,The Insolvency Service,13/07/2018,Travel & Subsistence,Strategy & Change,Staff Payment,900001498,9.99,
BEIS,The Insolvency Service,13/07/2018,Travel & Subsistence,Strategy & Change,Staff Payment,900001673,5.00,
BEIS,The Insolvency Service,13/07/2018,Travel & Subsistence,Strategy & Change,Staff Payment,900001673,5.00,
BEIS,The Insolvency Service,13/07/2018,Travel & Subsistence,Strategy & Change,Staff Payment,900001777,5.00,
BEIS,The Insolvency Service,13/07/2018,Travel & Subsistence,Strategy & Change,Staff Payment,900001777,10.00,
BEIS,The Insolvency Service,13/07/2018,Travel & Subsistence,Strategy & Change,Staff Payment,900001920,5.00,
BEIS,The Insolvency Service,13/07/2018,Travel & Subsistence,Strategy & Change,Staff Payment,900002125,4.65,
BEIS,The Insolvency Service,13/07/2018,Travel & Subsistence,Investigations & Enforcement Services,Staff Payment,900002166,52.20,
BEIS,The Insolvency Service,13/07/2018,Travel & Subsistence,Chief Executive Office,Staff Payment,900002059,1.99,
BEIS,The Insolvency Service,13/07/2018,Travel & Subsistence,Chief Executive Office,Staff Payment,900002059,5.00,
BEIS,The Insolvency Service,13/07/2018,Travel & Subsistence,Chief Executive Office,Staff Payment,900002059,2.95,
BEIS,The Insolvency Service,13/07/2018,Travel & Subsistence,Chief Executive Office,Staff Payment,900002059,30.00,
BEIS,The Insolvency Service,13/07/2018,Travel & Subsistence,Chief Executive Office,Staff Payment,900002059,2.45,
BEIS,The Insolvency Service,13/07/2018,Travel & Subsistence,Chief Executive Office,Staff Payment,900002059,5.00,
BEIS,The Insolvency Service,13/07/2018,Travel & Subsistence,Chief Executive Office,Staff Payment,900002059,5.00,
BEIS,The Insolvency Service,13/07/2018,Travel & Subsistence,Chief Executive Office,Staff Payment,900002059,15.00,
BEIS,The Insolvency Service,13/07/2018,Travel & Subsistence,Chief Executive Office,Staff Payment,900002059,3.70,
BEIS,The Insolvency Service,13/07/2018,Travel & Subsistence,Chief Executive Office,Staff Payment,900002059,3.70,
BEIS,The Insolvency Service,13/07/2018,Travel & Subsistence,Chief Executive Office,Staff Payment,900002059,5.00,
BEIS,The Insolvency Service,13/07/2018,Travel & Subsistence,Chief Executive Office,Staff Payment,900002059,25.00,
BEIS,The Insolvency Service,13/07/2018,Travel & Subsistence,Chief Executive Office,Staff Payment,900002059,30.00,
BEIS,The Insolvency Service,13/07/2018,Travel & Subsistence,Chief Executive Office,Staff Payment,900002117,5.00,
BEIS,The Insolvency Service,13/07/2018,Travel & Subsistence,Chief Executive Office,Staff Payment,900002117,5.00,
BEIS,The Insolvency Service,13/07/2018,Travel & Subsistence,Chief Executive Office,Staff Payment,900002117,15.00,
BEIS,The Insolvency Service,13/07/2018,Travel & Subsistence,Chief Executive Office,Staff Payment,900002117,10.00,
BEIS,The Insolvency Service,13/07/2018,Travel & Subsistence,Chief Executive Office,Staff Payment,900002117,3.60,
BEIS,The Insolvency Service,13/07/2018,Travel & Subsistence,Chief Executive Office,Staff Payment,900002117,3.70,
BEIS,The Insolvency Service,13/07/2018,Travel & Subsistence,Chief Executive Office,Staff Payment,900002117,5.00,
BEIS,The Insolvency Service,13/07/2018,Travel & Subsistence,Chief Executive Office,Staff Payment,900002117,15.00,
BEIS,The Insolvency Service,13/07/2018,Travel & Subsistence,Finance & Commercial,Staff Payment,900001965,4.24,
BEIS,The Insolvency Service,13/07/2018,Travel & Subsistence,Official Receiver Services,Staff Payment,900001595,10.50,
BEIS,The Insolvency Service,13/07/2018,Travel & Subsistence,Official Receiver Services,Staff Payment,900001595,4.79,
BEIS,The Insolvency Service,13/07/2018,Travel & Subsistence,Official Receiver Services,Staff Payment,900001595,5.00,
BEIS,The Insolvency Service,13/07/2018,Travel & Subsistence,Official Receiver Services,Staff Payment,900001595,49.05,
BEIS,The Insolvency Service,13/07/2018,Travel & Subsistence,Official Receiver Services,Staff Payment,900001595,49.05,
BEIS,The Insolvency Service,13/07/2018,Travel & Subsistence,Business Service Division,Staff Payment,900002072,5.00,
BEIS,The Insolvency Service,13/07/2018,Travel & Subsistence,Business Service Division,Staff Payment,900002073,5.50,
BEIS,The Insolvency Service,13/07/2018,Travel & Subsistence,Business Service Division,Staff Payment,900002074,11.00,
BEIS,The Insolvency Service,13/07/2018,Travel & Subsistence,Business Service Division,Staff Payment,900002075,7.00,
BEIS,The Insolvency Service,13/07/2018,Travel & Subsistence,Business Service Division,Staff Payment,900002075,5.00,
BEIS,The Insolvency Service,13/07/2018,Travel & Subsistence,Business Service Division,Staff Payment,900002075,5.00,
BEIS,The Insolvency Service,13/07/2018,Travel & Subsistence,Business Service Division,Staff Payment,900002075,15.00,
BEIS,The Insolvency Service,13/07/2018,Travel & Subsistence,Business Service Division,Staff Payment,900002075,5.00,
BEIS,The Insolvency Service,13/07/2018,Travel & Subsistence,Business Service Division,Staff Payment,900002076,15.00,
BEIS,The Insolvency Service,13/07/2018,Travel & Subsistence,Business Service Division,Staff Payment,900002076,6.50,
BEIS,The Insolvency Service,13/07/2018,Travel & Subsistence,Business Service Division,Staff Payment,900002111,7.50,
BEIS,The Insolvency Service,13/07/2018,Travel & Subsistence,Business Service Division,Staff Payment,900002111,5.00,
BEIS,The Insolvency Service,13/07/2018,Travel & Subsistence,Business Service Division,Staff Payment,900002111,15.00,
BEIS,The Insolvency Service,13/07/2018,Travel & Subsistence,Official Receiver Services,Staff Payment,900001492,4.45,
BEIS,The Insolvency Service,13/07/2018,Travel & Subsistence,Official Receiver Services,Staff Payment,900001658,4.45,
BEIS,The Insolvency Service,13/07/2018,Travel & Subsistence,Official Receiver Services,Staff Payment,900001786,34.65,
BEIS,The Insolvency Service,13/07/2018,Travel & Subsistence,Business Service Division,Staff Payment,900002040,48.15,
BEIS,The Insolvency Service,13/07/2018,Travel & Subsistence,Business Service Division,Staff Payment,900002040,48.15,
BEIS,The Insolvency Service,13/07/2018,Travel & Subsistence,Business Service Division,Staff Payment,900002040,12.00,
BEIS,The Insolvency Service,13/07/2018,Travel & Subsistence,Business Service Division,Staff Payment,900002040,5.00,
BEIS,The Insolvency Service,13/07/2018,Travel & Subsistence,Business Service Division,Staff Payment,900002040,4.89,
BEIS,The Insolvency Service,13/07/2018,Travel & Subsistence,Business Service Division,Staff Payment,900002040,4.77,
BEIS,The Insolvency Service,13/07/2018,Travel & Subsistence,Investigations & Enforcement Services,Staff Payment,900002036,11.20,
BEIS,The Insolvency Service,13/07/2018,Travel & Subsistence,Investigations & Enforcement Services,Staff Payment,900002036,2.40,
BEIS,The Insolvency Service,13/07/2018,Travel & Subsistence,Investigations & Enforcement Services,Staff Payment,900002036,2.00,
BEIS,The Insolvency Service,13/07/2018,Travel & Subsistence,People & Capability,Staff Payment,900001678,95.00,
BEIS,The Insolvency Service,13/07/2018,Travel & Subsistence,People & Capability,Staff Payment,900001807,3.42,
BEIS,The Insolvency Service,13/07/2018,Travel & Subsistence,Official Receiver Services,Staff Payment,900002082,3.69,
BEIS,The Insolvency Service,13/07/2018,Travel & Subsistence,Official Receiver Services,Staff Payment,900002082,4.54,
BEIS,The Insolvency Service,13/07/2018,Travel & Subsistence,Official Receiver Services,Staff Payment,900002082,2.80,
BEIS,The Insolvency Service,13/07/2018,Travel & Subsistence,Official Receiver Services,Staff Payment,900002082,5.00,
BEIS,The Insolvency Service,13/07/2018,Travel & Subsistence,Official Receiver Services,Staff Payment,900002082,5.00,
BEIS,The Insolvency Service,13/07/2018,Travel & Subsistence,Official Receiver Services,Staff Payment,900002082,2.80,
BEIS,The Insolvency Service,13/07/2018,Travel & Subsistence,Official Receiver Services,Staff Payment,900002084,8.00,
BEIS,The Insolvency Service,13/07/2018,Travel & Subsistence,Strategy & Change,Staff Payment,900001487,7.20,
BEIS,The Insolvency Service,13/07/2018,Travel & Subsistence,Strategy & Change,Staff Payment,900001487,24.00,
BEIS,The Insolvency Service,13/07/2018,Travel & Subsistence,Strategy & Change,Staff Payment,900001487,14.40,
BEIS,The Insolvency Service,13/07/2018,Travel & Subsistence,Strategy & Change,Staff Payment,900001487,12.00,
BEIS,The Insolvency Service,13/07/2018,Travel & Subsistence,Strategy & Change,Staff Payment,900001487,7.20,
BEIS,The Insolvency Service,13/07/2018,Travel & Subsistence,Strategy & Change,Staff Payment,900001487,6.88,
BEIS,The Insolvency Service,13/07/2018,Travel & Subsistence,Strategy & Change,Staff Payment,900001487,15.00,
BEIS,The Insolvency Service,13/07/2018,Travel & Subsistence,Strategy & Change,Staff Payment,900001487,15.00,
BEIS,The Insolvency Service,13/07/2018,Travel & Subsistence,Strategy & Change,Staff Payment,900001487,5.00,
BEIS,The Insolvency Service,13/07/2018,Travel & Subsistence,Official Receiver Services,Staff Payment,900002051,8.00,
BEIS,The Insolvency Service,13/07/2018,Travel & Subsistence,Official Receiver Services,Staff Payment,900002079,8.00,
BEIS,The Insolvency Service,13/07/2018,Travel & Subsistence,Official Receiver Services,Staff Payment,900002019,39.50,
BEIS,The Insolvency Service,13/07/2018,Travel & Subsistence,Official Receiver Services,Staff Payment,900002019,8.50,
BEIS,The Insolvency Service,13/07/2018,Travel & Subsistence,Official Receiver Services,Staff Payment,900002019,8.30,
BEIS,The Insolvency Service,13/07/2018,Travel & Subsistence,Official Receiver Services,Staff Payment,900002019,40.00,
BEIS,The Insolvency Service,13/07/2018,Travel & Subsistence,Official Receiver Services,Staff Payment,900002019,5.00,
BEIS,The Insolvency Service,13/07/2018,Travel & Subsistence,Official Receiver Services,Staff Payment,900002157,5.00,
BEIS,The Insolvency Service,13/07/2018,Travel & Subsistence,Official Receiver Services,Staff Payment,900002157,36.45,
BEIS,The Insolvency Service,13/07/2018,Travel & Subsistence,Strategy & Change,Staff Payment,900001833,10.00,
BEIS,The Insolvency Service,13/07/2018,Travel & Subsistence,Strategy & Change,Staff Payment,900001833,133.14,
BEIS,The Insolvency Service,13/07/2018,Travel & Subsistence,Strategy & Change,Staff Payment,900001836,61.77,
BEIS,The Insolvency Service,13/07/2018,Travel & Subsistence,Investigations & Enforcement Services,Staff Payment,900002147,4.00,
BEIS,The Insolvency Service,13/07/2018,Travel & Subsistence,Investigations & Enforcement Services,Staff Payment,900002147,53.00,
BEIS,The Insolvency Service,13/07/2018,Travel & Subsistence,Strategy & Change,Staff Payment,900001736,4.00,
BEIS,The Insolvency Service,13/07/2018,Travel & Subsistence,Strategy & Change,Staff Payment,900001736,14.50,
BEIS,The Insolvency Service,13/07/2018,Travel & Subsistence,Strategy & Change,Staff Payment,900001736,5.00,
BEIS,The Insolvency Service,13/07/2018,Travel & Subsistence,Strategy & Change,Staff Payment,900001736,3.00,
BEIS,The Insolvency Service,13/07/2018,Travel & Subsistence,Strategy & Change,Staff Payment,900001736,2.00,
BEIS,The Insolvency Service,13/07/2018,Travel & Subsistence,Strategy & Change,Staff Payment,900001736,2.89,
BEIS,The Insolvency Service,13/07/2018,Travel & Subsistence,Strategy & Change,Staff Payment,900001736,7.50,
BEIS,The Insolvency Service,13/07/2018,Travel & Subsistence,Strategy & Change,Staff Payment,900001736,3.40,
BEIS,The Insolvency Service,13/07/2018,Travel & Subsistence,Strategy & Change,Staff Payment,900001736,7.00,
BEIS,The Insolvency Service,13/07/2018,Travel & Subsistence,Strategy & Change,Staff Payment,900001736,11.49,
BEIS,The Insolvency Service,13/07/2018,Travel & Subsistence,Strategy & Change,Staff Payment,900001736,7.60,
BEIS,The Insolvency Service,13/07/2018,Travel & Subsistence,Strategy & Change,Staff Payment,900001736,13.95,
BEIS,The Insolvency Service,13/07/2018,Travel & Subsistence,Investigations & Enforcement Services,Staff Payment,900002172,2.40,
BEIS,The Insolvency Service,13/07/2018,Travel & Subsistence,Investigations & Enforcement Services,Staff Payment,900002172,2.40,
BEIS,The Insolvency Service,13/07/2018,Travel & Subsistence,Investigations & Enforcement Services,Staff Payment,900002172,2.40,
BEIS,The Insolvency Service,13/07/2018,Travel & Subsistence,Investigations & Enforcement Services,Staff Payment,900002172,12.09,
BEIS,The Insolvency Service,13/07/2018,Travel & Subsistence,Investigations & Enforcement Services,Staff Payment,900002172,3.00,
BEIS,The Insolvency Service,13/07/2018,Travel & Subsistence,Investigations & Enforcement Services,Staff Payment,900002172,11.38,
BEIS,The Insolvency Service,13/07/2018,Travel & Subsistence,Investigations & Enforcement Services,Staff Payment,900002172,5.00,
BEIS,The Insolvency Service,13/07/2018,Travel & Subsistence,Investigations & Enforcement Services,Staff Payment,900002172,5.00,
BEIS,The Insolvency Service,13/07/2018,Travel & Subsistence,Investigations & Enforcement Services,Staff Payment,900002172,2.40,
BEIS,The Insolvency Service,13/07/2018,Travel & Subsistence,Official Receiver Services,Staff Payment,900002077,10.70,
BEIS,The Insolvency Service,13/07/2018,Travel & Subsistence,Official Receiver Services,Staff Payment,900002044,4.79,
BEIS,The Insolvency Service,13/07/2018,Travel & Subsistence,Official Receiver Services,Staff Payment,900002044,5.00,
BEIS,The Insolvency Service,13/07/2018,Travel & Subsistence,Chief Executive Office,Staff Payment,900002022,6.00,
BEIS,The Insolvency Service,13/07/2018,Travel & Subsistence,Chief Executive Office,Staff Payment,900002022,15.00,
BEIS,The Insolvency Service,13/07/2018,Travel & Subsistence,Chief Executive Office,Staff Payment,900002022,15.00,
BEIS,The Insolvency Service,13/07/2018,Travel & Subsistence,Chief Executive Office,Staff Payment,900002022,5.00,
BEIS,The Insolvency Service,13/07/2018,Travel & Subsistence,Chief Executive Office,Staff Payment,900002022,4.85,
BEIS,The Insolvency Service,13/07/2018,Travel & Subsistence,Chief Executive Office,Staff Payment,900002022,5.00,
BEIS,The Insolvency Service,13/07/2018,Travel & Subsistence,Chief Executive Office,Staff Payment,900002022,4.95,
BEIS,The Insolvency Service,13/07/2018,Travel & Subsistence,Chief Executive Office,Staff Payment,900002022,2.40,
BEIS,The Insolvency Service,13/07/2018,Travel & Subsistence,Chief Executive Office,Staff Payment,900002022,5.00,
BEIS,The Insolvency Service,13/07/2018,Travel & Subsistence,Chief Executive Office,Staff Payment,900002022,15.00,
BEIS,The Insolvency Service,13/07/2018,Travel & Subsistence,Chief Executive Office,Staff Payment,900002022,15.00,
BEIS,The Insolvency Service,13/07/2018,Travel & Subsistence,Chief Executive Office,Staff Payment,900002022,2.40,
BEIS,The Insolvency Service,13/07/2018,Travel & Subsistence,Chief Executive Office,Staff Payment,900002022,5.00,
BEIS,The Insolvency Service,13/07/2018,Travel & Subsistence,Chief Executive Office,Staff Payment,900002022,4.79,
BEIS,The Insolvency Service,13/07/2018,Travel & Subsistence,Chief Executive Office,Staff Payment,900002022,4.50,
BEIS,The Insolvency Service,13/07/2018,Travel & Subsistence,Chief Executive Office,Staff Payment,900002022,1.50,
BEIS,The Insolvency Service,13/07/2018,Travel & Subsistence,Chief Executive Office,Staff Payment,900002163,5.00,
BEIS,The Insolvency Service,13/07/2018,Travel & Subsistence,Chief Executive Office,Staff Payment,900002163,15.00,
BEIS,The Insolvency Service,13/07/2018,Travel & Subsistence,Chief Executive Office,Staff Payment,900002163,5.00,
BEIS,The Insolvency Service,13/07/2018,Travel & Subsistence,Chief Executive Office,Staff Payment,900002163,15.00,
BEIS,The Insolvency Service,13/07/2018,Travel & Subsistence,Chief Executive Office,Staff Payment,900002163,5.00,
BEIS,The Insolvency Service,13/07/2018,Travel & Subsistence,Chief Executive Office,Staff Payment,900002163,2.40,
BEIS,The Insolvency Service,13/07/2018,Travel & Subsistence,Chief Executive Office,Staff Payment,900002163,5.00,
BEIS,The Insolvency Service,13/07/2018,Travel & Subsistence,Chief Executive Office,Staff Payment,900002163,5.00,
BEIS,The Insolvency Service,13/07/2018,Travel & Subsistence,Chief Executive Office,Staff Payment,900002163,1.50,
BEIS,The Insolvency Service,13/07/2018,Travel & Subsistence,Strategy & Change,Staff Payment,900002065,5.00,
BEIS,The Insolvency Service,13/07/2018,Travel & Subsistence,Strategy & Change,Staff Payment,900002065,14.40,
BEIS,The Insolvency Service,13/07/2018,Travel & Subsistence,Strategy & Change,Staff Payment,900002065,5.00,
BEIS,The Insolvency Service,13/07/2018,Travel & Subsistence,Strategy & Change,Staff Payment,900002065,5.00,
BEIS,The Insolvency Service,13/07/2018,Travel & Subsistence,Strategy & Change,Staff Payment,900002065,2.40,
BEIS,The Insolvency Service,13/07/2018,Travel & Subsistence,Strategy & Change,Staff Payment,900002065,2.40,
BEIS,The Insolvency Service,13/07/2018,Travel & Subsistence,Strategy & Change,Staff Payment,900002069,4.80,
BEIS,The Insolvency Service,13/07/2018,Travel & Subsistence,Strategy & Change,Staff Payment,900002069,4.80,
BEIS,The Insolvency Service,13/07/2018,Travel & Subsistence,Strategy & Change,Staff Payment,900002069,5.00,
BEIS,The Insolvency Service,13/07/2018,Travel & Subsistence,Strategy & Change,Staff Payment,900002069,5.00,
BEIS,The Insolvency Service,13/07/2018,Travel & Subsistence,Strategy & Change,Staff Payment,900002069,3.20,
BEIS,The Insolvency Service,13/07/2018,Travel & Subsistence,Strategy & Change,Staff Payment,900002069,5.00,
BEIS,The Insolvency Service,13/07/2018,Travel & Subsistence,Strategy & Change,Staff Payment,900002069,5.00,
BEIS,The Insolvency Service,13/07/2018,Travel & Subsistence,Strategy & Change,Staff Payment,900002069,4.80,
BEIS,The Insolvency Service,13/07/2018,Travel & Subsistence,Strategy & Change,Staff Payment,900002069,4.80,
BEIS,The Insolvency Service,13/07/2018,Travel & Subsistence,Strategy & Change,Staff Payment,900002070,9.00,
BEIS,The Insolvency Service,13/07/2018,Travel & Subsistence,Business Service Division,Staff Payment,900000834,1.70,
BEIS,The Insolvency Service,13/07/2018,Travel & Subsistence,Business Service Division,Staff Payment,900000834,21.54,
BEIS,The Insolvency Service,13/07/2018,Travel & Subsistence,Business Service Division,Staff Payment,900000834,4.20,
BEIS,The Insolvency Service,13/07/2018,Travel & Subsistence,Business Service Division,Staff Payment,900000834,1.70,
BEIS,The Insolvency Service,13/07/2018,Travel & Subsistence,Business Service Division,Staff Payment,900002081,1.70,
BEIS,The Insolvency Service,13/07/2018,Travel & Subsistence,Business Service Division,Staff Payment,900002081,1.70,
BEIS,The Insolvency Service,13/07/2018,Travel & Subsistence,Business Service Division,Staff Payment,900002081,46.59,
BEIS,The Insolvency Service,13/07/2018,Travel & Subsistence,Investigations & Enforcement Services,Staff Payment,900002018,5.00,
BEIS,The Insolvency Service,13/07/2018,Travel & Subsistence,Strategy & Change,Staff Payment,900002102,134.32,
BEIS,The Insolvency Service,13/07/2018,Travel & Subsistence,Strategy & Change,Staff Payment,900002102,20.00,
BEIS,The Insolvency Service,13/07/2018,Travel & Subsistence,Strategy & Change,Staff Payment,900002041,5.00,
BEIS,The Insolvency Service,13/07/2018,Travel & Subsistence,Strategy & Change,Staff Payment,900002041,28.50,
BEIS,The Insolvency Service,13/07/2018,Travel & Subsistence,Strategy & Change,Staff Payment,900002041,6.00,
BEIS,The Insolvency Service,13/07/2018,Travel & Subsistence,Strategy & Change,Staff Payment,900002164,5.00,
BEIS,The Insolvency Service,13/07/2018,Travel & Subsistence,Strategy & Change,Staff Payment,900002164,12.00,
BEIS,The Insolvency Service,13/07/2018,Travel & Subsistence,Strategy & Change,Staff Payment,900002146,12.00,
BEIS,The Insolvency Service,13/07/2018,Travel & Subsistence,Strategy & Change,Staff Payment,900002146,7.40,
BEIS,The Insolvency Service,13/07/2018,Travel & Subsistence,Strategy & Change,Staff Payment,900002146,9.00,
BEIS,The Insolvency Service,13/07/2018,Travel & Subsistence,Finance & Commercial,Staff Payment,900002017,5.00,
BEIS,The Insolvency Service,13/07/2018,Travel & Subsistence,Finance & Commercial,Staff Payment,900002017,8.20,
BEIS,The Insolvency Service,13/07/2018,Travel & Subsistence,Chief Executive Office,Staff Payment,900002054,20.00,
BEIS,The Insolvency Service,13/07/2018,Travel & Subsistence,Chief Executive Office,Staff Payment,900002054,15.00,
BEIS,The Insolvency Service,13/07/2018,Travel & Subsistence,Chief Executive Office,Staff Payment,900002054,75.00,
BEIS,The Insolvency Service,13/07/2018,Travel & Subsistence,Chief Executive Office,Staff Payment,900002054,5.00,
BEIS,The Insolvency Service,13/07/2018,Travel & Subsistence,Strategy & Change,Staff Payment,900001868,142.04,
BEIS,The Insolvency Service,13/07/2018,Travel & Subsistence,Investigations & Enforcement Services,Staff Payment,900001607,48.00,
BEIS,The Insolvency Service,13/07/2018,Travel & Subsistence,Chief Executive Office,Staff Payment,900002058,6.00,
BEIS,The Insolvency Service,13/07/2018,Travel & Subsistence,Chief Executive Office,Staff Payment,900002060,29.00,
BEIS,The Insolvency Service,13/07/2018,Travel & Subsistence,Chief Executive Office,Staff Payment,900002061,21.96,
BEIS,The Insolvency Service,13/07/2018,Travel & Subsistence,Chief Executive Office,Staff Payment,900002062,28.26,
BEIS,The Insolvency Service,13/07/2018,Travel & Subsistence,Investigations & Enforcement Services,Staff Payment,900002137,4.99,
BEIS,The Insolvency Service,13/07/2018,Travel & Subsistence,Investigations & Enforcement Services,Staff Payment,900002137,4.70,
BEIS,The Insolvency Service,13/07/2018,Travel & Subsistence,Investigations & Enforcement Services,Staff Payment,900002137,25.19,
BEIS,The Insolvency Service,13/07/2018,Travel & Subsistence,Investigations & Enforcement Services,Staff Payment,900002139,3.00,
BEIS,The Insolvency Service,13/07/2018,Travel & Subsistence,Investigations & Enforcement Services,Staff Payment,900002139,25.19,
BEIS,The Insolvency Service,13/07/2018,Travel & Subsistence,Investigations & Enforcement Services,Staff Payment,900002139,4.75,
BEIS,The Insolvency Service,13/07/2018,Travel & Subsistence,Finance & Commercial,Staff Payment,900001398,61.20,
BEIS,The Insolvency Service,13/07/2018,Travel & Subsistence,Finance & Commercial,Staff Payment,900001398,5.00,
BEIS,The Insolvency Service,13/07/2018,Travel & Subsistence,Finance & Commercial,Staff Payment,900001398,105.00,
BEIS,The Insolvency Service,13/07/2018,Travel & Subsistence,Investigations & Enforcement Services,Staff Payment,900001430,6.00,
BEIS,The Insolvency Service,13/07/2018,Travel & Subsistence,Investigations & Enforcement Services,Staff Payment,900001430,8.10,
BEIS,The Insolvency Service,13/07/2018,Travel & Subsistence,Investigations & Enforcement Services,Staff Payment,900001430,8.90,
BEIS,The Insolvency Service,13/07/2018,Travel & Subsistence,Investigations & Enforcement Services,Staff Payment,900001430,5.00,
BEIS,The Insolvency Service,13/07/2018,Travel & Subsistence,Investigations & Enforcement Services,Staff Payment,900001730,4.25,
BEIS,The Insolvency Service,13/07/2018,Travel & Subsistence,Investigations & Enforcement Services,Staff Payment,900001730,27.00,
BEIS,The Insolvency Service,13/07/2018,Travel & Subsistence,Investigations & Enforcement Services,Staff Payment,900001730,17.55,
BEIS,The Insolvency Service,13/07/2018,Travel & Subsistence,Investigations & Enforcement Services,Staff Payment,900001730,59.40,
BEIS,The Insolvency Service,13/07/2018,Travel & Subsistence,Investigations & Enforcement Services,Staff Payment,900001730,106.20,
BEIS,The Insolvency Service,13/07/2018,Travel & Subsistence,Investigations & Enforcement Services,Staff Payment,900001730,65.25,
BEIS,The Insolvency Service,13/07/2018,Travel & Subsistence,Investigations & Enforcement Services,Staff Payment,900001730,1.80,
BEIS,The Insolvency Service,13/07/2018,Travel & Subsistence,Investigations & Enforcement Services,Staff Payment,900001730,12.60,
BEIS,The Insolvency Service,13/07/2018,Travel & Subsistence,Investigations & Enforcement Services,Staff Payment,900001730,12.00,
BEIS,The Insolvency Service,13/07/2018,Travel & Subsistence,Investigations & Enforcement Services,Staff Payment,900001730,3.60,
BEIS,The Insolvency Service,13/07/2018,Travel & Subsistence,Investigations & Enforcement Services,Staff Payment,900001730,4.00,
BEIS,The Insolvency Service,13/07/2018,Travel & Subsistence,Investigations & Enforcement Services,Staff Payment,900001730,4.30,
BEIS,The Insolvency Service,13/07/2018,Travel & Subsistence,Investigations & Enforcement Services,Staff Payment,900001730,9.80,
BEIS,The Insolvency Service,13/07/2018,Travel & Subsistence,Investigations & Enforcement Services,Staff Payment,900001730,5.00,
BEIS,The Insolvency Service,13/07/2018,Travel & Subsistence,Investigations & Enforcement Services,Staff Payment,900001730,9.50,
BEIS,The Insolvency Service,13/07/2018,Travel & Subsistence,Investigations & Enforcement Services,Staff Payment,900001730,5.00,
BEIS,The Insolvency Service,13/07/2018,Travel & Subsistence,Investigations & Enforcement Services,Staff Payment,900001730,3.25,
BEIS,The Insolvency Service,13/07/2018,Travel & Subsistence,Investigations & Enforcement Services,Staff Payment,900002000,16.65,
BEIS,The Insolvency Service,13/07/2018,Travel & Subsistence,Investigations & Enforcement Services,Staff Payment,900001588,33.75,
BEIS,The Insolvency Service,13/07/2018,Travel & Subsistence,Investigations & Enforcement Services,Staff Payment,900002028,27.00,
BEIS,The Insolvency Service,13/07/2018,Travel & Subsistence,Investigations & Enforcement Services,Staff Payment,900002028,38.70,
BEIS,The Insolvency Service,13/07/2018,Travel & Subsistence,Investigations & Enforcement Services,Staff Payment,900002028,20.70,
BEIS,The Insolvency Service,13/07/2018,Travel & Subsistence,Investigations & Enforcement Services,Staff Payment,900002028,16.20,
BEIS,The Insolvency Service,13/07/2018,Travel & Subsistence,Investigations & Enforcement Services,Staff Payment,900002028,5.00,
BEIS,The Insolvency Service,13/07/2018,Travel & Subsistence,Investigations & Enforcement Services,Staff Payment,900002028,5.00,
BEIS,The Insolvency Service,13/07/2018,Travel & Subsistence,Investigations & Enforcement Services,Staff Payment,900002028,4.90,
BEIS,The Insolvency Service,13/07/2018,Travel & Subsistence,Investigations & Enforcement Services,Staff Payment,900002028,5.00,
BEIS,The Insolvency Service,13/07/2018,Travel & Subsistence,Investigations & Enforcement Services,Staff Payment,900002028,5.00,
BEIS,The Insolvency Service,13/07/2018,Travel & Subsistence,Investigations & Enforcement Services,Staff Payment,900002028,3.60,
BEIS,The Insolvency Service,13/07/2018,Travel & Subsistence,Investigations & Enforcement Services,Staff Payment,900002028,19.80,
BEIS,The Insolvency Service,13/07/2018,Travel & Subsistence,Investigations & Enforcement Services,Staff Payment,900002028,16.50,
BEIS,The Insolvency Service,13/07/2018,Travel & Subsistence,Investigations & Enforcement Services,Staff Payment,900001711,5.00,
BEIS,The Insolvency Service,13/07/2018,Travel & Subsistence,Investigations & Enforcement Services,Staff Payment,900001711,5.00,
BEIS,The Insolvency Service,13/07/2018,Travel & Subsistence,Investigations & Enforcement Services,Staff Payment,900001711,4.35,
BEIS,The Insolvency Service,13/07/2018,Travel & Subsistence,Investigations & Enforcement Services,Staff Payment,900001711,4.50,
BEIS,The Insolvency Service,13/07/2018,Travel & Subsistence,Investigations & Enforcement Services,Staff Payment,900001711,5.80,
BEIS,The Insolvency Service,13/07/2018,Travel & Subsistence,Investigations & Enforcement Services,Staff Payment,900001711,40.95,
BEIS,The Insolvency Service,13/07/2018,Travel & Subsistence,Investigations & Enforcement Services,Staff Payment,900001711,43.20,
BEIS,The Insolvency Service,13/07/2018,Travel & Subsistence,Investigations & Enforcement Services,Staff Payment,900001711,41.40,
BEIS,The Insolvency Service,13/07/2018,Travel & Subsistence,Investigations & Enforcement Services,Staff Payment,900001711,2.70,
BEIS,The Insolvency Service,13/07/2018,Travel & Subsistence,Investigations & Enforcement Services,Staff Payment,900001711,25.65,
BEIS,The Insolvency Service,13/07/2018,Travel & Subsistence,Investigations & Enforcement Services,Staff Payment,900001711,40.50,
BEIS,The Insolvency Service,13/07/2018,Travel & Subsistence,Investigations & Enforcement Services,Staff Payment,900001711,12.00,
BEIS,The Insolvency Service,13/07/2018,Travel & Subsistence,Investigations & Enforcement Services,Staff Payment,900001711,288.00,
BEIS,The Insolvency Service,13/07/2018,Travel & Subsistence,Investigations & Enforcement Services,Staff Payment,900001711,3.60,
BEIS,The Insolvency Service,13/07/2018,Travel & Subsistence,Investigations & Enforcement Services,Staff Payment,900001711,4.90,
BEIS,The Insolvency Service,13/07/2018,Travel & Subsistence,Investigations & Enforcement Services,Staff Payment,900001711,15.00,
BEIS,The Insolvency Service,13/07/2018,Travel & Subsistence,Investigations & Enforcement Services,Staff Payment,900001711,2.20,
BEIS,The Insolvency Service,13/07/2018,Travel & Subsistence,People & Capability,Staff Payment,900002091,1.65,
BEIS,The Insolvency Service,13/07/2018,Travel & Subsistence,People & Capability,Staff Payment,900002091,8.50,
BEIS,The Insolvency Service,13/07/2018,Travel & Subsistence,People & Capability,Staff Payment,900002091,10.00,
BEIS,The Insolvency Service,13/07/2018,Travel & Subsistence,People & Capability,Staff Payment,900002091,18.90,
BEIS,The Insolvency Service,13/07/2018,Travel & Subsistence,People & Capability,Staff Payment,900002091,3.00,
BEIS,The Insolvency Service,13/07/2018,Travel & Subsistence,People & Capability,Staff Payment,900002091,4.00,
BEIS,The Insolvency Service,13/07/2018,Travel & Subsistence,People & Capability,Staff Payment,900002091,1.99,
BEIS,The Insolvency Service,13/07/2018,Travel & Subsistence,Investigations & Enforcement Services,Staff Payment,900002099,90.45,
BEIS,The Insolvency Service,13/07/2018,Travel & Subsistence,Finance & Commercial,Staff Payment,900001895,15.00,
BEIS,The Insolvency Service,13/07/2018,Travel & Subsistence,Finance & Commercial,Staff Payment,900001895,9.25,
BEIS,The Insolvency Service,13/07/2018,Travel & Subsistence,Finance & Commercial,Staff Payment,900001895,5.00,
BEIS,The Insolvency Service,13/07/2018,Travel & Subsistence,Finance & Commercial,Staff Payment,900001895,9.60,
BEIS,The Insolvency Service,13/07/2018,Travel & Subsistence,Finance & Commercial,Staff Payment,900001895,5.10,
BEIS,The Insolvency Service,13/07/2018,Travel & Subsistence,Finance & Commercial,Staff Payment,900001895,10.00,
BEIS,The Insolvency Service,13/07/2018,Travel & Subsistence,Finance & Commercial,Staff Payment,900001895,5.00,
BEIS,The Insolvency Service,13/07/2018,Travel & Subsistence,Finance & Commercial,Staff Payment,900001895,5.00,
BEIS,The Insolvency Service,13/07/2018,Travel & Subsistence,Finance & Commercial,Staff Payment,900001895,4.00,
BEIS,The Insolvency Service,13/07/2018,Travel & Subsistence,Finance & Commercial,Staff Payment,900001898,5.00,
BEIS,The Insolvency Service,13/07/2018,Travel & Subsistence,Finance & Commercial,Staff Payment,900001898,5.10,
BEIS,The Insolvency Service,13/07/2018,Travel & Subsistence,Finance & Commercial,Staff Payment,900001898,5.00,
BEIS,The Insolvency Service,13/07/2018,Travel & Subsistence,Finance & Commercial,Staff Payment,900001898,12.70,
BEIS,The Insolvency Service,13/07/2018,Travel & Subsistence,Finance & Commercial,Staff Payment,900001898,15.00,
BEIS,The Insolvency Service,13/07/2018,Travel & Subsistence,Finance & Commercial,Staff Payment,900001898,4.57,
BEIS,The Insolvency Service,13/07/2018,Travel & Subsistence,Finance & Commercial,Staff Payment,900001898,1.95,
BEIS,The Insolvency Service,13/07/2018,Travel & Subsistence,Finance & Commercial,Staff Payment,900001898,5.00,
BEIS,The Insolvency Service,13/07/2018,Travel & Subsistence,Finance & Commercial,Staff Payment,900001898,5.00,
BEIS,The Insolvency Service,13/07/2018,Travel & Subsistence,Finance & Commercial,Staff Payment,900001898,4.99,
BEIS,The Insolvency Service,13/07/2018,Travel & Subsistence,Investigations & Enforcement Services,Staff Payment,900002120,42.30,
BEIS,The Insolvency Service,13/07/2018,Travel & Subsistence,Investigations & Enforcement Services,Staff Payment,900002121,71.00,
BEIS,The Insolvency Service,13/07/2018,Travel & Subsistence,Investigations & Enforcement Services,Staff Payment,900002122,5.00,
BEIS,The Insolvency Service,13/07/2018,Travel & Subsistence,Finance & Commercial,Staff Payment,900001635,8.24,
BEIS,The Insolvency Service,13/07/2018,Travel & Subsistence,Finance & Commercial,Staff Payment,900001635,5.00,
BEIS,The Insolvency Service,13/07/2018,Travel & Subsistence,Finance & Commercial,Staff Payment,900001635,4.25,
BEIS,The Insolvency Service,13/07/2018,Travel & Subsistence,Finance & Commercial,Staff Payment,900001635,2.40,
BEIS,The Insolvency Service,13/07/2018,Travel & Subsistence,Finance & Commercial,Staff Payment,900001635,2.40,
BEIS,The Insolvency Service,13/07/2018,Travel & Subsistence,Finance & Commercial,Staff Payment,900001635,8.44,
BEIS,The Insolvency Service,13/07/2018,Travel & Subsistence,Finance & Commercial,Staff Payment,900001635,25.00,
BEIS,The Insolvency Service,13/07/2018,Travel & Subsistence,Finance & Commercial,Staff Payment,900001635,1.95,
BEIS,The Insolvency Service,13/07/2018,Travel & Subsistence,Information & Technology,Staff Payment,900002066,76.05,
BEIS,The Insolvency Service,13/07/2018,Travel & Subsistence,Information & Technology,Staff Payment,900002066,17.00,
BEIS,The Insolvency Service,13/07/2018,Travel & Subsistence,Information & Technology,Staff Payment,900002066,74.25,
BEIS,The Insolvency Service,13/07/2018,Travel & Subsistence,People & Capability,Staff Payment,900001432,3.30,
BEIS,The Insolvency Service,13/07/2018,Travel & Subsistence,People & Capability,Staff Payment,900001432,16.20,
BEIS,The Insolvency Service,13/07/2018,Travel & Subsistence,People & Capability,Staff Payment,900001432,5.00,
BEIS,The Insolvency Service,13/07/2018,Travel & Subsistence,People & Capability,Staff Payment,900001585,8.10,
BEIS,The Insolvency Service,13/07/2018,Travel & Subsistence,People & Capability,Staff Payment,900001585,8.10,
BEIS,The Insolvency Service,13/07/2018,Travel & Subsistence,People & Capability,Staff Payment,900001585,4.50,
BEIS,The Insolvency Service,13/07/2018,Travel & Subsistence,People & Capability,Staff Payment,900001585,15.00,
BEIS,The Insolvency Service,13/07/2018,Travel & Subsistence,People & Capability,Staff Payment,900001585,5.00,
BEIS,The Insolvency Service,13/07/2018,Travel & Subsistence,People & Capability,Staff Payment,900001769,12.20,
BEIS,The Insolvency Service,13/07/2018,Travel & Subsistence,People & Capability,Staff Payment,900001769,4.00,
BEIS,The Insolvency Service,13/07/2018,Travel & Subsistence,People & Capability,Staff Payment,900001769,32.40,
BEIS,The Insolvency Service,13/07/2018,Travel & Subsistence,People & Capability,Staff Payment,900002098,8.10,
BEIS,The Insolvency Service,13/07/2018,Travel & Subsistence,People & Capability,Staff Payment,900002098,16.20,
BEIS,The Insolvency Service,13/07/2018,Travel & Subsistence,People & Capability,Staff Payment,900002098,16.20,
BEIS,The Insolvency Service,13/07/2018,Travel & Subsistence,People & Capability,Staff Payment,900002098,8.10,
BEIS,The Insolvency Service,13/07/2018,Travel & Subsistence,People & Capability,Staff Payment,900002098,24.85,
BEIS,The Insolvency Service,13/07/2018,Travel & Subsistence,People & Capability,Staff Payment,900002098,5.00,
BEIS,The Insolvency Service,13/07/2018,Travel & Subsistence,People & Capability,Staff Payment,900002098,4.80,
BEIS,The Insolvency Service,13/07/2018,Travel & Subsistence,People & Capability,Staff Payment,900002098,3.15,
BEIS,The Insolvency Service,13/07/2018,Travel & Subsistence,People & Capability,Staff Payment,900002098,4.70,
BEIS,The Insolvency Service,14/07/2018,Investigation & Enforcement Costs,Investigations & Enforcement Services,Safestore Ltd,300001961,118.26,
BEIS,The Insolvency Service,16/07/2018,Agency Costs,Finance & Commercial,Capita Business Services Limited,300000179,2500.70,618184140
BEIS,The Insolvency Service,16/07/2018,Agency Costs,Finance & Commercial,Capita Business Services Ltd,300000181,2138.45,618184140
BEIS,The Insolvency Service,16/07/2018,Agency Costs,Finance & Commercial,Capita Business Services Ltd,300000184,2145.10,618184140
BEIS,The Insolvency Service,16/07/2018,Agency Costs,Finance & Commercial,Capita Business Services Ltd,300000444,2992.86,618184140
BEIS,The Insolvency Service,16/07/2018,Agency Costs,Finance & Commercial,Capita Resourcing Ltd,300000567,2668.14,618184140
BEIS,The Insolvency Service,16/07/2018,Agency Costs,Finance & Commercial,Capita Resourcing Ltd,300000583,2992.86,618184140
BEIS,The Insolvency Service,16/07/2018,Agency Costs,Finance & Commercial,Capita Resourcing Ltd,300000549,2668.14,618184140
BEIS,The Insolvency Service,16/07/2018,Agency Costs,Finance & Commercial,Capita Resourcing Ltd,300000550,2654.11,618184140
BEIS,The Insolvency Service,16/07/2018,Agency Costs,Finance & Commercial,Capita Business Services Limited,300000782,2138.45,618184140
BEIS,The Insolvency Service,16/07/2018,Agency Costs,Finance & Commercial,Capita Business Services Limited,300000792,1716.08,618184140
BEIS,The Insolvency Service,16/07/2018,Agency Costs,Finance & Commercial,Capita Business Services Limited,300000794,1778.76,618184140
BEIS,The Insolvency Service,16/07/2018,Agency Costs,Finance & Commercial,Capita Business Services Limited,300000796,2211.76,618184140
BEIS,The Insolvency Service,16/07/2018,Legal Costs,Finance & Commercial,Eversheds Sutherland (International) Llp,300001198,4993.48,
BEIS,The Insolvency Service,16/07/2018,Investigation & Enforcement Costs,Investigations & Enforcement Services,Howes Percival,300001405,4061.62,119523573
BEIS,The Insolvency Service,16/07/2018,Investigation & Enforcement Costs,Investigations & Enforcement Services,Howes Percival,300001687,824.78,119523573
BEIS,The Insolvency Service,16/07/2018,Investigation & Enforcement Costs,Investigations & Enforcement Services,Howes Percival,300001689,3806.10,119523573
BEIS,The Insolvency Service,16/07/2018,Investigation & Enforcement Costs,Investigations & Enforcement Services,Howes Percival,300001693,47.24,119523573
BEIS,The Insolvency Service,16/07/2018,Investigation & Enforcement Costs,Investigations & Enforcement Services,Howes Percival,300001695,2492.06,119523573
BEIS,The Insolvency Service,16/07/2018,Agency Costs,Finance & Commercial,Capita Business Services Limited,300000840,4025.76,618184140
BEIS,The Insolvency Service,16/07/2018,Agency Costs,Finance & Commercial,Capita Business Services Limited,300000841,2566.14,618184140
BEIS,The Insolvency Service,16/07/2018,Agency Costs,Finance & Commercial,Capita Business Services Limited,300000845,2223.45,618184140
BEIS,The Insolvency Service,16/07/2018,Agency Costs,Finance & Commercial,Capita Business Services Limited,300000850,2145.10,618184140
BEIS,The Insolvency Service,16/07/2018,Agency Costs,Finance & Commercial,Capita Business Services Ltd,300000866,5623.98,618184140
BEIS,The Insolvency Service,16/07/2018,Agency Costs,Finance & Commercial,Capita Business Services Ltd,300000868,6635.28,618184140
BEIS,The Insolvency Service,16/07/2018,Legal Costs,Finance & Commercial,Eversheds Sutherland (International) Llp,300001168,1039.20,
BEIS,The Insolvency Service,16/07/2018,Insolvency Case Related Costs,Official Receiver Services,The Stationery Office Ltd,300001943,223.74,662774703
BEIS,The Insolvency Service,16/07/2018,Other Costs,Criminal Enforcement Team,Think Different Events Ltd,300001893,3072.00,
BEIS,The Insolvency Service,16/07/2018,Other Costs,Criminal Enforcement Team,Think Different Events Ltd,300001893,4250.00,
BEIS,The Insolvency Service,17/07/2018,Agency Costs,Finance & Commercial,Capita Business Services Limited,300000768,4619.05,618184140
BEIS,The Insolvency Service,17/07/2018,Agency Costs,Finance & Commercial,Capita Business Services Limited,300000772,4817.02,618184140
BEIS,The Insolvency Service,17/07/2018,Legal Costs,Finance & Commercial,Eversheds Sutherland (International) Llp,300001051,5143.12,
BEIS,The Insolvency Service,17/07/2018,Investigation & Enforcement Costs,Investigations & Enforcement Services,Shepherd & Wedderburn,300001755,954.20,125425142
BEIS,The Insolvency Service,17/07/2018,Investigation & Enforcement Costs,Investigations & Enforcement Services,Shepherd & Wedderburn,300001758,4911.26,890559386
BEIS,The Insolvency Service,17/07/2018,Investigation & Enforcement Costs,Investigations & Enforcement Services,Womble Bond Dickinson,300001752,3152.15,123392627
BEIS,The Insolvency Service,17/07/2018,Investigation & Enforcement Costs,Investigations & Enforcement Services,Burness Paull & Williamsons Solicitors,300001757,9538.21,216218532
BEIS,The Insolvency Service,17/07/2018,Computer and IT Systems,Information & Technology,Atos It Services Uk Ltd,300001264,46323.16,232327983
BEIS,The Insolvency Service,17/07/2018,Computer and IT Systems,Investigations & Enforcement Services,Daisy Communications Ltd,300001735,35.08,
BEIS,The Insolvency Service,17/07/2018,Computer and IT Systems,Investigations & Enforcement Services,Daisy Communications Ltd,300001736,37.03,
BEIS,The Insolvency Service,18/07/2018,Accomodation,Finance & Commercial,Blackpool Borough Council,300000997,980.63,
BEIS,The Insolvency Service,18/07/2018,Agency Costs,Finance & Commercial,Capita Business Services Ltd,300000175,2676.12,618184140
BEIS,The Insolvency Service,18/07/2018,Agency Costs,Finance & Commercial,Capita Business Services Ltd,300000437,2140.90,618184140
BEIS,The Insolvency Service,18/07/2018,Agency Costs,Finance & Commercial,Capita Business Services Ltd,300000440,2676.12,618184140
BEIS,The Insolvency Service,18/07/2018,Agency Costs,Finance & Commercial,Capita Business Services Ltd,300000441,3000.84,618184140
BEIS,The Insolvency Service,18/07/2018,Agency Costs,Finance & Commercial,Capita Business Services Ltd,300000445,2566.14,618184140
BEIS,The Insolvency Service,18/07/2018,Agency Costs,Finance & Commercial,Capita Business Services Ltd,300000446,2140.90,618184140
BEIS,The Insolvency Service,18/07/2018,Agency Costs,Finance & Commercial,Capita Resourcing Ltd,300000573,3012.90,618184140
BEIS,The Insolvency Service,18/07/2018,Agency Costs,Finance & Commercial,Capita Resourcing Ltd,300000579,2574.12,618184140
BEIS,The Insolvency Service,18/07/2018,Agency Costs,Finance & Commercial,Capita Resourcing Ltd,300000551,6584.28,618184140
BEIS,The Insolvency Service,18/07/2018,Agency Costs,Finance & Commercial,Capita Resourcing Ltd,300000553,3012.90,618184140
BEIS,The Insolvency Service,18/07/2018,Agency Costs,Finance & Commercial,Capita Business Services Limited,300000784,2410.32,618184140
BEIS,The Insolvency Service,18/07/2018,Agency Costs,Finance & Commercial,Capita Business Services Ltd,300000802,3002.64,618184140
BEIS,The Insolvency Service,18/07/2018,Agency Costs,Finance & Commercial,Capita Business Services Limited,300000839,1801.58,618184140
BEIS,The Insolvency Service,18/07/2018,Agency Costs,Finance & Commercial,Capita Business Services Limited,300000848,4308.84,618184140
BEIS,The Insolvency Service,18/07/2018,Computer and IT Systems,Official Receiver Services,Dx Network Services Ltd,300001744,5298.54,849741385
BEIS,The Insolvency Service,18/07/2018,Computer and IT Systems,Chief Executive Office,Nla Media Access Limited,300001626,9966.00,
BEIS,The Insolvency Service,18/07/2018,Investigation & Enforcement Costs,Investigations & Enforcement Services,Shepherd & Wedderburn,300001759,29782.70,890559386
BEIS,The Insolvency Service,18/07/2018,Investigation & Enforcement Costs,Investigations & Enforcement Services,Womble Bond Dickinson,300001766,7037.45,123392627
BEIS,The Insolvency Service,18/07/2018,Investigation & Enforcement Costs,Investigations & Enforcement Services,Womble Bond Dickinson,300001768,73592.49,123392627
BEIS,The Insolvency Service,18/07/2018,Investigation & Enforcement Costs,Investigations & Enforcement Services,Gowling Wragge Lawrence Graham  & Co,300001753,13237.13,858698838
BEIS,The Insolvency Service,18/07/2018,Investigation & Enforcement Costs,Investigations & Enforcement Services,Gowling Wragge Lawrence Graham  & Co,300001754,1490.89,858698838
BEIS,The Insolvency Service,18/07/2018,Investigation & Enforcement Costs,Investigations & Enforcement Services,Gowling Wragge Lawrence Graham  & Co,300001765,5326.53,858698838
BEIS,The Insolvency Service,18/07/2018,Investigation & Enforcement Costs,Investigations & Enforcement Services,Womble Bond Dickinson,300001769,5000.00,123392627
BEIS,The Insolvency Service,18/07/2018,Insolvency Case Related Costs,Official Receiver Services,Hpi Ltd,300001396,3.92,942407139
BEIS,The Insolvency Service,18/07/2018,Insolvency Case Related Costs,Official Receiver Services,The Stationery Office Ltd,300001942,149.16,662774703
BEIS,The Insolvency Service,18/07/2018,Investigation & Enforcement Costs,Investigations & Enforcement Services,Clarke Willmott Solicitors,300001761,202.99,129913060
BEIS,The Insolvency Service,18/07/2018,Investigation & Enforcement Costs,Criminal Enforcement Team,23 Essex Street,300002064,22333.82,524199244
BEIS,The Insolvency Service,18/07/2018,Agency Costs,Finance & Commercial,SF RECRUITMENT LTD,300001941,2469.60,141965992
BEIS,The Insolvency Service,18/07/2018,Travel & Subsistence,Official Receiver Services,Staff Payment,900002267,5.00,
BEIS,The Insolvency Service,18/07/2018,Travel & Subsistence,Investigations & Enforcement Services,Staff Payment,900002244,35.00,
BEIS,The Insolvency Service,18/07/2018,Travel & Subsistence,Investigations & Enforcement Services,Staff Payment,900002244,25.00,
BEIS,The Insolvency Service,18/07/2018,Travel & Subsistence,Investigations & Enforcement Services,Staff Payment,900002244,25.00,
BEIS,The Insolvency Service,18/07/2018,Travel & Subsistence,Investigations & Enforcement Services,Staff Payment,900002244,25.00,
BEIS,The Insolvency Service,18/07/2018,Travel & Subsistence,Investigations & Enforcement Services,Staff Payment,900002244,25.00,
BEIS,The Insolvency Service,18/07/2018,Travel & Subsistence,Investigations & Enforcement Services,Staff Payment,900002244,20.00,
BEIS,The Insolvency Service,18/07/2018,Travel & Subsistence,Investigations & Enforcement Services,Staff Payment,900002244,20.00,
BEIS,The Insolvency Service,18/07/2018,Travel & Subsistence,Investigations & Enforcement Services,Staff Payment,900002235,11.25,
BEIS,The Insolvency Service,18/07/2018,Travel & Subsistence,Investigations & Enforcement Services,Staff Payment,900002235,7.00,
BEIS,The Insolvency Service,18/07/2018,Travel & Subsistence,Investigations & Enforcement Services,Staff Payment,900002235,11.25,
BEIS,The Insolvency Service,18/07/2018,Travel & Subsistence,Investigations & Enforcement Services,Staff Payment,900002235,7.00,
BEIS,The Insolvency Service,18/07/2018,Travel & Subsistence,Investigations & Enforcement Services,Staff Payment,900002235,8.60,
BEIS,The Insolvency Service,18/07/2018,Travel & Subsistence,Investigations & Enforcement Services,Staff Payment,900002097,5.00,
BEIS,The Insolvency Service,18/07/2018,Travel & Subsistence,Investigations & Enforcement Services,Staff Payment,900002097,59.85,
BEIS,The Insolvency Service,18/07/2018,Travel & Subsistence,Investigations & Enforcement Services,Staff Payment,900002097,9.60,
BEIS,The Insolvency Service,18/07/2018,Travel & Subsistence,Investigations & Enforcement Services,Staff Payment,900002097,14.00,
BEIS,The Insolvency Service,18/07/2018,Travel & Subsistence,People & Capability,Staff Payment,900002237,6.50,
BEIS,The Insolvency Service,18/07/2018,Travel & Subsistence,People & Capability,Staff Payment,900002237,5.90,
BEIS,The Insolvency Service,18/07/2018,Travel & Subsistence,People & Capability,Staff Payment,900002237,12.00,
BEIS,The Insolvency Service,18/07/2018,Travel & Subsistence,People & Capability,Staff Payment,900002237,1.49,
BEIS,The Insolvency Service,18/07/2018,Travel & Subsistence,People & Capability,Staff Payment,900002237,4.40,
BEIS,The Insolvency Service,18/07/2018,Travel & Subsistence,People & Capability,Staff Payment,900002237,93.13,
BEIS,The Insolvency Service,18/07/2018,Travel & Subsistence,People & Capability,Staff Payment,900002237,5.00,
BEIS,The Insolvency Service,18/07/2018,Travel & Subsistence,People & Capability,Staff Payment,900002237,15.00,
BEIS,The Insolvency Service,18/07/2018,Travel & Subsistence,People & Capability,Staff Payment,900002237,8.20,
BEIS,The Insolvency Service,18/07/2018,Travel & Subsistence,People & Capability,Staff Payment,900002237,5.00,
BEIS,The Insolvency Service,18/07/2018,Travel & Subsistence,People & Capability,Staff Payment,900002238,5.00,
BEIS,The Insolvency Service,18/07/2018,Travel & Subsistence,People & Capability,Staff Payment,900002238,10.20,
BEIS,The Insolvency Service,18/07/2018,Travel & Subsistence,People & Capability,Staff Payment,900002238,18.90,
BEIS,The Insolvency Service,18/07/2018,Travel & Subsistence,Finance & Commercial,Staff Payment,900001190,7.98,
BEIS,The Insolvency Service,18/07/2018,Travel & Subsistence,Finance & Commercial,Staff Payment,900001190,15.00,
BEIS,The Insolvency Service,18/07/2018,Travel & Subsistence,Finance & Commercial,Staff Payment,900001190,2.40,
BEIS,The Insolvency Service,18/07/2018,Travel & Subsistence,Finance & Commercial,Staff Payment,900001190,2.40,
BEIS,The Insolvency Service,18/07/2018,Travel & Subsistence,Finance & Commercial,Staff Payment,900001190,4.50,
BEIS,The Insolvency Service,18/07/2018,Travel & Subsistence,Finance & Commercial,Staff Payment,900001190,5.00,
BEIS,The Insolvency Service,18/07/2018,Travel & Subsistence,Finance & Commercial,Staff Payment,900001190,2.40,
BEIS,The Insolvency Service,18/07/2018,Travel & Subsistence,Finance & Commercial,Staff Payment,900001191,2.40,
BEIS,The Insolvency Service,18/07/2018,Travel & Subsistence,Finance & Commercial,Staff Payment,900001191,13.92,
BEIS,The Insolvency Service,18/07/2018,Travel & Subsistence,Finance & Commercial,Staff Payment,900001191,8.99,
BEIS,The Insolvency Service,18/07/2018,Travel & Subsistence,Finance & Commercial,Staff Payment,900001191,2.40,
BEIS,The Insolvency Service,18/07/2018,Travel & Subsistence,Finance & Commercial,Staff Payment,900001191,5.00,
BEIS,The Insolvency Service,18/07/2018,Travel & Subsistence,Finance & Commercial,Staff Payment,900001192,19.65,
BEIS,The Insolvency Service,18/07/2018,Travel & Subsistence,Finance & Commercial,Staff Payment,900001192,3.39,
BEIS,The Insolvency Service,18/07/2018,Travel & Subsistence,Finance & Commercial,Staff Payment,900001192,5.00,
BEIS,The Insolvency Service,18/07/2018,Travel & Subsistence,Finance & Commercial,Staff Payment,900001193,5.00,
BEIS,The Insolvency Service,18/07/2018,Travel & Subsistence,Finance & Commercial,Staff Payment,900001193,17.94,
BEIS,The Insolvency Service,18/07/2018,Travel & Subsistence,Finance & Commercial,Staff Payment,900001193,2.40,
BEIS,The Insolvency Service,18/07/2018,Travel & Subsistence,Finance & Commercial,Staff Payment,900001193,2.40,
BEIS,The Insolvency Service,18/07/2018,Travel & Subsistence,Finance & Commercial,Staff Payment,900001193,2.40,
BEIS,The Insolvency Service,18/07/2018,Travel & Subsistence,Finance & Commercial,Staff Payment,900001193,4.20,
BEIS,The Insolvency Service,18/07/2018,Travel & Subsistence,Finance & Commercial,Staff Payment,900001193,1.95,
BEIS,The Insolvency Service,18/07/2018,Travel & Subsistence,Finance & Commercial,Staff Payment,900001194,26.46,
BEIS,The Insolvency Service,18/07/2018,Travel & Subsistence,Finance & Commercial,Staff Payment,900001194,5.00,
BEIS,The Insolvency Service,18/07/2018,Travel & Subsistence,Finance & Commercial,Staff Payment,900001194,4.80,
BEIS,The Insolvency Service,18/07/2018,Travel & Subsistence,Finance & Commercial,Staff Payment,900001194,2.40,
BEIS,The Insolvency Service,18/07/2018,Travel & Subsistence,Finance & Commercial,Staff Payment,900001194,2.40,
BEIS,The Insolvency Service,18/07/2018,Travel & Subsistence,Finance & Commercial,Staff Payment,900001194,2.40,
BEIS,The Insolvency Service,18/07/2018,Travel & Subsistence,Finance & Commercial,Staff Payment,900001194,5.00,
BEIS,The Insolvency Service,18/07/2018,Travel & Subsistence,Finance & Commercial,Staff Payment,900001194,8.50,
BEIS,The Insolvency Service,18/07/2018,Travel & Subsistence,Finance & Commercial,Staff Payment,900001923,3.05,
BEIS,The Insolvency Service,18/07/2018,Travel & Subsistence,Finance & Commercial,Staff Payment,900001923,5.00,
BEIS,The Insolvency Service,18/07/2018,Travel & Subsistence,Finance & Commercial,Staff Payment,900001923,15.00,
BEIS,The Insolvency Service,18/07/2018,Travel & Subsistence,Finance & Commercial,Staff Payment,900001923,7.64,
BEIS,The Insolvency Service,18/07/2018,Travel & Subsistence,Official Receiver Services,Staff Payment,900002226,15.00,
BEIS,The Insolvency Service,18/07/2018,Travel & Subsistence,Official Receiver Services,Staff Payment,900002226,10.00,
BEIS,The Insolvency Service,18/07/2018,Travel & Subsistence,Official Receiver Services,Staff Payment,900002226,5.00,
BEIS,The Insolvency Service,18/07/2018,Travel & Subsistence,Official Receiver Services,Staff Payment,900002226,4.50,
BEIS,The Insolvency Service,18/07/2018,Travel & Subsistence,Official Receiver Services,Staff Payment,900002227,5.00,
BEIS,The Insolvency Service,18/07/2018,Travel & Subsistence,Official Receiver Services,Staff Payment,900002227,10.00,
BEIS,The Insolvency Service,18/07/2018,Travel & Subsistence,Official Receiver Services,Staff Payment,900002227,14.80,
BEIS,The Insolvency Service,18/07/2018,Travel & Subsistence,Business Service Division,Staff Payment,900001682,5.00,
BEIS,The Insolvency Service,18/07/2018,Travel & Subsistence,Business Service Division,Staff Payment,900001682,7.10,
BEIS,The Insolvency Service,18/07/2018,Travel & Subsistence,Business Service Division,Staff Payment,900001683,15.00,
BEIS,The Insolvency Service,18/07/2018,Travel & Subsistence,Business Service Division,Staff Payment,900001683,4.35,
BEIS,The Insolvency Service,18/07/2018,Travel & Subsistence,Business Service Division,Staff Payment,900001684,3.39,
BEIS,The Insolvency Service,18/07/2018,Travel & Subsistence,Business Service Division,Staff Payment,900001684,4.64,
BEIS,The Insolvency Service,18/07/2018,Travel & Subsistence,Business Service Division,Staff Payment,900001685,6.32,
BEIS,The Insolvency Service,18/07/2018,Travel & Subsistence,Business Service Division,Staff Payment,900001686,15.00,
BEIS,The Insolvency Service,18/07/2018,Travel & Subsistence,Business Service Division,Staff Payment,900001686,5.00,
BEIS,The Insolvency Service,18/07/2018,Travel & Subsistence,Business Service Division,Staff Payment,900001686,5.00,
BEIS,The Insolvency Service,18/07/2018,Travel & Subsistence,Business Service Division,Staff Payment,900001686,5.00,
BEIS,The Insolvency Service,18/07/2018,Travel & Subsistence,Business Service Division,Staff Payment,900001687,5.00,
BEIS,The Insolvency Service,18/07/2018,Travel & Subsistence,Business Service Division,Staff Payment,900001687,15.00,
BEIS,The Insolvency Service,18/07/2018,Travel & Subsistence,Business Service Division,Staff Payment,900001687,5.00,
BEIS,The Insolvency Service,18/07/2018,Travel & Subsistence,Business Service Division,Staff Payment,900001688,5.00,
BEIS,The Insolvency Service,19/07/2018,Agency Costs,Finance & Commercial,Capita Resourcing Ltd,300000099,1723.54,618184140
BEIS,The Insolvency Service,19/07/2018,Agency Costs,Finance & Commercial,Capita Business Services Ltd,300000439,3000.84,618184140
BEIS,The Insolvency Service,19/07/2018,Training,People & Capability,Tms Development International Ltd,300001627,864.60,551650063
BEIS,The Insolvency Service,19/07/2018,Agency Costs,Finance & Commercial,Capita Resourcing Ltd,300000552,3603.17,618184140
BEIS,The Insolvency Service,19/07/2018,Computer and IT Systems,Information & Technology,Lumesse Learning Limited,300001764,50933.23,115096236
BEIS,The Insolvency Service,19/07/2018,Agency Costs,Finance & Commercial,Capita Business Services Ltd,300001774,5623.98,618184140
BEIS,The Insolvency Service,19/07/2018,Computer and IT Systems,Business Service Division,Maintel,300001619,60.00,
BEIS,The Insolvency Service,19/07/2018,Computer and IT Systems,Business Service Division,Maintel,300001619,15.00,
BEIS,The Insolvency Service,19/07/2018,Investigation & Enforcement Costs,Investigations & Enforcement Services,Gowling Wragge Lawrence Graham  & Co,300001770,9393.67,858698838
BEIS,The Insolvency Service,19/07/2018,Investigation & Enforcement Costs,Investigations & Enforcement Services,Gowling Wragge Lawrence Graham  & Co,300001771,85030.70,858698838
BEIS,The Insolvency Service,19/07/2018,Agency Costs,Finance & Commercial,Capita Business Services Limited,300001776,1723.54,618184140
BEIS,The Insolvency Service,19/07/2018,Agency Costs,Finance & Commercial,Capita Business Services Limited,300001777,2400.67,618184140
BEIS,The Insolvency Service,19/07/2018,Agency Costs,Finance & Commercial,Capita Business Services Limited,300001778,2409.84,618184140
BEIS,The Insolvency Service,19/07/2018,Agency Costs,Finance & Commercial,Capita Business Services Limited,300001789,2394.29,618184140
BEIS,The Insolvency Service,19/07/2018,Agency Costs,Finance & Commercial,Capita Business Services Limited,300001791,1304.11,618184140
BEIS,The Insolvency Service,19/07/2018,Agency Costs,Finance & Commercial,Capita Business Services Limited,300001806,2886.12,618184140
BEIS,The Insolvency Service,19/07/2018,Agency Costs,Finance & Commercial,Capita Business Services Limited,300001812,3453.77,618184140
BEIS,The Insolvency Service,19/07/2018,Agency Costs,Finance & Commercial,Capita Business Services Ltd,300001773,6463.26,618184140
BEIS,The Insolvency Service,19/07/2018,Printing & Stationery,Criminal Enforcement Team,Beis - Dept. For Business Innovation & Skills,300001881,246.74,888825550
BEIS,The Insolvency Service,19/07/2018,Printing & Stationery,Finance & Commercial,"Department For Business, Energy And Industrial Strategy (Be)",300001301,246.74,
BEIS,The Insolvency Service,19/07/2018,Travel & Subsistence,Investigations & Enforcement Services,Staff Payment,900002057,38.34,
BEIS,The Insolvency Service,19/07/2018,Travel & Subsistence,Investigations & Enforcement Services,Staff Payment,900002057,5.00,
BEIS,The Insolvency Service,19/07/2018,Travel & Subsistence,Investigations & Enforcement Services,Staff Payment,900002057,2.40,
BEIS,The Insolvency Service,19/07/2018,Travel & Subsistence,Investigations & Enforcement Services,Staff Payment,900002057,4.80,
BEIS,The Insolvency Service,19/07/2018,Travel & Subsistence,Official Receiver Services,Staff Payment,900002223,5.00,
BEIS,The Insolvency Service,19/07/2018,Travel & Subsistence,Investigations & Enforcement Services,Staff Payment,900002228,12.00,
BEIS,The Insolvency Service,19/07/2018,Travel & Subsistence,Investigations & Enforcement Services,Staff Payment,900002228,108.00,
BEIS,The Insolvency Service,19/07/2018,Travel & Subsistence,Investigations & Enforcement Services,Staff Payment,900002228,5.00,
BEIS,The Insolvency Service,19/07/2018,Travel & Subsistence,Investigations & Enforcement Services,Staff Payment,900002228,108.00,
BEIS,The Insolvency Service,19/07/2018,Travel & Subsistence,Investigations & Enforcement Services,Staff Payment,900002228,1.67,
BEIS,The Insolvency Service,19/07/2018,Travel & Subsistence,Investigations & Enforcement Services,Staff Payment,900001899,7.00,
BEIS,The Insolvency Service,19/07/2018,Travel & Subsistence,Official Receiver Services,Staff Payment,900002252,5.00,
BEIS,The Insolvency Service,19/07/2018,Travel & Subsistence,Official Receiver Services,Staff Payment,900002253,4.65,
BEIS,The Insolvency Service,19/07/2018,Travel & Subsistence,Official Receiver Services,Staff Payment,900002253,12.00,
BEIS,The Insolvency Service,19/07/2018,Travel & Subsistence,Investigations & Enforcement Services,Staff Payment,900002186,37.80,
BEIS,The Insolvency Service,19/07/2018,Travel & Subsistence,Investigations & Enforcement Services,Staff Payment,900002186,9.37,
BEIS,The Insolvency Service,19/07/2018,Travel & Subsistence,Investigations & Enforcement Services,Staff Payment,900002186,5.40,
BEIS,The Insolvency Service,19/07/2018,Travel & Subsistence,Investigations & Enforcement Services,Staff Payment,900002186,4.70,
BEIS,The Insolvency Service,19/07/2018,Travel & Subsistence,Investigations & Enforcement Services,Staff Payment,900002186,10.00,
BEIS,The Insolvency Service,19/07/2018,Travel & Subsistence,Investigations & Enforcement Services,Staff Payment,900002186,37.80,
BEIS,The Insolvency Service,19/07/2018,Travel & Subsistence,Strategy & Change,Staff Payment,900002232,5.00,
BEIS,The Insolvency Service,19/07/2018,Travel & Subsistence,Business Service Division,Staff Payment,900002202,28.00,
BEIS,The Insolvency Service,19/07/2018,Travel & Subsistence,Business Service Division,Staff Payment,900002202,5.00,
BEIS,The Insolvency Service,19/07/2018,Travel & Subsistence,Business Service Division,Staff Payment,900002202,15.00,
BEIS,The Insolvency Service,19/07/2018,Travel & Subsistence,Business Service Division,Staff Payment,900002202,5.00,
BEIS,The Insolvency Service,19/07/2018,Travel & Subsistence,Business Service Division,Staff Payment,900002203,5.10,
BEIS,The Insolvency Service,19/07/2018,Travel & Subsistence,Business Service Division,Staff Payment,900002203,7.50,
BEIS,The Insolvency Service,19/07/2018,Travel & Subsistence,Business Service Division,Staff Payment,900002203,46.80,
BEIS,The Insolvency Service,19/07/2018,Travel & Subsistence,Business Service Division,Staff Payment,900002203,14.95,
BEIS,The Insolvency Service,19/07/2018,Travel & Subsistence,Business Service Division,Staff Payment,900002203,5.00,
BEIS,The Insolvency Service,19/07/2018,Travel & Subsistence,Business Service Division,Staff Payment,900002203,46.80,
BEIS,The Insolvency Service,19/07/2018,Travel & Subsistence,Business Service Division,Staff Payment,900002203,5.00,
BEIS,The Insolvency Service,19/07/2018,Travel & Subsistence,Official Receiver Services,Staff Payment,900001562,5.00,
BEIS,The Insolvency Service,19/07/2018,Travel & Subsistence,Official Receiver Services,Staff Payment,900001562,5.00,
BEIS,The Insolvency Service,19/07/2018,Travel & Subsistence,Official Receiver Services,Staff Payment,900001564,5.00,
BEIS,The Insolvency Service,19/07/2018,Travel & Subsistence,Official Receiver Services,Staff Payment,900001564,5.00,
BEIS,The Insolvency Service,19/07/2018,Travel & Subsistence,Official Receiver Services,Staff Payment,900001565,5.00,
BEIS,The Insolvency Service,19/07/2018,Travel & Subsistence,Official Receiver Services,Staff Payment,900001565,5.00,
BEIS,The Insolvency Service,19/07/2018,Travel & Subsistence,Official Receiver Services,Staff Payment,900001614,5.00,
BEIS,The Insolvency Service,19/07/2018,Travel & Subsistence,Official Receiver Services,Staff Payment,900001614,9.35,
BEIS,The Insolvency Service,19/07/2018,Travel & Subsistence,Official Receiver Services,Staff Payment,900001819,5.00,
BEIS,The Insolvency Service,19/07/2018,Travel & Subsistence,Official Receiver Services,Staff Payment,900001819,5.00,
BEIS,The Insolvency Service,19/07/2018,Travel & Subsistence,Official Receiver Services,Staff Payment,900001821,5.00,
BEIS,The Insolvency Service,19/07/2018,Travel & Subsistence,Official Receiver Services,Staff Payment,900001821,5.00,
BEIS,The Insolvency Service,19/07/2018,Travel & Subsistence,Official Receiver Services,Staff Payment,900001952,5.00,
BEIS,The Insolvency Service,19/07/2018,Travel & Subsistence,People & Capability,Staff Payment,900002277,5.00,
BEIS,The Insolvency Service,19/07/2018,Travel & Subsistence,People & Capability,Staff Payment,900002277,5.00,
BEIS,The Insolvency Service,19/07/2018,Travel & Subsistence,People & Capability,Staff Payment,900002278,5.00,
BEIS,The Insolvency Service,19/07/2018,Travel & Subsistence,People & Capability,Staff Payment,900002278,4.96,
BEIS,The Insolvency Service,19/07/2018,Travel & Subsistence,Investigations & Enforcement Services,Staff Payment,900001951,7.00,
BEIS,The Insolvency Service,19/07/2018,Travel & Subsistence,Investigations & Enforcement Services,Staff Payment,900002104,5.00,
BEIS,The Insolvency Service,19/07/2018,Travel & Subsistence,Investigations & Enforcement Services,Staff Payment,900002104,7.80,
BEIS,The Insolvency Service,19/07/2018,Travel & Subsistence,Official Receiver Services,Staff Payment,900002218,5.00,
BEIS,The Insolvency Service,19/07/2018,Travel & Subsistence,Investigations & Enforcement Services,Staff Payment,900002262,12.20,
BEIS,The Insolvency Service,19/07/2018,Travel & Subsistence,Investigations & Enforcement Services,Staff Payment,900002262,5.80,
BEIS,The Insolvency Service,19/07/2018,Travel & Subsistence,Investigations & Enforcement Services,Staff Payment,900002263,12.20,
BEIS,The Insolvency Service,19/07/2018,Travel & Subsistence,Investigations & Enforcement Services,Staff Payment,900002206,4.48,
BEIS,The Insolvency Service,19/07/2018,Travel & Subsistence,Investigations & Enforcement Services,Staff Payment,900002207,4.60,
BEIS,The Insolvency Service,19/07/2018,Travel & Subsistence,Investigations & Enforcement Services,Staff Payment,900002207,5.00,
BEIS,The Insolvency Service,19/07/2018,Travel & Subsistence,Investigations & Enforcement Services,Staff Payment,900002207,1.70,
BEIS,The Insolvency Service,19/07/2018,Travel & Subsistence,Investigations & Enforcement Services,Staff Payment,900002207,1.70,
BEIS,The Insolvency Service,19/07/2018,Travel & Subsistence,Investigations & Enforcement Services,Staff Payment,900002207,15.00,
BEIS,The Insolvency Service,19/07/2018,Travel & Subsistence,Investigations & Enforcement Services,Staff Payment,900002208,4.60,
BEIS,The Insolvency Service,19/07/2018,Travel & Subsistence,Investigations & Enforcement Services,Staff Payment,900002208,36.00,
BEIS,The Insolvency Service,19/07/2018,Travel & Subsistence,Investigations & Enforcement Services,Staff Payment,900002208,12.00,
BEIS,The Insolvency Service,19/07/2018,Travel & Subsistence,Investigations & Enforcement Services,Staff Payment,900002209,4.98,
BEIS,The Insolvency Service,19/07/2018,Travel & Subsistence,Investigations & Enforcement Services,Staff Payment,900002209,4.30,
BEIS,The Insolvency Service,19/07/2018,Travel & Subsistence,Investigations & Enforcement Services,Staff Payment,900002273,4.70,
BEIS,The Insolvency Service,19/07/2018,Travel & Subsistence,Investigations & Enforcement Services,Staff Payment,900002273,15.00,
BEIS,The Insolvency Service,19/07/2018,Travel & Subsistence,Investigations & Enforcement Services,Staff Payment,900002273,10.00,
BEIS,The Insolvency Service,19/07/2018,Travel & Subsistence,Investigations & Enforcement Services,Staff Payment,900002273,5.00,
BEIS,The Insolvency Service,19/07/2018,Travel & Subsistence,Investigations & Enforcement Services,Staff Payment,900002274,5.00,
BEIS,The Insolvency Service,19/07/2018,Travel & Subsistence,Investigations & Enforcement Services,Staff Payment,900002275,5.00,
BEIS,The Insolvency Service,19/07/2018,Travel & Subsistence,Investigations & Enforcement Services,Staff Payment,900002275,4.70,
BEIS,The Insolvency Service,19/07/2018,Travel & Subsistence,Investigations & Enforcement Services,Staff Payment,900002275,2.00,
BEIS,The Insolvency Service,19/07/2018,Travel & Subsistence,Investigations & Enforcement Services,Staff Payment,900002276,5.00,
BEIS,The Insolvency Service,19/07/2018,Travel & Subsistence,Investigations & Enforcement Services,Staff Payment,900002276,5.00,
BEIS,The Insolvency Service,19/07/2018,Travel & Subsistence,Investigations & Enforcement Services,Staff Payment,900002276,3.20,
BEIS,The Insolvency Service,19/07/2018,Travel & Subsistence,Official Receiver Services,Staff Payment,900002162,6.50,
BEIS,The Insolvency Service,19/07/2018,Travel & Subsistence,Official Receiver Services,Staff Payment,900002162,45.00,
BEIS,The Insolvency Service,19/07/2018,Travel & Subsistence,Investigations & Enforcement Services,Staff Payment,900002215,33.00,
BEIS,The Insolvency Service,19/07/2018,Travel & Subsistence,Investigations & Enforcement Services,Staff Payment,900002215,9.80,
BEIS,The Insolvency Service,19/07/2018,Travel & Subsistence,Investigations & Enforcement Services,Staff Payment,900002215,9.77,
BEIS,The Insolvency Service,19/07/2018,Travel & Subsistence,Investigations & Enforcement Services,Staff Payment,900002215,13.63,
BEIS,The Insolvency Service,19/07/2018,Travel & Subsistence,Investigations & Enforcement Services,Staff Payment,900002215,7.20,
BEIS,The Insolvency Service,19/07/2018,Travel & Subsistence,Investigations & Enforcement Services,Staff Payment,900002215,7.20,
BEIS,The Insolvency Service,19/07/2018,Travel & Subsistence,Investigations & Enforcement Services,Staff Payment,900002230,5.00,
BEIS,The Insolvency Service,19/07/2018,Travel & Subsistence,Investigations & Enforcement Services,Staff Payment,900002230,14.30,
BEIS,The Insolvency Service,19/07/2018,Travel & Subsistence,Investigations & Enforcement Services,Staff Payment,900002230,5.00,
BEIS,The Insolvency Service,19/07/2018,Travel & Subsistence,Investigations & Enforcement Services,Staff Payment,900002225,2.00,
BEIS,The Insolvency Service,19/07/2018,Travel & Subsistence,Investigations & Enforcement Services,Staff Payment,900002225,5.00,
BEIS,The Insolvency Service,19/07/2018,Travel & Subsistence,Investigations & Enforcement Services,Staff Payment,900002225,5.00,
BEIS,The Insolvency Service,19/07/2018,Travel & Subsistence,Investigations & Enforcement Services,Staff Payment,900002225,4.00,
BEIS,The Insolvency Service,19/07/2018,Travel & Subsistence,Investigations & Enforcement Services,Staff Payment,900002225,10.00,
BEIS,The Insolvency Service,19/07/2018,Travel & Subsistence,Official Receiver Services,Staff Payment,900002219,20.00,
BEIS,The Insolvency Service,19/07/2018,Travel & Subsistence,Official Receiver Services,Staff Payment,900002219,11.00,
BEIS,The Insolvency Service,19/07/2018,Travel & Subsistence,Official Receiver Services,Staff Payment,900002219,3.00,
BEIS,The Insolvency Service,19/07/2018,Travel & Subsistence,Official Receiver Services,Staff Payment,900002219,16.50,
BEIS,The Insolvency Service,19/07/2018,Travel & Subsistence,Business Service Division,Staff Payment,900001697,14.00,
BEIS,The Insolvency Service,19/07/2018,Travel & Subsistence,Business Service Division,Staff Payment,900001697,4.50,
BEIS,The Insolvency Service,19/07/2018,Travel & Subsistence,Business Service Division,Staff Payment,900001697,5.00,
BEIS,The Insolvency Service,19/07/2018,Travel & Subsistence,Business Service Division,Staff Payment,900001697,5.00,
BEIS,The Insolvency Service,19/07/2018,Travel & Subsistence,Business Service Division,Staff Payment,900001697,11.15,
BEIS,The Insolvency Service,19/07/2018,Travel & Subsistence,Business Service Division,Staff Payment,900001697,5.00,
BEIS,The Insolvency Service,19/07/2018,Travel & Subsistence,Official Receiver Services,Staff Payment,900002132,27.00,
BEIS,The Insolvency Service,19/07/2018,Travel & Subsistence,Official Receiver Services,Staff Payment,900002132,3.80,
BEIS,The Insolvency Service,19/07/2018,Travel & Subsistence,Official Receiver Services,Staff Payment,900002245,4.00,
BEIS,The Insolvency Service,19/07/2018,Travel & Subsistence,Official Receiver Services,Staff Payment,900002245,33.00,
BEIS,The Insolvency Service,19/07/2018,Travel & Subsistence,Strategy & Change,Staff Payment,900002280,9.13,
BEIS,The Insolvency Service,19/07/2018,Travel & Subsistence,Strategy & Change,Staff Payment,900002280,5.00,
BEIS,The Insolvency Service,19/07/2018,Travel & Subsistence,Strategy & Change,Staff Payment,900002280,4.48,
BEIS,The Insolvency Service,19/07/2018,Travel & Subsistence,Strategy & Change,Staff Payment,900002280,14.92,
BEIS,The Insolvency Service,19/07/2018,Travel & Subsistence,Investigations & Enforcement Services,Staff Payment,900002281,4.00,
BEIS,The Insolvency Service,19/07/2018,Travel & Subsistence,Official Receiver Services,Staff Payment,900002160,23.50,
BEIS,The Insolvency Service,19/07/2018,Travel & Subsistence,Official Receiver Services,Staff Payment,900001785,5.00,
BEIS,The Insolvency Service,19/07/2018,Travel & Subsistence,Official Receiver Services,Staff Payment,900001785,4.19,
BEIS,The Insolvency Service,19/07/2018,Travel & Subsistence,People & Capability,Staff Payment,900001772,159.00,
BEIS,The Insolvency Service,19/07/2018,Travel & Subsistence,People & Capability,Staff Payment,900002105,4.94,
BEIS,The Insolvency Service,19/07/2018,Travel & Subsistence,People & Capability,Staff Payment,900002105,22.50,
BEIS,The Insolvency Service,19/07/2018,Travel & Subsistence,People & Capability,Staff Payment,900002105,12.00,
BEIS,The Insolvency Service,19/07/2018,Travel & Subsistence,People & Capability,Staff Payment,900002105,3.60,
BEIS,The Insolvency Service,19/07/2018,Travel & Subsistence,People & Capability,Staff Payment,900002105,5.00,
BEIS,The Insolvency Service,19/07/2018,Travel & Subsistence,Official Receiver Services,Staff Payment,900002148,3.50,
BEIS,The Insolvency Service,19/07/2018,Travel & Subsistence,Official Receiver Services,Staff Payment,900002148,23.60,
BEIS,The Insolvency Service,19/07/2018,Travel & Subsistence,Business Service Division,Staff Payment,900002052,209.45,
BEIS,The Insolvency Service,19/07/2018,Travel & Subsistence,Business Service Division,Staff Payment,900002052,3.30,
BEIS,The Insolvency Service,19/07/2018,Travel & Subsistence,Business Service Division,Staff Payment,900002052,47.50,
BEIS,The Insolvency Service,19/07/2018,Travel & Subsistence,Business Service Division,Staff Payment,900002052,15.00,
BEIS,The Insolvency Service,19/07/2018,Travel & Subsistence,Business Service Division,Staff Payment,900002052,5.00,
BEIS,The Insolvency Service,19/07/2018,Travel & Subsistence,Business Service Division,Staff Payment,900002052,180.25,
BEIS,The Insolvency Service,19/07/2018,Travel & Subsistence,Finance & Commercial,Staff Payment,900002154,5.00,
BEIS,The Insolvency Service,19/07/2018,Travel & Subsistence,Finance & Commercial,Staff Payment,900002155,10.00,
BEIS,The Insolvency Service,19/07/2018,Travel & Subsistence,Finance & Commercial,Staff Payment,900002155,3.99,
BEIS,The Insolvency Service,19/07/2018,Travel & Subsistence,Finance & Commercial,Staff Payment,900002155,15.00,
BEIS,The Insolvency Service,19/07/2018,Travel & Subsistence,Business Service Division,Staff Payment,900002181,3.50,
BEIS,The Insolvency Service,19/07/2018,Travel & Subsistence,Business Service Division,Staff Payment,900002181,4.80,
BEIS,The Insolvency Service,19/07/2018,Travel & Subsistence,Investigations & Enforcement Services,Staff Payment,900002183,8.00,
BEIS,The Insolvency Service,19/07/2018,Travel & Subsistence,Investigations & Enforcement Services,Staff Payment,900002183,4.90,
BEIS,The Insolvency Service,19/07/2018,Travel & Subsistence,Investigations & Enforcement Services,Staff Payment,900002183,3.00,
BEIS,The Insolvency Service,19/07/2018,Travel & Subsistence,Investigations & Enforcement Services,Staff Payment,900002196,10.80,
BEIS,The Insolvency Service,19/07/2018,Travel & Subsistence,Investigations & Enforcement Services,Staff Payment,900002196,15.00,
BEIS,The Insolvency Service,19/07/2018,Travel & Subsistence,Investigations & Enforcement Services,Staff Payment,900002199,4.50,
BEIS,The Insolvency Service,19/07/2018,Travel & Subsistence,Investigations & Enforcement Services,Staff Payment,900002199,5.00,
BEIS,The Insolvency Service,19/07/2018,Travel & Subsistence,Investigations & Enforcement Services,Staff Payment,900002199,3.00,
BEIS,The Insolvency Service,19/07/2018,Travel & Subsistence,Investigations & Enforcement Services,Staff Payment,900002239,43.50,
BEIS,The Insolvency Service,19/07/2018,Travel & Subsistence,Investigations & Enforcement Services,Staff Payment,900002239,5.00,
BEIS,The Insolvency Service,19/07/2018,Travel & Subsistence,Investigations & Enforcement Services,Staff Payment,900002239,9.90,
BEIS,The Insolvency Service,19/07/2018,Travel & Subsistence,Information & Technology,Staff Payment,900002256,5.00,
BEIS,The Insolvency Service,19/07/2018,Travel & Subsistence,Information & Technology,Staff Payment,900002256,11.00,
BEIS,The Insolvency Service,19/07/2018,Travel & Subsistence,Investigations & Enforcement Services,Staff Payment,900001497,5.00,
BEIS,The Insolvency Service,19/07/2018,Travel & Subsistence,Investigations & Enforcement Services,Staff Payment,900002020,5.00,
BEIS,The Insolvency Service,19/07/2018,Travel & Subsistence,Investigations & Enforcement Services,Staff Payment,900002020,4.80,
BEIS,The Insolvency Service,19/07/2018,Travel & Subsistence,Investigations & Enforcement Services,Staff Payment,900002271,5.00,
BEIS,The Insolvency Service,19/07/2018,Travel & Subsistence,Investigations & Enforcement Services,Staff Payment,900002271,34.00,
BEIS,The Insolvency Service,19/07/2018,Travel & Subsistence,Official Receiver Services,Staff Payment,900000021,5.00,
BEIS,The Insolvency Service,19/07/2018,Travel & Subsistence,People & Capability,Staff Payment,900001036,5.00,
BEIS,The Insolvency Service,19/07/2018,Travel & Subsistence,Official Receiver Services,Staff Payment,900002156,45.90,
BEIS,The Insolvency Service,19/07/2018,Travel & Subsistence,Official Receiver Services,Staff Payment,900002156,5.00,
BEIS,The Insolvency Service,19/07/2018,Travel & Subsistence,Official Receiver Services,Staff Payment,900002156,5.00,
BEIS,The Insolvency Service,19/07/2018,Travel & Subsistence,Official Receiver Services,Staff Payment,900002156,5.00,
BEIS,The Insolvency Service,19/07/2018,Travel & Subsistence,Investigations & Enforcement Services,Staff Payment,900002150,15.00,
BEIS,The Insolvency Service,19/07/2018,Travel & Subsistence,Investigations & Enforcement Services,Staff Payment,900002150,4.48,
BEIS,The Insolvency Service,19/07/2018,Travel & Subsistence,Investigations & Enforcement Services,Staff Payment,900002151,5.00,
BEIS,The Insolvency Service,19/07/2018,Travel & Subsistence,Investigations & Enforcement Services,Staff Payment,900002151,15.00,
BEIS,The Insolvency Service,19/07/2018,Travel & Subsistence,Investigations & Enforcement Services,Staff Payment,900002152,5.00,
BEIS,The Insolvency Service,19/07/2018,Travel & Subsistence,Investigations & Enforcement Services,Staff Payment,900002152,5.00,
BEIS,The Insolvency Service,19/07/2018,Travel & Subsistence,Investigations & Enforcement Services,Staff Payment,900002047,15.00,
BEIS,The Insolvency Service,19/07/2018,Travel & Subsistence,Investigations & Enforcement Services,Staff Payment,900002047,5.00,
BEIS,The Insolvency Service,19/07/2018,Travel & Subsistence,Investigations & Enforcement Services,Staff Payment,900002047,4.20,
BEIS,The Insolvency Service,19/07/2018,Travel & Subsistence,Investigations & Enforcement Services,Staff Payment,900002047,5.00,
BEIS,The Insolvency Service,19/07/2018,Travel & Subsistence,Investigations & Enforcement Services,Staff Payment,900002047,34.00,
BEIS,The Insolvency Service,19/07/2018,Travel & Subsistence,Investigations & Enforcement Services,Staff Payment,900002047,40.00,
BEIS,The Insolvency Service,19/07/2018,Travel & Subsistence,Investigations & Enforcement Services,Staff Payment,900002047,11.00,
BEIS,The Insolvency Service,19/07/2018,Travel & Subsistence,Investigations & Enforcement Services,Staff Payment,900002047,4.35,
BEIS,The Insolvency Service,19/07/2018,Travel & Subsistence,Investigations & Enforcement Services,Staff Payment,900002047,4.25,
BEIS,The Insolvency Service,19/07/2018,Travel & Subsistence,Investigations & Enforcement Services,Staff Payment,900002047,5.00,
BEIS,The Insolvency Service,19/07/2018,Travel & Subsistence,Investigations & Enforcement Services,Staff Payment,900002047,5.00,
BEIS,The Insolvency Service,19/07/2018,Travel & Subsistence,Investigations & Enforcement Services,Staff Payment,900002153,40.00,
BEIS,The Insolvency Service,19/07/2018,Travel & Subsistence,Investigations & Enforcement Services,Staff Payment,900002153,5.00,
BEIS,The Insolvency Service,19/07/2018,Travel & Subsistence,Investigations & Enforcement Services,Staff Payment,900002153,2.35,
BEIS,The Insolvency Service,19/07/2018,Travel & Subsistence,Investigations & Enforcement Services,Staff Payment,900002153,4.00,
BEIS,The Insolvency Service,19/07/2018,Travel & Subsistence,Investigations & Enforcement Services,Staff Payment,900002153,13.99,
BEIS,The Insolvency Service,19/07/2018,Travel & Subsistence,Investigations & Enforcement Services,Staff Payment,900002153,2.65,
BEIS,The Insolvency Service,19/07/2018,Travel & Subsistence,Investigations & Enforcement Services,Staff Payment,900002153,20.00,
BEIS,The Insolvency Service,19/07/2018,Travel & Subsistence,Investigations & Enforcement Services,Staff Payment,900002153,5.00,
BEIS,The Insolvency Service,19/07/2018,Travel & Subsistence,Investigations & Enforcement Services,Staff Payment,900002153,5.00,
BEIS,The Insolvency Service,19/07/2018,Travel & Subsistence,Investigations & Enforcement Services,Staff Payment,900002153,4.45,
BEIS,The Insolvency Service,19/07/2018,Travel & Subsistence,Investigations & Enforcement Services,Staff Payment,900002153,5.00,
BEIS,The Insolvency Service,19/07/2018,Travel & Subsistence,Investigations & Enforcement Services,Staff Payment,900002034,7.00,
BEIS,The Insolvency Service,19/07/2018,Travel & Subsistence,Investigations & Enforcement Services,Staff Payment,900002034,7.00,
BEIS,The Insolvency Service,19/07/2018,Travel & Subsistence,Investigations & Enforcement Services,Staff Payment,900002034,5.00,
BEIS,The Insolvency Service,19/07/2018,Travel & Subsistence,Investigations & Enforcement Services,Staff Payment,900002034,4.95,
BEIS,The Insolvency Service,19/07/2018,Travel & Subsistence,Investigations & Enforcement Services,Staff Payment,900002034,7.00,
BEIS,The Insolvency Service,19/07/2018,Travel & Subsistence,Investigations & Enforcement Services,Staff Payment,900002034,7.00,
BEIS,The Insolvency Service,19/07/2018,Travel & Subsistence,Investigations & Enforcement Services,Staff Payment,900002034,7.00,
BEIS,The Insolvency Service,19/07/2018,Travel & Subsistence,Investigations & Enforcement Services,Staff Payment,900002034,5.00,
BEIS,The Insolvency Service,19/07/2018,Travel & Subsistence,Investigations & Enforcement Services,Staff Payment,900002243,5.00,
BEIS,The Insolvency Service,19/07/2018,Travel & Subsistence,Investigations & Enforcement Services,Staff Payment,900002243,9.49,
BEIS,The Insolvency Service,19/07/2018,Travel & Subsistence,Investigations & Enforcement Services,Staff Payment,900002243,5.00,
BEIS,The Insolvency Service,19/07/2018,Travel & Subsistence,Investigations & Enforcement Services,Staff Payment,900002243,5.00,
BEIS,The Insolvency Service,19/07/2018,Travel & Subsistence,Investigations & Enforcement Services,Staff Payment,900002243,4.40,
BEIS,The Insolvency Service,19/07/2018,Travel & Subsistence,Investigations & Enforcement Services,Staff Payment,900002243,9.60,
BEIS,The Insolvency Service,19/07/2018,Travel & Subsistence,Investigations & Enforcement Services,Staff Payment,900002243,4.20,
BEIS,The Insolvency Service,19/07/2018,Travel & Subsistence,Investigations & Enforcement Services,Staff Payment,900002243,5.90,
BEIS,The Insolvency Service,19/07/2018,Travel & Subsistence,Investigations & Enforcement Services,Staff Payment,900002243,4.20,
BEIS,The Insolvency Service,19/07/2018,Travel & Subsistence,Investigations & Enforcement Services,Staff Payment,900002243,9.60,
BEIS,The Insolvency Service,19/07/2018,Travel & Subsistence,Investigations & Enforcement Services,Staff Payment,900002243,4.20,
BEIS,The Insolvency Service,19/07/2018,Travel & Subsistence,Investigations & Enforcement Services,Staff Payment,900002243,5.20,
BEIS,The Insolvency Service,19/07/2018,Travel & Subsistence,Investigations & Enforcement Services,Staff Payment,900002243,2.95,
BEIS,The Insolvency Service,19/07/2018,Travel & Subsistence,Investigations & Enforcement Services,Staff Payment,900002243,3.25,
BEIS,The Insolvency Service,19/07/2018,Travel & Subsistence,Investigations & Enforcement Services,Staff Payment,900002243,5.00,
BEIS,The Insolvency Service,19/07/2018,Travel & Subsistence,Investigations & Enforcement Services,Staff Payment,900002243,5.00,
BEIS,The Insolvency Service,19/07/2018,Travel & Subsistence,Investigations & Enforcement Services,Staff Payment,900002243,5.00,
BEIS,The Insolvency Service,19/07/2018,Travel & Subsistence,Investigations & Enforcement Services,Staff Payment,900002243,5.00,
BEIS,The Insolvency Service,19/07/2018,Travel & Subsistence,Investigations & Enforcement Services,Staff Payment,900002243,5.00,
BEIS,The Insolvency Service,19/07/2018,Travel & Subsistence,Investigations & Enforcement Services,Staff Payment,900002243,2.35,
BEIS,The Insolvency Service,19/07/2018,Travel & Subsistence,Investigations & Enforcement Services,Staff Payment,900002243,9.60,
BEIS,The Insolvency Service,19/07/2018,Travel & Subsistence,Investigations & Enforcement Services,Staff Payment,900002243,4.20,
BEIS,The Insolvency Service,19/07/2018,Travel & Subsistence,Official Receiver Services,Staff Payment,900002182,36.90,
BEIS,The Insolvency Service,19/07/2018,Travel & Subsistence,People & Capability,Staff Payment,900000443,5.00,
BEIS,The Insolvency Service,19/07/2018,Travel & Subsistence,People & Capability,Staff Payment,900000443,15.00,
BEIS,The Insolvency Service,19/07/2018,Travel & Subsistence,People & Capability,Staff Payment,900000444,5.00,
BEIS,The Insolvency Service,19/07/2018,Travel & Subsistence,People & Capability,Staff Payment,900000444,10.20,
BEIS,The Insolvency Service,19/07/2018,Travel & Subsistence,People & Capability,Staff Payment,900000445,5.00,
BEIS,The Insolvency Service,19/07/2018,Travel & Subsistence,People & Capability,Staff Payment,900000445,15.00,
BEIS,The Insolvency Service,19/07/2018,Travel & Subsistence,People & Capability,Staff Payment,900000445,5.00,
BEIS,The Insolvency Service,19/07/2018,Travel & Subsistence,People & Capability,Staff Payment,900000450,14.60,
BEIS,The Insolvency Service,19/07/2018,Travel & Subsistence,People & Capability,Staff Payment,900000450,5.00,
BEIS,The Insolvency Service,19/07/2018,Travel & Subsistence,People & Capability,Staff Payment,900000450,3.90,
BEIS,The Insolvency Service,19/07/2018,Travel & Subsistence,People & Capability,Staff Payment,900000450,5.00,
BEIS,The Insolvency Service,19/07/2018,Travel & Subsistence,People & Capability,Staff Payment,900000450,14.65,
BEIS,The Insolvency Service,19/07/2018,Travel & Subsistence,People & Capability,Staff Payment,900000451,3.90,
BEIS,The Insolvency Service,19/07/2018,Travel & Subsistence,People & Capability,Staff Payment,900000451,4.35,
BEIS,The Insolvency Service,19/07/2018,Travel & Subsistence,People & Capability,Staff Payment,900000451,5.99,
BEIS,The Insolvency Service,19/07/2018,Travel & Subsistence,People & Capability,Staff Payment,900000451,10.00,
BEIS,The Insolvency Service,19/07/2018,Travel & Subsistence,People & Capability,Staff Payment,900000451,6.59,
BEIS,The Insolvency Service,19/07/2018,Travel & Subsistence,People & Capability,Staff Payment,900001322,7.79,
BEIS,The Insolvency Service,19/07/2018,Travel & Subsistence,People & Capability,Staff Payment,900001322,5.00,
BEIS,The Insolvency Service,19/07/2018,Travel & Subsistence,People & Capability,Staff Payment,900001322,3.90,
BEIS,The Insolvency Service,19/07/2018,Travel & Subsistence,People & Capability,Staff Payment,900001322,5.00,
BEIS,The Insolvency Service,19/07/2018,Travel & Subsistence,People & Capability,Staff Payment,900001326,11.20,
BEIS,The Insolvency Service,19/07/2018,Travel & Subsistence,People & Capability,Staff Payment,900001327,9.87,
BEIS,The Insolvency Service,19/07/2018,Travel & Subsistence,People & Capability,Staff Payment,900001327,5.00,
BEIS,The Insolvency Service,19/07/2018,Travel & Subsistence,People & Capability,Staff Payment,900001328,12.02,
BEIS,The Insolvency Service,19/07/2018,Travel & Subsistence,People & Capability,Staff Payment,900001328,5.00,
BEIS,The Insolvency Service,19/07/2018,Travel & Subsistence,People & Capability,Staff Payment,900001329,9.45,
BEIS,The Insolvency Service,19/07/2018,Travel & Subsistence,People & Capability,Staff Payment,900001330,3.95,
BEIS,The Insolvency Service,19/07/2018,Travel & Subsistence,People & Capability,Staff Payment,900001331,3.90,
BEIS,The Insolvency Service,19/07/2018,Travel & Subsistence,People & Capability,Staff Payment,900001331,7.80,
BEIS,The Insolvency Service,19/07/2018,Travel & Subsistence,People & Capability,Staff Payment,900001332,5.00,
BEIS,The Insolvency Service,19/07/2018,Travel & Subsistence,People & Capability,Staff Payment,900001333,5.00,
BEIS,The Insolvency Service,19/07/2018,Travel & Subsistence,People & Capability,Staff Payment,900001333,10.72,
BEIS,The Insolvency Service,19/07/2018,Travel & Subsistence,People & Capability,Staff Payment,900001333,3.90,
BEIS,The Insolvency Service,19/07/2018,Travel & Subsistence,People & Capability,Staff Payment,900001334,3.90,
BEIS,The Insolvency Service,19/07/2018,Travel & Subsistence,People & Capability,Staff Payment,900002190,3.90,
BEIS,The Insolvency Service,19/07/2018,Travel & Subsistence,People & Capability,Staff Payment,900002190,11.15,
BEIS,The Insolvency Service,19/07/2018,Travel & Subsistence,People & Capability,Staff Payment,900002191,8.75,
BEIS,The Insolvency Service,19/07/2018,Travel & Subsistence,People & Capability,Staff Payment,900002191,5.00,
BEIS,The Insolvency Service,19/07/2018,Travel & Subsistence,People & Capability,Staff Payment,900002192,12.95,
BEIS,The Insolvency Service,19/07/2018,Travel & Subsistence,People & Capability,Staff Payment,900002192,5.00,
BEIS,The Insolvency Service,19/07/2018,Travel & Subsistence,People & Capability,Staff Payment,900002193,11.20,
BEIS,The Insolvency Service,19/07/2018,Travel & Subsistence,People & Capability,Staff Payment,900002193,3.90,
BEIS,The Insolvency Service,19/07/2018,Travel & Subsistence,People & Capability,Staff Payment,900002194,5.00,
BEIS,The Insolvency Service,19/07/2018,Travel & Subsistence,People & Capability,Staff Payment,900002194,9.75,
BEIS,The Insolvency Service,19/07/2018,Travel & Subsistence,People & Capability,Staff Payment,900002195,5.00,
BEIS,The Insolvency Service,19/07/2018,Travel & Subsistence,People & Capability,Staff Payment,900002195,15.00,
BEIS,The Insolvency Service,19/07/2018,Travel & Subsistence,People & Capability,Staff Payment,900002197,5.00,
BEIS,The Insolvency Service,19/07/2018,Travel & Subsistence,People & Capability,Staff Payment,900002197,11.23,
BEIS,The Insolvency Service,19/07/2018,Travel & Subsistence,People & Capability,Staff Payment,900002198,9.30,
BEIS,The Insolvency Service,19/07/2018,Travel & Subsistence,People & Capability,Staff Payment,900002198,5.00,
BEIS,The Insolvency Service,19/07/2018,Travel & Subsistence,Investigations & Enforcement Services,Staff Payment,900001576,10.00,
BEIS,The Insolvency Service,19/07/2018,Travel & Subsistence,Investigations & Enforcement Services,Staff Payment,900001576,10.00,
BEIS,The Insolvency Service,19/07/2018,Travel & Subsistence,Business Service Division,Staff Payment,900001990,34.25,
BEIS,The Insolvency Service,19/07/2018,Travel & Subsistence,Business Service Division,Staff Payment,900001990,5.00,
BEIS,The Insolvency Service,19/07/2018,Travel & Subsistence,Business Service Division,Staff Payment,900001990,34.25,
BEIS,The Insolvency Service,19/07/2018,Travel & Subsistence,Official Receiver Services,Staff Payment,900001886,5.30,
BEIS,The Insolvency Service,19/07/2018,Travel & Subsistence,People & Capability,Staff Payment,900001886,7.50,
BEIS,The Insolvency Service,19/07/2018,Travel & Subsistence,People & Capability,Staff Payment,900001888,5.00,
BEIS,The Insolvency Service,19/07/2018,Travel & Subsistence,People & Capability,Staff Payment,900001963,5.00,
BEIS,The Insolvency Service,19/07/2018,Travel & Subsistence,People & Capability,Staff Payment,900001963,3.75,
BEIS,The Insolvency Service,19/07/2018,Travel & Subsistence,People & Capability,Staff Payment,900001963,23.00,
BEIS,The Insolvency Service,19/07/2018,Travel & Subsistence,Investigations & Enforcement Services,Staff Payment,900001419,49.20,
BEIS,The Insolvency Service,19/07/2018,Travel & Subsistence,Investigations & Enforcement Services,Staff Payment,900001520,39.78,
BEIS,The Insolvency Service,19/07/2018,Travel & Subsistence,Strategy & Change,Staff Payment,900001725,15.00,
BEIS,The Insolvency Service,19/07/2018,Travel & Subsistence,Strategy & Change,Staff Payment,900001725,3.00,
BEIS,The Insolvency Service,19/07/2018,Travel & Subsistence,Strategy & Change,Staff Payment,900001725,3.00,
BEIS,The Insolvency Service,19/07/2018,Travel & Subsistence,Strategy & Change,Staff Payment,900001725,15.00,
BEIS,The Insolvency Service,19/07/2018,Travel & Subsistence,Strategy & Change,Staff Payment,900001725,3.00,
BEIS,The Insolvency Service,19/07/2018,Travel & Subsistence,Strategy & Change,Staff Payment,900001725,5.00,
BEIS,The Insolvency Service,19/07/2018,Travel & Subsistence,Strategy & Change,Staff Payment,900001725,2.25,
BEIS,The Insolvency Service,19/07/2018,Travel & Subsistence,Strategy & Change,Staff Payment,900001725,4.00,
BEIS,The Insolvency Service,19/07/2018,Travel & Subsistence,Strategy & Change,Staff Payment,900001725,4.00,
BEIS,The Insolvency Service,19/07/2018,Travel & Subsistence,Strategy & Change,Staff Payment,900001725,10.49,
BEIS,The Insolvency Service,19/07/2018,Travel & Subsistence,Strategy & Change,Staff Payment,900001725,15.00,
BEIS,The Insolvency Service,19/07/2018,Travel & Subsistence,Strategy & Change,Staff Payment,900001725,3.00,
BEIS,The Insolvency Service,19/07/2018,Travel & Subsistence,Strategy & Change,Staff Payment,900001725,8.00,
BEIS,The Insolvency Service,19/07/2018,Travel & Subsistence,Official Receiver Services,Staff Payment,900002200,4.70,
BEIS,The Insolvency Service,19/07/2018,Travel & Subsistence,Official Receiver Services,Staff Payment,900002200,4.75,
BEIS,The Insolvency Service,19/07/2018,Travel & Subsistence,Finance & Commercial,Staff Payment,900002224,71.50,
BEIS,The Insolvency Service,19/07/2018,Travel & Subsistence,Finance & Commercial,Staff Payment,900002224,71.50,
BEIS,The Insolvency Service,19/07/2018,Travel & Subsistence,Finance & Commercial,Staff Payment,900002229,10.40,
BEIS,The Insolvency Service,19/07/2018,Travel & Subsistence,Finance & Commercial,Staff Payment,900002231,18.40,
BEIS,The Insolvency Service,19/07/2018,Travel & Subsistence,Official Receiver Services,Staff Payment,900001893,5.00,
BEIS,The Insolvency Service,19/07/2018,Travel & Subsistence,Official Receiver Services,Staff Payment,900001893,15.00,
BEIS,The Insolvency Service,19/07/2018,Travel & Subsistence,Investigations & Enforcement Services,Staff Payment,900001893,9.60,
BEIS,The Insolvency Service,19/07/2018,Travel & Subsistence,Official Receiver Services,Staff Payment,900001893,5.00,
BEIS,The Insolvency Service,19/07/2018,Travel & Subsistence,Strategy & Change,Staff Payment,900002234,5.00,
BEIS,The Insolvency Service,19/07/2018,Travel & Subsistence,Strategy & Change,Staff Payment,900002141,10.00,
BEIS,The Insolvency Service,19/07/2018,Travel & Subsistence,Strategy & Change,Staff Payment,900002141,5.00,
BEIS,The Insolvency Service,19/07/2018,Travel & Subsistence,Strategy & Change,Staff Payment,900002141,15.00,
BEIS,The Insolvency Service,19/07/2018,Travel & Subsistence,Information & Technology,Staff Payment,900002033,5.04,
BEIS,The Insolvency Service,19/07/2018,Travel & Subsistence,Information & Technology,Staff Payment,900002033,5.00,
BEIS,The Insolvency Service,19/07/2018,Travel & Subsistence,Information & Technology,Staff Payment,900002033,5.00,
BEIS,The Insolvency Service,19/07/2018,Travel & Subsistence,Information & Technology,Staff Payment,900002033,4.88,
BEIS,The Insolvency Service,19/07/2018,Travel & Subsistence,Information & Technology,Staff Payment,900002033,15.00,
BEIS,The Insolvency Service,19/07/2018,Travel & Subsistence,Information & Technology,Staff Payment,900002033,5.00,
BEIS,The Insolvency Service,19/07/2018,Travel & Subsistence,Information & Technology,Staff Payment,900002247,5.00,
BEIS,The Insolvency Service,19/07/2018,Travel & Subsistence,Information & Technology,Staff Payment,900002247,5.00,
BEIS,The Insolvency Service,19/07/2018,Travel & Subsistence,Information & Technology,Staff Payment,900002247,5.00,
BEIS,The Insolvency Service,19/07/2018,Travel & Subsistence,Information & Technology,Staff Payment,900002247,11.00,
BEIS,The Insolvency Service,19/07/2018,Travel & Subsistence,Investigations & Enforcement Services,Staff Payment,900002177,5.00,
BEIS,The Insolvency Service,19/07/2018,Travel & Subsistence,Investigations & Enforcement Services,Staff Payment,900002115,15.00,
BEIS,The Insolvency Service,19/07/2018,Travel & Subsistence,Investigations & Enforcement Services,Staff Payment,900002115,5.00,
BEIS,The Insolvency Service,19/07/2018,Travel & Subsistence,Investigations & Enforcement Services,Staff Payment,900002045,13.50,
BEIS,The Insolvency Service,19/07/2018,Travel & Subsistence,Investigations & Enforcement Services,Staff Payment,900002045,23.00,
BEIS,The Insolvency Service,19/07/2018,Travel & Subsistence,Investigations & Enforcement Services,Staff Payment,900002045,6.75,
BEIS,The Insolvency Service,19/07/2018,Travel & Subsistence,Investigations & Enforcement Services,Staff Payment,900002045,34.50,
BEIS,The Insolvency Service,19/07/2018,Travel & Subsistence,Investigations & Enforcement Services,Staff Payment,900002045,27.00,
BEIS,The Insolvency Service,19/07/2018,Travel & Subsistence,Investigations & Enforcement Services,Staff Payment,900002045,6.75,
BEIS,The Insolvency Service,19/07/2018,Travel & Subsistence,Investigations & Enforcement Services,Staff Payment,900002045,23.00,
BEIS,The Insolvency Service,19/07/2018,Travel & Subsistence,Investigations & Enforcement Services,Staff Payment,900002045,28.00,
BEIS,The Insolvency Service,19/07/2018,Travel & Subsistence,Investigations & Enforcement Services,Staff Payment,900002108,31.50,
BEIS,The Insolvency Service,19/07/2018,Travel & Subsistence,Investigations & Enforcement Services,Staff Payment,900002108,23.40,
BEIS,The Insolvency Service,19/07/2018,Travel & Subsistence,Investigations & Enforcement Services,Staff Payment,900002108,7.80,
BEIS,The Insolvency Service,19/07/2018,Travel & Subsistence,Investigations & Enforcement Services,Staff Payment,900002108,7.80,
BEIS,The Insolvency Service,19/07/2018,Travel & Subsistence,Investigations & Enforcement Services,Staff Payment,900002108,12.60,
BEIS,The Insolvency Service,19/07/2018,Travel & Subsistence,Investigations & Enforcement Services,Staff Payment,900002108,7.80,
BEIS,The Insolvency Service,19/07/2018,Travel & Subsistence,Investigations & Enforcement Services,Staff Payment,900002108,18.05,
BEIS,The Insolvency Service,19/07/2018,Travel & Subsistence,Investigations & Enforcement Services,Staff Payment,900002108,10.00,
BEIS,The Insolvency Service,19/07/2018,Travel & Subsistence,Investigations & Enforcement Services,Staff Payment,900002108,22.60,
BEIS,The Insolvency Service,19/07/2018,Travel & Subsistence,Investigations & Enforcement Services,Staff Payment,900002108,61.30,
BEIS,The Insolvency Service,19/07/2018,Travel & Subsistence,Investigations & Enforcement Services,Staff Payment,900002108,22.60,
BEIS,The Insolvency Service,19/07/2018,Travel & Subsistence,Investigations & Enforcement Services,Staff Payment,900002108,22.60,
BEIS,The Insolvency Service,19/07/2018,Travel & Subsistence,Investigations & Enforcement Services,Staff Payment,900002108,7.80,
BEIS,The Insolvency Service,19/07/2018,Travel & Subsistence,Investigations & Enforcement Services,Staff Payment,900002216,1.99,
BEIS,The Insolvency Service,19/07/2018,Travel & Subsistence,Investigations & Enforcement Services,Staff Payment,900002216,5.00,
BEIS,The Insolvency Service,19/07/2018,Travel & Subsistence,Investigations & Enforcement Services,Staff Payment,900002216,20.00,
